Organisation Code,Organisation Label,Effective Date,Organisational Unit,Service Division Label,Category Internal Name,Purpose,Detailed Expenditure Code,Payment Date,Transaction Number,Irrecoverable VAT Amount,Amount,Capital Or Revenue,Benificiary Name,Procurement Card,,
Http://opendatacommunities.org/id/metropolitan-district-council/leeds,Leeds City Council,30/11/2017,Resources and Housing,Leeds Building Services,Supplies and Services,Operational Materials,205,24/11/2017,1711- 00001,0.00,90.50,R,A & A Electrical Distributors Ltd,No,,
Http://opendatacommunities.org/id/metropolitan-district-council/leeds,Leeds City Council,30/11/2017,Resources and Housing,HRA Housing Leeds,Capital,Other Costs,7,23/11/2017,1711- 00002,0.00,175.00,C,REDACTED PERSONAL DATA,No,,
Http://opendatacommunities.org/id/metropolitan-district-council/leeds,Leeds City Council,30/11/2017,Resources and Housing,Leeds Building Services,Supplies and Services,Operational Materials,205,07/11/2017,1711- 00003,0.00,19.06,R,A Andrews & Sons (Marbles & Tiles),No,,
Http://opendatacommunities.org/id/metropolitan-district-council/leeds,Leeds City Council,30/11/2017,Resources and Housing,Leeds Building Services,Supplies and Services,Operational Materials,205,07/11/2017,1711- 00004,0.00,156.30,R,A Andrews & Sons (Marbles & Tiles),No,,
Http://opendatacommunities.org/id/metropolitan-district-council/leeds,Leeds City Council,30/11/2017,Resources and Housing,Leeds Building Services,Supplies and Services,Operational Materials,205,10/11/2017,1711- 00005,0.00,46.30,R,A Andrews & Sons (Marbles & Tiles),No,,
Http://opendatacommunities.org/id/metropolitan-district-council/leeds,Leeds City Council,30/11/2017,Resources and Housing,Leeds Building Services,Supplies and Services,Operational Materials,205,10/11/2017,1711- 00006,0.00,296.10,R,A Andrews & Sons (Marbles & Tiles),No,,
Http://opendatacommunities.org/id/metropolitan-district-council/leeds,Leeds City Council,30/11/2017,Resources and Housing,Leeds Building Services,Supplies and Services,Operational Materials,205,21/11/2017,1711- 00007,0.00,39.50,R,A Andrews & Sons (Marbles & Tiles),No,,
Http://opendatacommunities.org/id/metropolitan-district-council/leeds,Leeds City Council,30/11/2017,Resources and Housing,Leeds Building Services,Supplies and Services,Operational Materials,205,23/11/2017,1711- 00008,0.00,42.81,R,A Andrews & Sons (Marbles & Tiles),No,,
Http://opendatacommunities.org/id/metropolitan-district-council/leeds,Leeds City Council,30/11/2017,Resources and Housing,HRA Housing Leeds,Capital,Other Costs,7,23/11/2017,1711- 00009,0.00,360.00,C,REDACTED PERSONAL DATA,No,,
Http://opendatacommunities.org/id/metropolitan-district-council/leeds,Leeds City Council,30/11/2017,City Development,Libraries  Arts & Heritage,Supplies and Services,Operational Furniture And Equipment,203,17/11/2017,1711- 00010,0.00,70.10,R,A C Entertainment Technologies Ltd,No,,
Http://opendatacommunities.org/id/metropolitan-district-council/leeds,Leeds City Council,30/11/2017,Resources and Housing,HRA Housing Leeds,Capital,Other Costs,7,16/11/2017,1711- 00011,0.00,249.22,C,REDACTED PERSONAL DATA,No,,
Http://opendatacommunities.org/id/metropolitan-district-council/leeds,Leeds City Council,30/11/2017,Resources and Housing,HRA Housing Leeds,Capital,Other Costs,7,02/11/2017,1711- 00012,0.00,309.17,C,REDACTED PERSONAL DATA,No,,
Http://opendatacommunities.org/id/metropolitan-district-council/leeds,Leeds City Council,30/11/2017,Communities and Environment,Parks and Countryside,Supplies and Services,Bought In Professional Services,277,08/11/2017,1711- 00013,0.00,848.65,R,REDACTED COMMERCIAL CONFIDENTIALITY,No,,
Http://opendatacommunities.org/id/metropolitan-district-council/leeds,Leeds City Council,30/11/2017,City Development,Highways,Capital,Construction,3,10/11/2017,1711- 00014,0.00,6188.72,C,A E Yates Ltd,No,,
Http://opendatacommunities.org/id/metropolitan-district-council/leeds,Leeds City Council,30/11/2017,Children and Families,Safeguarding Targeted & Specialist,Supplies and Services,Food & Drink,231,02/11/2017,1711- 00015,0.00,46.02,R,A F Blakemore Son Ltd,No,,
Http://opendatacommunities.org/id/metropolitan-district-council/leeds,Leeds City Council,30/11/2017,Adults and Health,Services For Older People Under 65 P/Dis,Supplies and Services,Food & Drink,231,02/11/2017,1711- 00016,0.00,57.40,R,A F Blakemore Son Ltd,No,,
Http://opendatacommunities.org/id/metropolitan-district-council/leeds,Leeds City Council,30/11/2017,Communities and Environment,Parks and Countryside,Supplies and Services,Food & Drink,231,07/11/2017,1711- 00017,0.00,213.43,R,A F Blakemore Son Ltd,No,,
Http://opendatacommunities.org/id/metropolitan-district-council/leeds,Leeds City Council,30/11/2017,Resources and Housing,Commercial Services,Supplies and Services,Food & Drink,231,08/11/2017,1711- 00018,0.00,33713.83,R,A F Blakemore Son Ltd,No,,
Http://opendatacommunities.org/id/metropolitan-district-council/leeds,Leeds City Council,30/11/2017,Resources and Housing,Commercial Services,Supplies and Services,Food & Drink,231,08/11/2017,1711- 00019,0.00,33510.16,R,A F Blakemore Son Ltd,No,,
Http://opendatacommunities.org/id/metropolitan-district-council/leeds,Leeds City Council,30/11/2017,Resources and Housing,Commercial Services,Supplies and Services,Food & Drink,231,08/11/2017,1711- 00020,0.00,214.96,R,A F Blakemore Son Ltd,No,,
Http://opendatacommunities.org/id/metropolitan-district-council/leeds,Leeds City Council,30/11/2017,Resources and Housing,Commercial Services,Supplies and Services,Food & Drink,231,08/11/2017,1711- 00021,0.00,62.69,R,A F Blakemore Son Ltd,No,,
Http://opendatacommunities.org/id/metropolitan-district-council/leeds,Leeds City Council,30/11/2017,Resources and Housing,Commercial Services,Supplies and Services,Food & Drink,231,08/11/2017,1711- 00022,0.00,98.08,R,A F Blakemore Son Ltd,No,,
Http://opendatacommunities.org/id/metropolitan-district-council/leeds,Leeds City Council,30/11/2017,Resources and Housing,Commercial Services,Supplies and Services,Food & Drink,231,08/11/2017,1711- 00023,0.00,18.86,R,A F Blakemore Son Ltd,No,,
Http://opendatacommunities.org/id/metropolitan-district-council/leeds,Leeds City Council,30/11/2017,Resources and Housing,Commercial Services,Supplies and Services,Food & Drink,231,08/11/2017,1711- 00024,0.00,182.58,R,A F Blakemore Son Ltd,No,,
Http://opendatacommunities.org/id/metropolitan-district-council/leeds,Leeds City Council,30/11/2017,Resources and Housing,Commercial Services,Supplies and Services,Food & Drink,231,08/11/2017,1711- 00025,0.00,75.81,R,A F Blakemore Son Ltd,No,,
Http://opendatacommunities.org/id/metropolitan-district-council/leeds,Leeds City Council,30/11/2017,Resources and Housing,Commercial Services,Supplies and Services,Food & Drink,231,08/11/2017,1711- 00026,0.00,100.87,R,A F Blakemore Son Ltd,No,,
Http://opendatacommunities.org/id/metropolitan-district-council/leeds,Leeds City Council,30/11/2017,Resources and Housing,Commercial Services,Supplies and Services,Food & Drink,231,08/11/2017,1711- 00027,0.00,147.58,R,A F Blakemore Son Ltd,No,,
Http://opendatacommunities.org/id/metropolitan-district-council/leeds,Leeds City Council,30/11/2017,Resources and Housing,Commercial Services,Supplies and Services,Food & Drink,231,08/11/2017,1711- 00028,0.00,188.08,R,A F Blakemore Son Ltd,No,,
Http://opendatacommunities.org/id/metropolitan-district-council/leeds,Leeds City Council,30/11/2017,Resources and Housing,Commercial Services,Supplies and Services,Food & Drink,231,08/11/2017,1711- 00029,0.00,84.72,R,A F Blakemore Son Ltd,No,,
Http://opendatacommunities.org/id/metropolitan-district-council/leeds,Leeds City Council,30/11/2017,Resources and Housing,Commercial Services,Supplies and Services,Food & Drink,231,08/11/2017,1711- 00030,0.00,88.62,R,A F Blakemore Son Ltd,No,,
Http://opendatacommunities.org/id/metropolitan-district-council/leeds,Leeds City Council,30/11/2017,Resources and Housing,Commercial Services,Supplies and Services,Food & Drink,231,08/11/2017,1711- 00031,0.00,45.99,R,A F Blakemore Son Ltd,No,,
Http://opendatacommunities.org/id/metropolitan-district-council/leeds,Leeds City Council,30/11/2017,Resources and Housing,Commercial Services,Supplies and Services,Food & Drink,231,08/11/2017,1711- 00032,0.00,35.60,R,A F Blakemore Son Ltd,No,,
Http://opendatacommunities.org/id/metropolitan-district-council/leeds,Leeds City Council,30/11/2017,Resources and Housing,Commercial Services,Supplies and Services,Food & Drink,231,08/11/2017,1711- 00033,0.00,76.01,R,A F Blakemore Son Ltd,No,,
Http://opendatacommunities.org/id/metropolitan-district-council/leeds,Leeds City Council,30/11/2017,Resources and Housing,Commercial Services,Supplies and Services,Food & Drink,231,08/11/2017,1711- 00034,0.00,65.69,R,A F Blakemore Son Ltd,No,,
Http://opendatacommunities.org/id/metropolitan-district-council/leeds,Leeds City Council,30/11/2017,Resources and Housing,Commercial Services,Supplies and Services,Food & Drink,231,08/11/2017,1711- 00035,0.00,19.27,R,A F Blakemore Son Ltd,No,,
Http://opendatacommunities.org/id/metropolitan-district-council/leeds,Leeds City Council,30/11/2017,Resources and Housing,Commercial Services,Supplies and Services,Food & Drink,231,08/11/2017,1711- 00036,0.00,123.26,R,A F Blakemore Son Ltd,No,,
Http://opendatacommunities.org/id/metropolitan-district-council/leeds,Leeds City Council,30/11/2017,Resources and Housing,Commercial Services,Supplies and Services,Food & Drink,231,08/11/2017,1711- 00037,0.00,201.65,R,A F Blakemore Son Ltd,No,,
Http://opendatacommunities.org/id/metropolitan-district-council/leeds,Leeds City Council,30/11/2017,Communities and Environment,Parks and Countryside,Supplies and Services,Food & Drink,231,08/11/2017,1711- 00038,0.00,116.42,R,A F Blakemore Son Ltd,No,,
Http://opendatacommunities.org/id/metropolitan-district-council/leeds,Leeds City Council,30/11/2017,Resources and Housing,Commercial Services,Supplies and Services,Food & Drink,231,08/11/2017,1711- 00039,0.00,67.72,R,A F Blakemore Son Ltd,No,,
Http://opendatacommunities.org/id/metropolitan-district-council/leeds,Leeds City Council,30/11/2017,Resources and Housing,Commercial Services,Supplies and Services,Food & Drink,231,08/11/2017,1711- 00040,0.00,98.62,R,A F Blakemore Son Ltd,No,,
Http://opendatacommunities.org/id/metropolitan-district-council/leeds,Leeds City Council,30/11/2017,Communities and Environment,Parks and Countryside,Supplies and Services,Food & Drink,231,09/11/2017,1711- 00041,0.00,67.45,R,A F Blakemore Son Ltd,No,,
Http://opendatacommunities.org/id/metropolitan-district-council/leeds,Leeds City Council,30/11/2017,Adults and Health,Services For Older People Under 65 P/Dis,Supplies and Services,Food & Drink,231,09/11/2017,1711- 00042,0.00,50.51,R,A F Blakemore Son Ltd,No,,
Http://opendatacommunities.org/id/metropolitan-district-council/leeds,Leeds City Council,30/11/2017,Communities and Environment,Parks and Countryside,Supplies and Services,Food & Drink,231,09/11/2017,1711- 00043,0.00,254.80,R,A F Blakemore Son Ltd,No,,
Http://opendatacommunities.org/id/metropolitan-district-council/leeds,Leeds City Council,30/11/2017,Resources and Housing,Commercial Services,Supplies and Services,Food & Drink,231,10/11/2017,1711- 00044,0.00,33665.87,R,A F Blakemore Son Ltd,No,,
Http://opendatacommunities.org/id/metropolitan-district-council/leeds,Leeds City Council,30/11/2017,Communities and Environment,Parks and Countryside,Supplies and Services,Food & Drink,231,10/11/2017,1711- 00045,0.00,290.87,R,A F Blakemore Son Ltd,No,,
Http://opendatacommunities.org/id/metropolitan-district-council/leeds,Leeds City Council,30/11/2017,Communities and Environment,Parks and Countryside,Supplies and Services,Food & Drink,231,10/11/2017,1711- 00046,0.00,100.15,R,A F Blakemore Son Ltd,No,,
Http://opendatacommunities.org/id/metropolitan-district-council/leeds,Leeds City Council,30/11/2017,Communities and Environment,Parks and Countryside,Supplies and Services,Food & Drink,231,10/11/2017,1711- 00047,0.00,257.67,R,A F Blakemore Son Ltd,No,,
Http://opendatacommunities.org/id/metropolitan-district-council/leeds,Leeds City Council,30/11/2017,Communities and Environment,Parks and Countryside,Supplies and Services,Food & Drink,231,10/11/2017,1711- 00048,0.00,40.09,R,A F Blakemore Son Ltd,No,,
Http://opendatacommunities.org/id/metropolitan-district-council/leeds,Leeds City Council,30/11/2017,Communities and Environment,Parks and Countryside,Supplies and Services,Food & Drink,231,10/11/2017,1711- 00049,0.00,260.40,R,A F Blakemore Son Ltd,No,,
Http://opendatacommunities.org/id/metropolitan-district-council/leeds,Leeds City Council,30/11/2017,Communities and Environment,Parks and Countryside,Supplies and Services,Food & Drink,231,13/11/2017,1711- 00050,0.00,99.02,R,A F Blakemore Son Ltd,No,,
Http://opendatacommunities.org/id/metropolitan-district-council/leeds,Leeds City Council,30/11/2017,Communities and Environment,Parks and Countryside,Supplies and Services,Food & Drink,231,13/11/2017,1711- 00051,0.00,204.70,R,A F Blakemore Son Ltd,No,,
Http://opendatacommunities.org/id/metropolitan-district-council/leeds,Leeds City Council,30/11/2017,Communities and Environment,Parks and Countryside,Supplies and Services,Food & Drink,231,13/11/2017,1711- 00052,0.00,920.52,R,A F Blakemore Son Ltd,No,,
Http://opendatacommunities.org/id/metropolitan-district-council/leeds,Leeds City Council,30/11/2017,Communities and Environment,Parks and Countryside,Supplies and Services,Food & Drink,231,13/11/2017,1711- 00053,0.00,261.00,R,A F Blakemore Son Ltd,No,,
Http://opendatacommunities.org/id/metropolitan-district-council/leeds,Leeds City Council,30/11/2017,Communities and Environment,Parks and Countryside,Supplies and Services,Food & Drink,231,13/11/2017,1711- 00054,0.00,770.19,R,A F Blakemore Son Ltd,No,,
Http://opendatacommunities.org/id/metropolitan-district-council/leeds,Leeds City Council,30/11/2017,Communities and Environment,Parks and Countryside,Supplies and Services,Food & Drink,231,13/11/2017,1711- 00055,0.00,45.99,R,A F Blakemore Son Ltd,No,,
Http://opendatacommunities.org/id/metropolitan-district-council/leeds,Leeds City Council,30/11/2017,Communities and Environment,Parks and Countryside,Supplies and Services,Food & Drink,231,13/11/2017,1711- 00056,0.00,227.04,R,A F Blakemore Son Ltd,No,,
Http://opendatacommunities.org/id/metropolitan-district-council/leeds,Leeds City Council,30/11/2017,Communities and Environment,Parks and Countryside,Supplies and Services,Food & Drink,231,13/11/2017,1711- 00057,0.00,155.40,R,A F Blakemore Son Ltd,No,,
Http://opendatacommunities.org/id/metropolitan-district-council/leeds,Leeds City Council,30/11/2017,City Development,Libraries  Arts & Heritage,Supplies and Services,Food & Drink,231,15/11/2017,1711- 00058,0.00,129.39,R,A F Blakemore Son Ltd,No,,
Http://opendatacommunities.org/id/metropolitan-district-council/leeds,Leeds City Council,30/11/2017,City Development,Libraries  Arts & Heritage,Supplies and Services,Food & Drink,231,15/11/2017,1711- 00059,0.00,4.94,R,A F Blakemore Son Ltd,No,,
Http://opendatacommunities.org/id/metropolitan-district-council/leeds,Leeds City Council,30/11/2017,City Development,Libraries  Arts & Heritage,Supplies and Services,Food & Drink,231,16/11/2017,1711- 00060,0.00,274.31,R,A F Blakemore Son Ltd,No,,
Http://opendatacommunities.org/id/metropolitan-district-council/leeds,Leeds City Council,30/11/2017,City Development,Libraries  Arts & Heritage,Supplies and Services,Food & Drink,231,16/11/2017,1711- 00061,0.00,206.69,R,A F Blakemore Son Ltd,No,,
Http://opendatacommunities.org/id/metropolitan-district-council/leeds,Leeds City Council,30/11/2017,City Development,Libraries  Arts & Heritage,Supplies and Services,Food & Drink,231,16/11/2017,1711- 00062,0.00,171.42,R,A F Blakemore Son Ltd,No,,
Http://opendatacommunities.org/id/metropolitan-district-council/leeds,Leeds City Council,30/11/2017,City Development,Libraries  Arts & Heritage,Supplies and Services,Food & Drink,231,16/11/2017,1711- 00063,0.00,23.26,R,A F Blakemore Son Ltd,No,,
Http://opendatacommunities.org/id/metropolitan-district-council/leeds,Leeds City Council,30/11/2017,City Development,Libraries  Arts & Heritage,Supplies and Services,Food & Drink,231,16/11/2017,1711- 00064,0.00,132.96,R,A F Blakemore Son Ltd,No,,
Http://opendatacommunities.org/id/metropolitan-district-council/leeds,Leeds City Council,30/11/2017,Adults and Health,Services For Older People Under 65 P/Dis,Supplies and Services,Food & Drink,231,16/11/2017,1711- 00065,0.00,62.73,R,A F Blakemore Son Ltd,No,,
Http://opendatacommunities.org/id/metropolitan-district-council/leeds,Leeds City Council,30/11/2017,Communities and Environment,Parks and Countryside,Supplies and Services,Food & Drink,231,16/11/2017,1711- 00066,0.00,328.60,R,A F Blakemore Son Ltd,No,,
Http://opendatacommunities.org/id/metropolitan-district-council/leeds,Leeds City Council,30/11/2017,Communities and Environment,Parks and Countryside,Supplies and Services,Food & Drink,231,16/11/2017,1711- 00067,0.00,158.09,R,A F Blakemore Son Ltd,No,,
Http://opendatacommunities.org/id/metropolitan-district-council/leeds,Leeds City Council,30/11/2017,Resources and Housing,Commercial Services,Supplies and Services,Food & Drink,231,17/11/2017,1711- 00068,0.00,44346.73,R,A F Blakemore Son Ltd,No,,
Http://opendatacommunities.org/id/metropolitan-district-council/leeds,Leeds City Council,30/11/2017,Resources and Housing,Commercial Services,Supplies and Services,Food & Drink,231,17/11/2017,1711- 00069,0.00,30184.16,R,A F Blakemore Son Ltd,No,,
Http://opendatacommunities.org/id/metropolitan-district-council/leeds,Leeds City Council,30/11/2017,Children and Families,Safeguarding Targeted & Specialist,Supplies and Services,Food & Drink,231,17/11/2017,1711- 00070,0.00,100.10,R,A F Blakemore Son Ltd,No,,
Http://opendatacommunities.org/id/metropolitan-district-council/leeds,Leeds City Council,30/11/2017,Communities and Environment,Parks and Countryside,Supplies and Services,Food & Drink,231,17/11/2017,1711- 00071,0.00,220.26,R,A F Blakemore Son Ltd,No,,
Http://opendatacommunities.org/id/metropolitan-district-council/leeds,Leeds City Council,30/11/2017,Communities and Environment,Parks and Countryside,Supplies and Services,Food & Drink,231,17/11/2017,1711- 00072,0.00,166.48,R,A F Blakemore Son Ltd,No,,
Http://opendatacommunities.org/id/metropolitan-district-council/leeds,Leeds City Council,30/11/2017,Communities and Environment,Parks and Countryside,Supplies and Services,Food & Drink,231,17/11/2017,1711- 00073,0.00,305.89,R,A F Blakemore Son Ltd,No,,
Http://opendatacommunities.org/id/metropolitan-district-council/leeds,Leeds City Council,30/11/2017,Communities and Environment,Parks and Countryside,Supplies and Services,Food & Drink,231,20/11/2017,1711- 00074,0.00,188.09,R,A F Blakemore Son Ltd,No,,
Http://opendatacommunities.org/id/metropolitan-district-council/leeds,Leeds City Council,30/11/2017,Children and Families,Safeguarding Targeted & Specialist,Supplies and Services,Food & Drink,231,20/11/2017,1711- 00075,0.00,125.33,R,A F Blakemore Son Ltd,No,,
Http://opendatacommunities.org/id/metropolitan-district-council/leeds,Leeds City Council,30/11/2017,Children and Families,Safeguarding Targeted & Specialist,Supplies and Services,Food & Drink,231,20/11/2017,1711- 00076,0.00,68.33,R,A F Blakemore Son Ltd,No,,
Http://opendatacommunities.org/id/metropolitan-district-council/leeds,Leeds City Council,30/11/2017,Resources and Housing,Commercial Services,Supplies and Services,Food & Drink,231,22/11/2017,1711- 00077,0.00,28698.90,R,A F Blakemore Son Ltd,No,,
Http://opendatacommunities.org/id/metropolitan-district-council/leeds,Leeds City Council,30/11/2017,City Development,Libraries  Arts & Heritage,Supplies and Services,Food & Drink,231,23/11/2017,1711- 00078,0.00,154.93,R,A F Blakemore Son Ltd,No,,
Http://opendatacommunities.org/id/metropolitan-district-council/leeds,Leeds City Council,30/11/2017,City Development,Libraries  Arts & Heritage,Supplies and Services,Food & Drink,231,23/11/2017,1711- 00079,0.00,144.85,R,A F Blakemore Son Ltd,No,,
Http://opendatacommunities.org/id/metropolitan-district-council/leeds,Leeds City Council,30/11/2017,City Development,Libraries  Arts & Heritage,Supplies and Services,Food & Drink,231,23/11/2017,1711- 00080,0.00,15.00,R,A F Blakemore Son Ltd,No,,
Http://opendatacommunities.org/id/metropolitan-district-council/leeds,Leeds City Council,30/11/2017,City Development,Libraries  Arts & Heritage,Supplies and Services,Food & Drink,231,23/11/2017,1711- 00081,0.00,134.90,R,A F Blakemore Son Ltd,No,,
Http://opendatacommunities.org/id/metropolitan-district-council/leeds,Leeds City Council,30/11/2017,City Development,Libraries  Arts & Heritage,Supplies and Services,Food & Drink,231,23/11/2017,1711- 00082,0.00,145.70,R,A F Blakemore Son Ltd,No,,
Http://opendatacommunities.org/id/metropolitan-district-council/leeds,Leeds City Council,30/11/2017,City Development,Libraries  Arts & Heritage,Supplies and Services,Food & Drink,231,23/11/2017,1711- 00083,0.00,25.35,R,A F Blakemore Son Ltd,No,,
Http://opendatacommunities.org/id/metropolitan-district-council/leeds,Leeds City Council,30/11/2017,Communities and Environment,Parks and Countryside,Supplies and Services,Food & Drink,231,23/11/2017,1711- 00084,0.00,12.48,R,A F Blakemore Son Ltd,No,,
Http://opendatacommunities.org/id/metropolitan-district-council/leeds,Leeds City Council,30/11/2017,Communities and Environment,Parks and Countryside,Supplies and Services,Food & Drink,231,23/11/2017,1711- 00085,0.00,90.39,R,A F Blakemore Son Ltd,No,,
Http://opendatacommunities.org/id/metropolitan-district-council/leeds,Leeds City Council,30/11/2017,Communities and Environment,Parks and Countryside,Supplies and Services,Food & Drink,231,23/11/2017,1711- 00086,0.00,194.94,R,A F Blakemore Son Ltd,No,,
Http://opendatacommunities.org/id/metropolitan-district-council/leeds,Leeds City Council,30/11/2017,Communities and Environment,Parks and Countryside,Supplies and Services,Food & Drink,231,23/11/2017,1711- 00087,0.00,293.34,R,A F Blakemore Son Ltd,No,,
Http://opendatacommunities.org/id/metropolitan-district-council/leeds,Leeds City Council,30/11/2017,City Development,Libraries  Arts & Heritage,Supplies and Services,Food & Drink,231,24/11/2017,1711- 00088,0.00,18.01,R,A F Blakemore Son Ltd,No,,
Http://opendatacommunities.org/id/metropolitan-district-council/leeds,Leeds City Council,30/11/2017,Communities and Environment,Parks and Countryside,Supplies and Services,Food & Drink,231,24/11/2017,1711- 00089,0.00,102.88,R,A F Blakemore Son Ltd,No,,
Http://opendatacommunities.org/id/metropolitan-district-council/leeds,Leeds City Council,30/11/2017,City Development,Libraries  Arts & Heritage,Supplies and Services,Food & Drink,231,24/11/2017,1711- 00090,0.00,180.09,R,A F Blakemore Son Ltd,No,,
Http://opendatacommunities.org/id/metropolitan-district-council/leeds,Leeds City Council,30/11/2017,Children and Families,Safeguarding Targeted & Specialist,Supplies and Services,Food & Drink,231,27/11/2017,1711- 00091,0.00,28.43,R,A F Blakemore Son Ltd,No,,
Http://opendatacommunities.org/id/metropolitan-district-council/leeds,Leeds City Council,30/11/2017,Children and Families,Safeguarding Targeted & Specialist,Supplies and Services,Food & Drink,231,27/11/2017,1711- 00092,0.00,11.22,R,A F Blakemore Son Ltd,No,,
Http://opendatacommunities.org/id/metropolitan-district-council/leeds,Leeds City Council,30/11/2017,Children and Families,Safeguarding Targeted & Specialist,Supplies and Services,Food & Drink,231,27/11/2017,1711- 00093,0.00,23.46,R,A F Blakemore Son Ltd,No,,
Http://opendatacommunities.org/id/metropolitan-district-council/leeds,Leeds City Council,30/11/2017,Children and Families,Safeguarding Targeted & Specialist,Supplies and Services,Food & Drink,231,27/11/2017,1711- 00094,0.00,25.00,R,A F Blakemore Son Ltd,No,,
Http://opendatacommunities.org/id/metropolitan-district-council/leeds,Leeds City Council,30/11/2017,Children and Families,Safeguarding Targeted & Specialist,Supplies and Services,Food & Drink,231,27/11/2017,1711- 00095,0.00,-4.44,R,A F Blakemore Son Ltd,No,,
Http://opendatacommunities.org/id/metropolitan-district-council/leeds,Leeds City Council,30/11/2017,Children and Families,Safeguarding Targeted & Specialist,Supplies and Services,Food & Drink,231,27/11/2017,1711- 00096,0.00,52.74,R,A F Blakemore Son Ltd,No,,
Http://opendatacommunities.org/id/metropolitan-district-council/leeds,Leeds City Council,30/11/2017,Children and Families,Safeguarding Targeted & Specialist,Supplies and Services,Food & Drink,231,27/11/2017,1711- 00097,0.00,60.08,R,A F Blakemore Son Ltd,No,,
Http://opendatacommunities.org/id/metropolitan-district-council/leeds,Leeds City Council,30/11/2017,Children and Families,Safeguarding Targeted & Specialist,Supplies and Services,Food & Drink,231,27/11/2017,1711- 00098,0.00,22.68,R,A F Blakemore Son Ltd,No,,
Http://opendatacommunities.org/id/metropolitan-district-council/leeds,Leeds City Council,30/11/2017,Children and Families,Safeguarding Targeted & Specialist,Supplies and Services,Food & Drink,231,27/11/2017,1711- 00099,0.00,50.17,R,A F Blakemore Son Ltd,No,,
Http://opendatacommunities.org/id/metropolitan-district-council/leeds,Leeds City Council,30/11/2017,Children and Families,Safeguarding Targeted & Specialist,Supplies and Services,Food & Drink,231,27/11/2017,1711- 00100,0.00,53.44,R,A F Blakemore Son Ltd,No,,
Http://opendatacommunities.org/id/metropolitan-district-council/leeds,Leeds City Council,30/11/2017,Children and Families,Safeguarding Targeted & Specialist,Supplies and Services,Food & Drink,231,27/11/2017,1711- 00101,0.00,159.63,R,A F Blakemore Son Ltd,No,,
Http://opendatacommunities.org/id/metropolitan-district-council/leeds,Leeds City Council,30/11/2017,Communities and Environment,Parks and Countryside,Supplies and Services,Food & Drink,231,29/11/2017,1711- 00102,0.00,189.94,R,A F Blakemore Son Ltd,No,,
Http://opendatacommunities.org/id/metropolitan-district-council/leeds,Leeds City Council,30/11/2017,Resources and Housing,Commercial Services,Supplies and Services,Food & Drink,231,30/11/2017,1711- 00103,0.00,617.06,R,A F Blakemore Son Ltd,No,,
Http://opendatacommunities.org/id/metropolitan-district-council/leeds,Leeds City Council,30/11/2017,Communities and Environment,Parks and Countryside,Supplies and Services,Food & Drink,231,30/11/2017,1711- 00104,0.00,8.99,R,A F Blakemore Son Ltd,No,,
Http://opendatacommunities.org/id/metropolitan-district-council/leeds,Leeds City Council,30/11/2017,City Development,Libraries  Arts & Heritage,Supplies and Services,Food & Drink,231,30/11/2017,1711- 00105,0.00,187.85,R,A F Blakemore Son Ltd,No,,
Http://opendatacommunities.org/id/metropolitan-district-council/leeds,Leeds City Council,30/11/2017,City Development,Libraries  Arts & Heritage,Supplies and Services,Food & Drink,231,30/11/2017,1711- 00106,0.00,3.90,R,A F Blakemore Son Ltd,No,,
Http://opendatacommunities.org/id/metropolitan-district-council/leeds,Leeds City Council,30/11/2017,City Development,Libraries  Arts & Heritage,Supplies and Services,Food & Drink,231,30/11/2017,1711- 00107,0.00,32.95,R,A F Blakemore Son Ltd,No,,
Http://opendatacommunities.org/id/metropolitan-district-council/leeds,Leeds City Council,30/11/2017,Communities and Environment,Parks and Countryside,Supplies and Services,Food & Drink,231,30/11/2017,1711- 00108,0.00,353.72,R,A F Blakemore Son Ltd,No,,
Http://opendatacommunities.org/id/metropolitan-district-council/leeds,Leeds City Council,30/11/2017,Communities and Environment,Parks and Countryside,Supplies and Services,Food & Drink,231,30/11/2017,1711- 00109,0.00,142.29,R,A F Blakemore Son Ltd,No,,
Http://opendatacommunities.org/id/metropolitan-district-council/leeds,Leeds City Council,30/11/2017,Resources and Housing,HRA Housing Leeds,Capital,Other Costs,7,09/11/2017,1711- 00110,0.00,249.22,C,REDACTED PERSONAL DATA,No,,
Http://opendatacommunities.org/id/metropolitan-district-council/leeds,Leeds City Council,30/11/2017,Resources and Housing,Leeds Building Services,Supplies and Services,Operational Materials,205,03/11/2017,1711- 00111,0.00,220.19,R,A J H  Pump Supply & Repair Ltd,No,,
Http://opendatacommunities.org/id/metropolitan-district-council/leeds,Leeds City Council,30/11/2017,Resources and Housing,Leeds Building Services,Supplies and Services,Operational Materials,205,03/11/2017,1711- 00112,0.00,76.06,R,A J H  Pump Supply & Repair Ltd,No,,
Http://opendatacommunities.org/id/metropolitan-district-council/leeds,Leeds City Council,30/11/2017,Resources and Housing,Leeds Building Services,Supplies and Services,Operational Materials,205,03/11/2017,1711- 00113,0.00,295.00,R,A J H  Pump Supply & Repair Ltd,No,,
Http://opendatacommunities.org/id/metropolitan-district-council/leeds,Leeds City Council,30/11/2017,Resources and Housing,Leeds Building Services,Supplies and Services,Operational Materials,205,03/11/2017,1711- 00114,0.00,382.78,R,A J H  Pump Supply & Repair Ltd,No,,
Http://opendatacommunities.org/id/metropolitan-district-council/leeds,Leeds City Council,30/11/2017,Resources and Housing,Leeds Building Services,Supplies and Services,Operational Materials,205,03/11/2017,1711- 00115,0.00,25.00,R,A J H  Pump Supply & Repair Ltd,No,,
Http://opendatacommunities.org/id/metropolitan-district-council/leeds,Leeds City Council,30/11/2017,Resources and Housing,Leeds Building Services,Supplies and Services,Operational Materials,205,03/11/2017,1711- 00116,0.00,125.00,R,A J H  Pump Supply & Repair Ltd,No,,
Http://opendatacommunities.org/id/metropolitan-district-council/leeds,Leeds City Council,30/11/2017,Resources and Housing,Leeds Building Services,Supplies and Services,Operational Materials,205,03/11/2017,1711- 00117,0.00,742.00,R,A J H  Pump Supply & Repair Ltd,No,,
Http://opendatacommunities.org/id/metropolitan-district-council/leeds,Leeds City Council,30/11/2017,Resources and Housing,Leeds Building Services,Supplies and Services,Operational Materials,205,03/11/2017,1711- 00118,0.00,51.00,R,A J H  Pump Supply & Repair Ltd,No,,
Http://opendatacommunities.org/id/metropolitan-district-council/leeds,Leeds City Council,30/11/2017,Resources and Housing,Leeds Building Services,Supplies and Services,Operational Materials,205,03/11/2017,1711- 00119,0.00,250.00,R,A J H  Pump Supply & Repair Ltd,No,,
Http://opendatacommunities.org/id/metropolitan-district-council/leeds,Leeds City Council,30/11/2017,Resources and Housing,Leeds Building Services,Supplies and Services,Operational Materials,205,03/11/2017,1711- 00120,0.00,143.15,R,A J H  Pump Supply & Repair Ltd,No,,
Http://opendatacommunities.org/id/metropolitan-district-council/leeds,Leeds City Council,30/11/2017,Resources and Housing,Leeds Building Services,Supplies and Services,Operational Materials,205,03/11/2017,1711- 00121,0.00,261.00,R,A J H  Pump Supply & Repair Ltd,No,,
Http://opendatacommunities.org/id/metropolitan-district-council/leeds,Leeds City Council,30/11/2017,Resources and Housing,Leeds Building Services,Supplies and Services,Operational Materials,205,03/11/2017,1711- 00122,0.00,216.34,R,A J H  Pump Supply & Repair Ltd,No,,
Http://opendatacommunities.org/id/metropolitan-district-council/leeds,Leeds City Council,30/11/2017,Resources and Housing,Leeds Building Services,Supplies and Services,Operational Materials,205,03/11/2017,1711- 00123,0.00,107.80,R,A J H  Pump Supply & Repair Ltd,No,,
Http://opendatacommunities.org/id/metropolitan-district-council/leeds,Leeds City Council,30/11/2017,Resources and Housing,Leeds Building Services,Supplies and Services,Operational Materials,205,03/11/2017,1711- 00124,0.00,472.79,R,A J H  Pump Supply & Repair Ltd,No,,
Http://opendatacommunities.org/id/metropolitan-district-council/leeds,Leeds City Council,30/11/2017,Resources and Housing,Leeds Building Services,Supplies and Services,Operational Materials,205,07/11/2017,1711- 00125,0.00,404.50,R,A J H  Pump Supply & Repair Ltd,No,,
Http://opendatacommunities.org/id/metropolitan-district-council/leeds,Leeds City Council,30/11/2017,Resources and Housing,Leeds Building Services,Supplies and Services,Operational Materials,205,13/11/2017,1711- 00126,0.00,578.00,R,A J H  Pump Supply & Repair Ltd,No,,
Http://opendatacommunities.org/id/metropolitan-district-council/leeds,Leeds City Council,30/11/2017,Resources and Housing,Leeds Building Services,Supplies and Services,Operational Materials,205,16/11/2017,1711- 00127,0.00,515.85,R,A J H  Pump Supply & Repair Ltd,No,,
Http://opendatacommunities.org/id/metropolitan-district-council/leeds,Leeds City Council,30/11/2017,Resources and Housing,Leeds Building Services,Supplies and Services,Operational Materials,205,20/11/2017,1711- 00128,0.00,315.00,R,A J H  Pump Supply & Repair Ltd,No,,
Http://opendatacommunities.org/id/metropolitan-district-council/leeds,Leeds City Council,30/11/2017,Resources and Housing,Leeds Building Services,Supplies and Services,Operational Materials,205,20/11/2017,1711- 00129,0.00,618.25,R,A J H  Pump Supply & Repair Ltd,No,,
Http://opendatacommunities.org/id/metropolitan-district-council/leeds,Leeds City Council,30/11/2017,Resources and Housing,Leeds Building Services,Supplies and Services,Operational Materials,205,20/11/2017,1711- 00130,0.00,115.00,R,A J H  Pump Supply & Repair Ltd,No,,
Http://opendatacommunities.org/id/metropolitan-district-council/leeds,Leeds City Council,30/11/2017,Resources and Housing,Leeds Building Services,Supplies and Services,Operational Materials,205,20/11/2017,1711- 00131,0.00,38.67,R,A J H  Pump Supply & Repair Ltd,No,,
Http://opendatacommunities.org/id/metropolitan-district-council/leeds,Leeds City Council,30/11/2017,Resources and Housing,Leeds Building Services,Supplies and Services,Operational Materials,205,20/11/2017,1711- 00132,0.00,492.00,R,A J H  Pump Supply & Repair Ltd,No,,
Http://opendatacommunities.org/id/metropolitan-district-council/leeds,Leeds City Council,30/11/2017,Resources and Housing,Leeds Building Services,Supplies and Services,Operational Materials,205,20/11/2017,1711- 00133,0.00,45.79,R,A J H  Pump Supply & Repair Ltd,No,,
Http://opendatacommunities.org/id/metropolitan-district-council/leeds,Leeds City Council,30/11/2017,Resources and Housing,Leeds Building Services,Supplies and Services,Operational Materials,205,20/11/2017,1711- 00134,0.00,129.25,R,A J H  Pump Supply & Repair Ltd,No,,
Http://opendatacommunities.org/id/metropolitan-district-council/leeds,Leeds City Council,30/11/2017,Resources and Housing,Leeds Building Services,Supplies and Services,Operational Materials,205,20/11/2017,1711- 00135,0.00,39.00,R,A J H  Pump Supply & Repair Ltd,No,,
Http://opendatacommunities.org/id/metropolitan-district-council/leeds,Leeds City Council,30/11/2017,Resources and Housing,Leeds Building Services,Supplies and Services,Operational Materials,205,20/11/2017,1711- 00136,0.00,91.69,R,A J H  Pump Supply & Repair Ltd,No,,
Http://opendatacommunities.org/id/metropolitan-district-council/leeds,Leeds City Council,30/11/2017,Resources and Housing,Leeds Building Services,Supplies and Services,Operational Materials,205,20/11/2017,1711- 00137,0.00,108.75,R,A J H  Pump Supply & Repair Ltd,No,,
Http://opendatacommunities.org/id/metropolitan-district-council/leeds,Leeds City Council,30/11/2017,Resources and Housing,Leeds Building Services,Supplies and Services,Operational Materials,205,20/11/2017,1711- 00138,0.00,95.15,R,A J H  Pump Supply & Repair Ltd,No,,
Http://opendatacommunities.org/id/metropolitan-district-council/leeds,Leeds City Council,30/11/2017,Resources and Housing,Leeds Building Services,Supplies and Services,Operational Materials,205,20/11/2017,1711- 00139,0.00,79.00,R,A J H  Pump Supply & Repair Ltd,No,,
Http://opendatacommunities.org/id/metropolitan-district-council/leeds,Leeds City Council,30/11/2017,Resources and Housing,Leeds Building Services,Supplies and Services,Operational Materials,205,20/11/2017,1711- 00140,0.00,323.00,R,A J H  Pump Supply & Repair Ltd,No,,
Http://opendatacommunities.org/id/metropolitan-district-council/leeds,Leeds City Council,30/11/2017,Resources and Housing,Leeds Building Services,Supplies and Services,Operational Materials,205,20/11/2017,1711- 00141,0.00,36.53,R,A J H  Pump Supply & Repair Ltd,No,,
Http://opendatacommunities.org/id/metropolitan-district-council/leeds,Leeds City Council,30/11/2017,Resources and Housing,Leeds Building Services,Supplies and Services,Operational Materials,205,20/11/2017,1711- 00142,0.00,13.50,R,A J H  Pump Supply & Repair Ltd,No,,
Http://opendatacommunities.org/id/metropolitan-district-council/leeds,Leeds City Council,30/11/2017,Resources and Housing,Leeds Building Services,Supplies and Services,Operational Materials,205,20/11/2017,1711- 00143,0.00,179.65,R,A J H  Pump Supply & Repair Ltd,No,,
Http://opendatacommunities.org/id/metropolitan-district-council/leeds,Leeds City Council,30/11/2017,Resources and Housing,Leeds Building Services,Supplies and Services,Operational Materials,205,20/11/2017,1711- 00144,0.00,47.09,R,A J H  Pump Supply & Repair Ltd,No,,
Http://opendatacommunities.org/id/metropolitan-district-council/leeds,Leeds City Council,30/11/2017,Resources and Housing,Leeds Building Services,Supplies and Services,Operational Materials,205,20/11/2017,1711- 00145,0.00,46.78,R,A J H  Pump Supply & Repair Ltd,No,,
Http://opendatacommunities.org/id/metropolitan-district-council/leeds,Leeds City Council,30/11/2017,Resources and Housing,Leeds Building Services,Supplies and Services,Operational Materials,205,20/11/2017,1711- 00146,0.00,287.90,R,A J H  Pump Supply & Repair Ltd,No,,
Http://opendatacommunities.org/id/metropolitan-district-council/leeds,Leeds City Council,30/11/2017,Resources and Housing,Leeds Building Services,Supplies and Services,Operational Materials,205,20/11/2017,1711- 00147,0.00,20.60,R,A J H  Pump Supply & Repair Ltd,No,,
Http://opendatacommunities.org/id/metropolitan-district-council/leeds,Leeds City Council,30/11/2017,Resources and Housing,Leeds Building Services,Supplies and Services,Stores - Central And Other Depots,005,22/11/2017,1711- 00148,0.00,-252.74,R,A J H  Pump Supply & Repair Ltd,No,,
Http://opendatacommunities.org/id/metropolitan-district-council/leeds,Leeds City Council,30/11/2017,Resources and Housing,Leeds Building Services,Supplies and Services,Stores - Central And Other Depots,005,22/11/2017,1711- 00149,0.00,252.74,R,A J H  Pump Supply & Repair Ltd,No,,
Http://opendatacommunities.org/id/metropolitan-district-council/leeds,Leeds City Council,30/11/2017,Resources and Housing,Leeds Building Services,Supplies and Services,Operational Materials,205,23/11/2017,1711- 00150,0.00,153.15,R,A J H  Pump Supply & Repair Ltd,No,,
Http://opendatacommunities.org/id/metropolitan-district-council/leeds,Leeds City Council,30/11/2017,Resources and Housing,Leeds Building Services,Supplies and Services,Operational Materials,205,24/11/2017,1711- 00151,0.00,119.88,R,A J H  Pump Supply & Repair Ltd,No,,
Http://opendatacommunities.org/id/metropolitan-district-council/leeds,Leeds City Council,30/11/2017,Resources and Housing,Leeds Building Services,Supplies and Services,Operational Materials,205,24/11/2017,1711- 00152,0.00,114.00,R,A J H  Pump Supply & Repair Ltd,No,,
Http://opendatacommunities.org/id/metropolitan-district-council/leeds,Leeds City Council,30/11/2017,Resources and Housing,Leeds Building Services,Supplies and Services,Operational Materials,205,24/11/2017,1711- 00153,0.00,73.58,R,A J H  Pump Supply & Repair Ltd,No,,
Http://opendatacommunities.org/id/metropolitan-district-council/leeds,Leeds City Council,30/11/2017,Resources and Housing,Leeds Building Services,Supplies and Services,Operational Materials,205,24/11/2017,1711- 00154,0.00,38.95,R,A J H  Pump Supply & Repair Ltd,No,,
Http://opendatacommunities.org/id/metropolitan-district-council/leeds,Leeds City Council,30/11/2017,Resources and Housing,Leeds Building Services,Supplies and Services,Operational Materials,205,24/11/2017,1711- 00155,0.00,204.02,R,A J H  Pump Supply & Repair Ltd,No,,
Http://opendatacommunities.org/id/metropolitan-district-council/leeds,Leeds City Council,30/11/2017,Resources and Housing,Leeds Building Services,Supplies and Services,Operational Materials,205,24/11/2017,1711- 00156,0.00,107.50,R,A J H  Pump Supply & Repair Ltd,No,,
Http://opendatacommunities.org/id/metropolitan-district-council/leeds,Leeds City Council,30/11/2017,Resources and Housing,Leeds Building Services,Supplies and Services,Operational Materials,205,24/11/2017,1711- 00157,0.00,69.63,R,A J H  Pump Supply & Repair Ltd,No,,
Http://opendatacommunities.org/id/metropolitan-district-council/leeds,Leeds City Council,30/11/2017,Resources and Housing,Leeds Building Services,Supplies and Services,Operational Materials,205,24/11/2017,1711- 00158,0.00,84.00,R,A J H  Pump Supply & Repair Ltd,No,,
Http://opendatacommunities.org/id/metropolitan-district-council/leeds,Leeds City Council,30/11/2017,Resources and Housing,Leeds Building Services,Supplies and Services,Operational Materials,205,24/11/2017,1711- 00159,0.00,732.00,R,A J H  Pump Supply & Repair Ltd,No,,
Http://opendatacommunities.org/id/metropolitan-district-council/leeds,Leeds City Council,30/11/2017,Resources and Housing,Leeds Building Services,Supplies and Services,Operational Materials,205,24/11/2017,1711- 00160,0.00,123.50,R,A J H  Pump Supply & Repair Ltd,No,,
Http://opendatacommunities.org/id/metropolitan-district-council/leeds,Leeds City Council,30/11/2017,Resources and Housing,Leeds Building Services,Supplies and Services,Operational Materials,205,24/11/2017,1711- 00161,0.00,21.50,R,A J H  Pump Supply & Repair Ltd,No,,
Http://opendatacommunities.org/id/metropolitan-district-council/leeds,Leeds City Council,30/11/2017,Resources and Housing,Leeds Building Services,Supplies and Services,Operational Materials,205,24/11/2017,1711- 00162,0.00,74.95,R,A J H  Pump Supply & Repair Ltd,No,,
Http://opendatacommunities.org/id/metropolitan-district-council/leeds,Leeds City Council,30/11/2017,Resources and Housing,Leeds Building Services,Supplies and Services,Operational Materials,205,24/11/2017,1711- 00163,0.00,225.85,R,A J H  Pump Supply & Repair Ltd,No,,
Http://opendatacommunities.org/id/metropolitan-district-council/leeds,Leeds City Council,30/11/2017,Resources and Housing,Leeds Building Services,Supplies and Services,Operational Materials,205,24/11/2017,1711- 00164,0.00,178.00,R,A J H  Pump Supply & Repair Ltd,No,,
Http://opendatacommunities.org/id/metropolitan-district-council/leeds,Leeds City Council,30/11/2017,Resources and Housing,Leeds Building Services,Supplies and Services,Operational Materials,205,27/11/2017,1711- 00165,0.00,96.68,R,A J H  Pump Supply & Repair Ltd,No,,
Http://opendatacommunities.org/id/metropolitan-district-council/leeds,Leeds City Council,30/11/2017,Resources and Housing,Leeds Building Services,Supplies and Services,Operational Materials,205,27/11/2017,1711- 00166,0.00,76.00,R,A J H  Pump Supply & Repair Ltd,No,,
Http://opendatacommunities.org/id/metropolitan-district-council/leeds,Leeds City Council,30/11/2017,Resources and Housing,Leeds Building Services,Supplies and Services,Operational Materials,205,27/11/2017,1711- 00167,0.00,393.00,R,A J H  Pump Supply & Repair Ltd,No,,
Http://opendatacommunities.org/id/metropolitan-district-council/leeds,Leeds City Council,30/11/2017,Resources and Housing,Leeds Building Services,Supplies and Services,Operational Materials,205,27/11/2017,1711- 00168,0.00,33.00,R,A J H  Pump Supply & Repair Ltd,No,,
Http://opendatacommunities.org/id/metropolitan-district-council/leeds,Leeds City Council,30/11/2017,Resources and Housing,Leeds Building Services,Supplies and Services,Operational Materials,205,27/11/2017,1711- 00169,0.00,78.00,R,A J H  Pump Supply & Repair Ltd,No,,
Http://opendatacommunities.org/id/metropolitan-district-council/leeds,Leeds City Council,30/11/2017,Resources and Housing,Leeds Building Services,Supplies and Services,Operational Materials,205,27/11/2017,1711- 00170,0.00,43.00,R,A J H  Pump Supply & Repair Ltd,No,,
Http://opendatacommunities.org/id/metropolitan-district-council/leeds,Leeds City Council,30/11/2017,Resources and Housing,Leeds Building Services,Supplies and Services,Operational Materials,205,27/11/2017,1711- 00171,0.00,95.00,R,A J H  Pump Supply & Repair Ltd,No,,
Http://opendatacommunities.org/id/metropolitan-district-council/leeds,Leeds City Council,30/11/2017,Resources and Housing,Leeds Building Services,Supplies and Services,Operational Materials,205,27/11/2017,1711- 00172,0.00,479.95,R,A J H  Pump Supply & Repair Ltd,No,,
Http://opendatacommunities.org/id/metropolitan-district-council/leeds,Leeds City Council,30/11/2017,Resources and Housing,Leeds Building Services,Supplies and Services,Operational Materials,205,27/11/2017,1711- 00173,0.00,613.07,R,A J H  Pump Supply & Repair Ltd,No,,
Http://opendatacommunities.org/id/metropolitan-district-council/leeds,Leeds City Council,30/11/2017,Resources and Housing,Leeds Building Services,Supplies and Services,Operational Materials,205,27/11/2017,1711- 00174,0.00,67.25,R,A J H  Pump Supply & Repair Ltd,No,,
Http://opendatacommunities.org/id/metropolitan-district-council/leeds,Leeds City Council,30/11/2017,Resources and Housing,Leeds Building Services,Supplies and Services,Operational Materials,205,27/11/2017,1711- 00175,0.00,61.38,R,A J H  Pump Supply & Repair Ltd,No,,
Http://opendatacommunities.org/id/metropolitan-district-council/leeds,Leeds City Council,30/11/2017,Resources and Housing,Leeds Building Services,Supplies and Services,Operational Materials,205,27/11/2017,1711- 00176,0.00,128.95,R,A J H  Pump Supply & Repair Ltd,No,,
Http://opendatacommunities.org/id/metropolitan-district-council/leeds,Leeds City Council,30/11/2017,Resources and Housing,Leeds Building Services,Supplies and Services,Operational Materials,205,27/11/2017,1711- 00177,0.00,208.57,R,A J H  Pump Supply & Repair Ltd,No,,
Http://opendatacommunities.org/id/metropolitan-district-council/leeds,Leeds City Council,30/11/2017,Resources and Housing,Leeds Building Services,Supplies and Services,Operational Materials,205,27/11/2017,1711- 00178,0.00,98.81,R,A J H  Pump Supply & Repair Ltd,No,,
Http://opendatacommunities.org/id/metropolitan-district-council/leeds,Leeds City Council,30/11/2017,Resources and Housing,Leeds Building Services,Supplies and Services,Operational Materials,205,27/11/2017,1711- 00179,0.00,115.00,R,A J H  Pump Supply & Repair Ltd,No,,
Http://opendatacommunities.org/id/metropolitan-district-council/leeds,Leeds City Council,30/11/2017,Resources and Housing,Leeds Building Services,Supplies and Services,Operational Materials,205,27/11/2017,1711- 00180,0.00,960.00,R,A J H  Pump Supply & Repair Ltd,No,,
Http://opendatacommunities.org/id/metropolitan-district-council/leeds,Leeds City Council,30/11/2017,Resources and Housing,Leeds Building Services,Supplies and Services,Operational Materials,205,27/11/2017,1711- 00181,0.00,32.50,R,A J H  Pump Supply & Repair Ltd,No,,
Http://opendatacommunities.org/id/metropolitan-district-council/leeds,Leeds City Council,30/11/2017,Resources and Housing,Leeds Building Services,Supplies and Services,Operational Materials,205,27/11/2017,1711- 00182,0.00,105.00,R,A J H  Pump Supply & Repair Ltd,No,,
Http://opendatacommunities.org/id/metropolitan-district-council/leeds,Leeds City Council,30/11/2017,Resources and Housing,Leeds Building Services,Supplies and Services,Operational Materials,205,27/11/2017,1711- 00183,0.00,360.00,R,A J H  Pump Supply & Repair Ltd,No,,
Http://opendatacommunities.org/id/metropolitan-district-council/leeds,Leeds City Council,30/11/2017,Resources and Housing,Leeds Building Services,Supplies and Services,Operational Materials,205,27/11/2017,1711- 00184,0.00,208.95,R,A J H  Pump Supply & Repair Ltd,No,,
Http://opendatacommunities.org/id/metropolitan-district-council/leeds,Leeds City Council,30/11/2017,Communities and Environment,Customer Access,Supplies and Services,Resaleable Materials,204,02/11/2017,1711- 00185,0.00,46.50,R,A J Promotions,No,,
Http://opendatacommunities.org/id/metropolitan-district-council/leeds,Leeds City Council,30/11/2017,City Development,Libraries  Arts & Heritage,Supplies and Services,Art Galleries Total Stores,003,24/11/2017,1711- 00186,0.00,342.51,R,A J Promotions,No,,
Http://opendatacommunities.org/id/metropolitan-district-council/leeds,Leeds City Council,30/11/2017,Resources and Housing,HRA Housing Leeds,Capital,Other Costs,7,02/11/2017,1711- 00187,0.00,300.00,C,REDACTED PERSONAL DATA,No,,
Http://opendatacommunities.org/id/metropolitan-district-council/leeds,Leeds City Council,30/11/2017,Adults and Health,Public Health,Third Party Payments,Public Health Commissioned Services,526,01/11/2017,1711- 00188,0.00,138.00,R,A Khan & K Muneer,No,,
Http://opendatacommunities.org/id/metropolitan-district-council/leeds,Leeds City Council,30/11/2017,Communities and Environment,Customer Access,Supplies and Services,Other Hired And Contracted Services,265,02/11/2017,1711- 00189,0.00,46.50,R,A Musalam,No,,
Http://opendatacommunities.org/id/metropolitan-district-council/leeds,Leeds City Council,30/11/2017,Communities and Environment,Customer Access,Supplies and Services,Other Hired And Contracted Services,265,30/11/2017,1711- 00190,0.00,45.00,R,A Musalam,No,,
Http://opendatacommunities.org/id/metropolitan-district-council/leeds,Leeds City Council,30/11/2017,Communities and Environment,Customer Access,Supplies and Services,Other Hired And Contracted Services,265,03/11/2017,1711- 00191,0.00,531.25,R,A Namaki,No,,
Http://opendatacommunities.org/id/metropolitan-district-council/leeds,Leeds City Council,30/11/2017,Communities and Environment,Parks and Countryside,Supplies and Services,Operational Materials,205,10/11/2017,1711- 00192,0.00,163.50,R,A Newton,No,,
Http://opendatacommunities.org/id/metropolitan-district-council/leeds,Leeds City Council,30/11/2017,Resources and Housing,Shared Services,Supplies and Services,Other Hired And Contracted Services,265,07/11/2017,1711- 00193,0.00,46.25,R,A Star Couriers Ltd,No,,
Http://opendatacommunities.org/id/metropolitan-district-council/leeds,Leeds City Council,30/11/2017,Resources and Housing,Shared Services,Supplies and Services,Other Hired And Contracted Services,265,14/11/2017,1711- 00194,0.00,35.00,R,A Star Couriers Ltd,No,,
Http://opendatacommunities.org/id/metropolitan-district-council/leeds,Leeds City Council,30/11/2017,Resources and Housing,Shared Services,Supplies and Services,Other Hired And Contracted Services,265,29/11/2017,1711- 00195,0.00,35.00,R,A Star Couriers Ltd,No,,
Http://opendatacommunities.org/id/metropolitan-district-council/leeds,Leeds City Council,30/11/2017,Resources and Housing,Strategy And Improvement  ,Supplies and Services,Schools Examination Entry Fees,269,15/10/2017,1711- 00196,0.00,16.52,R,A Tea Shop In The Mixc,Yes,,
Http://opendatacommunities.org/id/metropolitan-district-council/leeds,Leeds City Council,30/11/2017,Communities and Environment,Waste Management,Supplies and Services,Office Consumables,210,02/11/2017,1711- 00197,0.00,7663.50,R,A&C Weber Uk Ltd,No,,
Http://opendatacommunities.org/id/metropolitan-district-council/leeds,Leeds City Council,30/11/2017,Communities and Environment,Waste Management,Capital,Furniture And Equipment,5,22/11/2017,1711- 00198,0.00,13560.00,C,A&C Weber Uk Ltd,No,,
Http://opendatacommunities.org/id/metropolitan-district-council/leeds,Leeds City Council,30/11/2017,Resources and Housing,Leeds Building Services,Supplies and Services,Other Hired And Contracted Services,265,14/11/2017,1711- 00199,0.00,1836.50,R,A1 Bridge Flue Systems,No,,
Http://opendatacommunities.org/id/metropolitan-district-council/leeds,Leeds City Council,30/11/2017,Resources and Housing,Leeds Building Services,Supplies and Services,Other Hired And Contracted Services,265,28/11/2017,1711- 00200,0.00,550.00,R,A1 Stair Lift Services,No,,
Http://opendatacommunities.org/id/metropolitan-district-council/leeds,Leeds City Council,30/11/2017,Resources and Housing,Leeds Building Services,Supplies and Services,Other Hired And Contracted Services,265,28/11/2017,1711- 00201,0.00,550.00,R,A1 Stair Lift Services,No,,
Http://opendatacommunities.org/id/metropolitan-district-council/leeds,Leeds City Council,30/11/2017,Resources and Housing,Leeds Building Services,Supplies and Services,Other Hired And Contracted Services,265,28/11/2017,1711- 00202,0.00,550.00,R,A1 Stair Lift Services,No,,
Http://opendatacommunities.org/id/metropolitan-district-council/leeds,Leeds City Council,30/11/2017,Resources and Housing,Leeds Building Services,Supplies and Services,Operational Materials,205,27/11/2017,1711- 00203,0.00,181.00,R,Aalco Leeds,No,,
Http://opendatacommunities.org/id/metropolitan-district-council/leeds,Leeds City Council,30/11/2017,Children and Families,Safeguarding Targeted & Specialist  ,Supplies and Services,Operational Materials,205,04/10/2017,1711- 00204,0.00,121.92,R,Aardvark Archery,Yes,,
Http://opendatacommunities.org/id/metropolitan-district-council/leeds,Leeds City Council as Accountable Body,30/11/2017,Social Services Pooled Budgets,Leeds Community Equip Store Pooled Budgt,Supplies and Services,Other Equipment,203,15/11/2017,1711- 00205,0.00,1145.00,R,Aat (Gb) Ltd,No,,
Http://opendatacommunities.org/id/metropolitan-district-council/leeds,Leeds City Council,30/11/2017,Adults and Health,Social Services Support Services,Transport,Public Transport Expenses,310,02/11/2017,1711- 00206,0.00,476.00,R,Ab Cars (Garforth) Ltd,No,,
Http://opendatacommunities.org/id/metropolitan-district-council/leeds,Leeds City Council,30/11/2017,Communities and Environment,Community Safety  ,Supplies and Services,Office Consumables,210,10/10/2017,1711- 00207,0.00,420.00,R,Ab Print Group Ltd,Yes,,
Http://opendatacommunities.org/id/metropolitan-district-council/leeds,Leeds City Council,30/11/2017,City Development,Planning & Sustainable Development,Supplies and Services,Postages,212,01/11/2017,1711- 00208,0.00,67.50,R,Abacus Express Limited,No,,
Http://opendatacommunities.org/id/metropolitan-district-council/leeds,Leeds City Council,30/11/2017,City Development,Planning & Sustainable Development,Supplies and Services,Other Hired And Contracted Services,265,01/11/2017,1711- 00209,0.00,36.24,R,Abacus Express Limited,No,,
Http://opendatacommunities.org/id/metropolitan-district-council/leeds,Leeds City Council,30/11/2017,City Development,Highways,Supplies and Services,Postages,212,07/11/2017,1711- 00210,0.00,15.59,R,Abacus Express Limited,No,,
Http://opendatacommunities.org/id/metropolitan-district-council/leeds,Leeds City Council,30/11/2017,Communities and Environment,Communities,Support Services,Legal Disbursements,411,15/11/2017,1711- 00211,0.00,31.02,R,Abacus Express Limited,No,,
Http://opendatacommunities.org/id/metropolitan-district-council/leeds,Leeds City Council,30/11/2017,Children and Families,Safeguarding Targeted & Specialist,Support Services,Legal Disbursements,411,15/11/2017,1711- 00212,0.00,31.02,R,Abacus Express Limited,No,,
Http://opendatacommunities.org/id/metropolitan-district-council/leeds,Leeds City Council,30/11/2017,Children and Families,Safeguarding Targeted & Specialist,Support Services,Legal Disbursements,411,15/11/2017,1711- 00213,0.00,31.02,R,Abacus Express Limited,No,,
Http://opendatacommunities.org/id/metropolitan-district-council/leeds,Leeds City Council,30/11/2017,City Development,Planning & Sustainable Development,Supplies and Services,Other Hired And Contracted Services,265,15/11/2017,1711- 00214,0.00,15.59,R,Abacus Express Limited,No,,
Http://opendatacommunities.org/id/metropolitan-district-council/leeds,Leeds City Council,30/11/2017,Children and Families,Safeguarding Targeted & Specialist,Support Services,Legal Disbursements,411,16/11/2017,1711- 00215,0.00,31.02,R,Abacus Express Limited,No,,
Http://opendatacommunities.org/id/metropolitan-district-council/leeds,Leeds City Council,30/11/2017,Children and Families,Safeguarding Targeted & Specialist,Support Services,Legal Disbursements,411,16/11/2017,1711- 00216,0.00,31.02,R,Abacus Express Limited,No,,
Http://opendatacommunities.org/id/metropolitan-district-council/leeds,Leeds City Council,30/11/2017,Children and Families,Safeguarding Targeted & Specialist,Support Services,Legal Disbursements,411,16/11/2017,1711- 00217,0.00,31.02,R,Abacus Express Limited,No,,
Http://opendatacommunities.org/id/metropolitan-district-council/leeds,Leeds City Council,30/11/2017,Children and Families,Safeguarding Targeted & Specialist,Support Services,Legal Disbursements,411,20/11/2017,1711- 00218,0.00,26.77,R,Abacus Express Limited,No,,
Http://opendatacommunities.org/id/metropolitan-district-council/leeds,Leeds City Council,30/11/2017,Children and Families,Safeguarding Targeted & Specialist,Support Services,Legal Disbursements,411,22/11/2017,1711- 00219,0.00,31.02,R,Abacus Express Limited,No,,
Http://opendatacommunities.org/id/metropolitan-district-council/leeds,Leeds City Council,30/11/2017,Children and Families,Safeguarding Targeted & Specialist,Support Services,Legal Disbursements,411,22/11/2017,1711- 00220,0.00,115.00,R,Abacus Express Limited,No,,
Http://opendatacommunities.org/id/metropolitan-district-council/leeds,Leeds City Council,30/11/2017,Resources and Housing,Legal Services,Support Services,Legal Disbursements,411,27/11/2017,1711- 00221,0.00,31.02,R,Abacus Express Limited,No,,
Http://opendatacommunities.org/id/metropolitan-district-council/leeds,Leeds City Council,30/11/2017,Resources and Housing,Legal Services,Support Services,Legal Disbursements,411,27/11/2017,1711- 00222,0.00,64.02,R,Abacus Express Limited,No,,
Http://opendatacommunities.org/id/metropolitan-district-council/leeds,Leeds City Council,30/11/2017,Resources and Housing,Legal Services,Support Services,Legal Disbursements,411,27/11/2017,1711- 00223,0.00,17.20,R,Abacus Express Limited,No,,
Http://opendatacommunities.org/id/metropolitan-district-council/leeds,Leeds City Council,30/11/2017,Resources and Housing,Legal Services,Support Services,Legal Disbursements,411,27/11/2017,1711- 00224,0.00,20.96,R,Abacus Express Limited,No,,
Http://opendatacommunities.org/id/metropolitan-district-council/leeds,Leeds City Council,30/11/2017,Children and Families,Safeguarding Targeted & Specialist,Support Services,Legal Disbursements,411,27/11/2017,1711- 00225,0.00,20.96,R,Abacus Express Limited,No,,
Http://opendatacommunities.org/id/metropolitan-district-council/leeds,Leeds City Council,30/11/2017,Adults and Health,Services For Older People - 65 And Over,Third Party Payments,Nursing Care Dementia,574,15/11/2017,1711- 00226,0.00,1556.00,R,Abbendon Nursing Home,No,,
Http://opendatacommunities.org/id/metropolitan-district-council/leeds,Leeds City Council,30/11/2017,Adults and Health,Public Health,Third Party Payments,Public Health Commissioned Services,526,01/11/2017,1711- 00227,0.00,5290.41,R,Abbey Grange Medical Practice,No,,
Http://opendatacommunities.org/id/metropolitan-district-council/leeds,Leeds City Council,30/11/2017,Communities and Environment,Cleaner Neighbourhood Teams,Supplies and Services,Bought In Professional Services,277,06/11/2017,1711- 00228,0.00,9.77,R,Abbey House Veterinary Hospital,No,,
Http://opendatacommunities.org/id/metropolitan-district-council/leeds,Leeds City Council,30/11/2017,Communities and Environment,Cleaner Neighbourhood Teams,Supplies and Services,Bought In Professional Services,277,15/11/2017,1711- 00229,0.00,50.95,R,Abbey House Veterinary Hospital,No,,
Http://opendatacommunities.org/id/metropolitan-district-council/leeds,Leeds City Council,30/11/2017,Insurance,Insurance,Supplies and Services,Insurance Claims,248,06/11/2017,1711- 00230,0.00,300.00,R,REDACTED PERSONAL DATA,No,,
Http://opendatacommunities.org/id/metropolitan-district-council/leeds,Leeds City Council,30/11/2017,Communities and Environment,Customer Access,Supplies and Services,Other Hired And Contracted Services,265,03/11/2017,1711- 00231,0.00,106.60,R,Abdulahad Denha,No,,
Http://opendatacommunities.org/id/metropolitan-district-council/leeds,Leeds City Council,30/11/2017,Communities and Environment,Customer Access,Supplies and Services,Other Hired And Contracted Services,265,03/11/2017,1711- 00232,0.00,15.00,R,Abdur Rahman Khan,No,,
Http://opendatacommunities.org/id/metropolitan-district-council/leeds,Leeds City Council,30/11/2017,Adults and Health,Services For Older People - 65 And Over,Third Party Payments,Nursing Home,570,15/11/2017,1711- 00233,0.00,60554.34,R,Aberford Hall,No,,
Http://opendatacommunities.org/id/metropolitan-district-council/leeds,Leeds City Council,30/11/2017,Adults and Health,Services For Older People - 65 And Over,Third Party Payments,Nursing Care Dementia,574,15/11/2017,1711- 00234,0.00,4307.05,R,Aberford Hall,No,,
Http://opendatacommunities.org/id/metropolitan-district-council/leeds,Leeds City Council,30/11/2017,Adults and Health,Services For Older People - 65 And Over,Third Party Payments,Residential,580,15/11/2017,1711- 00235,0.00,601.25,R,Aberford Hall,No,,
Http://opendatacommunities.org/id/metropolitan-district-council/leeds,Leeds City Council,30/11/2017,Strategic Accounts,Miscellaneous,Supplies and Services,Non-Recurring Grants,227,27/11/2017,1711- 00236,0.00,300.00,R,Aberford In Bloom,No,,
Http://opendatacommunities.org/id/metropolitan-district-council/leeds,Leeds City Council,30/11/2017,Resources and Housing,Leeds Building Services,Supplies and Services,Operational Materials,205,07/11/2017,1711- 00237,0.00,3255.85,R,Abi Garage Doors Ltd,No,,
Http://opendatacommunities.org/id/metropolitan-district-council/leeds,Leeds City Council,30/11/2017,Resources and Housing,Leeds Building Services,Supplies and Services,Operational Materials,205,24/11/2017,1711- 00238,0.00,1252.25,R,Abi Garage Doors Ltd,No,,
Http://opendatacommunities.org/id/metropolitan-district-council/leeds,Leeds City Council,30/11/2017,City Development,Recreation,Income,Sporting & Other Recreational Fees,928,06/11/2017,1711- 00239,0.00,133.00,R,REDACTED PERSONAL DATA,No,,
Http://opendatacommunities.org/id/metropolitan-district-council/leeds,Leeds City Council,30/11/2017,Children and Families,Safeguarding Targeted & Specialist,Supplies and Services,Telephones,213,09/11/2017,1711- 00240,0.00,4.00,R,REDACTED PERSONAL DATA,No,,
Http://opendatacommunities.org/id/metropolitan-district-council/leeds,Leeds City Council,30/11/2017,Children and Families,Safeguarding Targeted & Specialist,Supplies and Services,Food & Drink,231,09/11/2017,1711- 00241,0.00,27.74,R,REDACTED PERSONAL DATA,No,,
Http://opendatacommunities.org/id/metropolitan-district-council/leeds,Leeds City Council,30/11/2017,Children and Families,Safeguarding Targeted & Specialist,Transport,Public Transport Expenses,310,09/11/2017,1711- 00242,0.00,4.20,R,REDACTED PERSONAL DATA,No,,
Http://opendatacommunities.org/id/metropolitan-district-council/leeds,Leeds City Council,30/11/2017,Children and Families,Safeguarding Targeted & Specialist,Transport,Car & Motorcycle Allowances,311,09/11/2017,1711- 00243,0.00,9.00,R,REDACTED PERSONAL DATA,No,,
Http://opendatacommunities.org/id/metropolitan-district-council/leeds,Leeds City Council,30/11/2017,City Development,Libraries  Arts & Heritage,Supplies and Services,Computer Software & Equipment,214,10/11/2017,1711- 00244,0.00,1260.00,R,Ability Smart Limited,No,,
Http://opendatacommunities.org/id/metropolitan-district-council/leeds,Leeds City Council,30/11/2017,Resources and Housing,Strategic Housing Partnerships,Capital,Construction,3,10/11/2017,1711- 00245,0.00,2500.00,C,Absolute Home Improvements,No,,
Http://opendatacommunities.org/id/metropolitan-district-council/leeds,Leeds City Council,30/11/2017,City Development,Libraries  Arts & Heritage,Supplies and Services,Bought In Professional Services,277,03/11/2017,1711- 00246,0.00,699.15,R,Absolute Museum & Gallery Products Ltd,No,,
Http://opendatacommunities.org/id/metropolitan-district-council/leeds,Leeds City Council,30/11/2017,City Development,Libraries  Arts & Heritage,Supplies and Services,Other Hired And Contracted Services,265,10/11/2017,1711- 00247,0.00,91.07,R,Absolute Museum & Gallery Products Ltd,No,,
Http://opendatacommunities.org/id/metropolitan-district-council/leeds,Leeds City Council,30/11/2017,City Development,Libraries  Arts & Heritage,Support Services,Internal Incometo City  Development,891,16/11/2017,1711- 00248,0.00,9.60,R,Absolute Venues Limited,No,,
Http://opendatacommunities.org/id/metropolitan-district-council/leeds,Leeds City Council,30/11/2017,Children and Families,Safeguarding Targeted & Specialist  ,Supplies and Services,Food & Drink,231,04/10/2017,1711- 00249,0.00,5.93,R,Abu Bakar Ltd,Yes,,
Http://opendatacommunities.org/id/metropolitan-district-council/leeds,Leeds City Council,30/11/2017,Children and Families,Safeguarding Targeted & Specialist  ,Supplies and Services,Food & Drink,231,18/10/2017,1711- 00250,0.00,25.62,R,Abu Bakar Ltd,Yes,,
Http://opendatacommunities.org/id/metropolitan-district-council/leeds,Leeds City Council,30/11/2017,Children and Families,Safeguarding Targeted & Specialist  ,Supplies and Services,Food & Drink,231,24/10/2017,1711- 00251,0.00,9.62,R,Abu Bakar Ltd,Yes,,
Http://opendatacommunities.org/id/metropolitan-district-council/leeds,Leeds City Council,30/11/2017,Children and Families,Safeguarding Targeted & Specialist,Employees,Agency Staff,8,01/11/2017,1711- 00252,0.00,1100.00,R,Academic Appointments Ltd,No,,
Http://opendatacommunities.org/id/metropolitan-district-council/leeds,Leeds City Council,30/11/2017,Children and Families,Safeguarding Targeted & Specialist,Employees,Agency Staff,8,03/11/2017,1711- 00253,0.00,1100.00,R,Academic Appointments Ltd,No,,
Http://opendatacommunities.org/id/metropolitan-district-council/leeds,Leeds City Council,30/11/2017,Communities and Environment,Community Safety,Transport,External Hire -Occasional,304,01/11/2017,1711- 00254,0.00,1242.86,R,Access Hire Nationwide Ltd,No,,
Http://opendatacommunities.org/id/metropolitan-district-council/leeds,Leeds City Council,30/11/2017,Communities and Environment,Community Safety,Transport,Hire Of Movable Plant & Machinery,315,28/11/2017,1711- 00255,0.00,1310.86,R,Access Hire Nationwide Ltd,No,,
Http://opendatacommunities.org/id/metropolitan-district-council/leeds,Leeds City Council,30/11/2017,Resources and Housing,Leeds Building Services,Supplies and Services,Other Hired And Contracted Services,265,22/11/2017,1711- 00256,0.00,580.42,R,Access Lift Consultants Ltd,No,,
Http://opendatacommunities.org/id/metropolitan-district-council/leeds,Leeds City Council,30/11/2017,Communities and Environment,Parks And Countryside  ,Supplies and Services,Operational Materials,205,21/10/2017,1711- 00257,0.00,17.60,R,Access Locksmiths,Yes,,
Http://opendatacommunities.org/id/metropolitan-district-council/leeds,Leeds City Council,30/11/2017,Resources and Housing,Leeds Building Services,Supplies and Services,Operational Furniture And Equipment,203,02/11/2017,1711- 00258,0.00,266.12,R,Access Locksmiths (Leeds) Limited,No,,
Http://opendatacommunities.org/id/metropolitan-district-council/leeds,Leeds City Council,30/11/2017,Resources and Housing,Leeds Building Services,Supplies and Services,Operational Materials,205,03/11/2017,1711- 00259,0.00,139.10,R,Access Locksmiths (Leeds) Limited,No,,
Http://opendatacommunities.org/id/metropolitan-district-council/leeds,Leeds City Council,30/11/2017,Resources and Housing,Leeds Building Services,Supplies and Services,Operational Materials,205,03/11/2017,1711- 00260,0.00,10.38,R,Access Locksmiths (Leeds) Limited,No,,
Http://opendatacommunities.org/id/metropolitan-district-council/leeds,Leeds City Council,30/11/2017,Resources and Housing,Leeds Building Services,Supplies and Services,Operational Materials,205,03/11/2017,1711- 00261,0.00,10.35,R,Access Locksmiths (Leeds) Limited,No,,
Http://opendatacommunities.org/id/metropolitan-district-council/leeds,Leeds City Council,30/11/2017,Resources and Housing,Leeds Building Services,Supplies and Services,Operational Materials,205,03/11/2017,1711- 00262,0.00,6.72,R,Access Locksmiths (Leeds) Limited,No,,
Http://opendatacommunities.org/id/metropolitan-district-council/leeds,Leeds City Council,30/11/2017,Resources and Housing,Leeds Building Services,Supplies and Services,Operational Materials,205,03/11/2017,1711- 00263,0.00,34.90,R,Access Locksmiths (Leeds) Limited,No,,
Http://opendatacommunities.org/id/metropolitan-district-council/leeds,Leeds City Council,30/11/2017,Resources and Housing,Leeds Building Services,Supplies and Services,Operational Materials,205,03/11/2017,1711- 00264,0.00,82.56,R,Access Locksmiths (Leeds) Limited,No,,
Http://opendatacommunities.org/id/metropolitan-district-council/leeds,Leeds City Council,30/11/2017,Resources and Housing,Leeds Building Services,Supplies and Services,Operational Materials,205,03/11/2017,1711- 00265,0.00,24.22,R,Access Locksmiths (Leeds) Limited,No,,
Http://opendatacommunities.org/id/metropolitan-district-council/leeds,Leeds City Council,30/11/2017,Resources and Housing,Leeds Building Services,Supplies and Services,Operational Materials,205,03/11/2017,1711- 00266,0.00,12.50,R,Access Locksmiths (Leeds) Limited,No,,
Http://opendatacommunities.org/id/metropolitan-district-council/leeds,Leeds City Council,30/11/2017,Resources and Housing,Leeds Building Services,Supplies and Services,Operational Materials,205,03/11/2017,1711- 00267,0.00,3.60,R,Access Locksmiths (Leeds) Limited,No,,
Http://opendatacommunities.org/id/metropolitan-district-council/leeds,Leeds City Council,30/11/2017,Resources and Housing,Leeds Building Services,Supplies and Services,Operational Materials,205,06/11/2017,1711- 00268,0.00,33.66,R,Access Locksmiths (Leeds) Limited,No,,
Http://opendatacommunities.org/id/metropolitan-district-council/leeds,Leeds City Council,30/11/2017,Communities and Environment,Waste Management,Supplies and Services,Operational Furniture And Equipment,203,14/11/2017,1711- 00269,0.00,201.80,R,Access Locksmiths (Leeds) Limited,No,,
Http://opendatacommunities.org/id/metropolitan-district-council/leeds,Leeds City Council,30/11/2017,Resources and Housing,Leeds Building Services,Supplies and Services,Operational Materials,205,16/11/2017,1711- 00270,0.00,91.82,R,Access Locksmiths (Leeds) Limited,No,,
Http://opendatacommunities.org/id/metropolitan-district-council/leeds,Leeds City Council,30/11/2017,Resources and Housing,Leeds Building Services,Supplies and Services,Operational Materials,205,16/11/2017,1711- 00271,0.00,12.46,R,Access Locksmiths (Leeds) Limited,No,,
Http://opendatacommunities.org/id/metropolitan-district-council/leeds,Leeds City Council,30/11/2017,Resources and Housing,Leeds Building Services,Supplies and Services,Operational Materials,205,16/11/2017,1711- 00272,0.00,161.49,R,Access Locksmiths (Leeds) Limited,No,,
Http://opendatacommunities.org/id/metropolitan-district-council/leeds,Leeds City Council,30/11/2017,Resources and Housing,Leeds Building Services,Supplies and Services,Operational Materials,205,16/11/2017,1711- 00273,0.00,40.81,R,Access Locksmiths (Leeds) Limited,No,,
Http://opendatacommunities.org/id/metropolitan-district-council/leeds,Leeds City Council,30/11/2017,Resources and Housing,Leeds Building Services,Supplies and Services,Operational Materials,205,16/11/2017,1711- 00274,0.00,75.52,R,Access Locksmiths (Leeds) Limited,No,,
Http://opendatacommunities.org/id/metropolitan-district-council/leeds,Leeds City Council,30/11/2017,Resources and Housing,Leeds Building Services,Supplies and Services,Operational Materials,205,16/11/2017,1711- 00275,0.00,279.04,R,Access Locksmiths (Leeds) Limited,No,,
Http://opendatacommunities.org/id/metropolitan-district-council/leeds,Leeds City Council,30/11/2017,Resources and Housing,Leeds Building Services,Supplies and Services,Operational Materials,205,16/11/2017,1711- 00276,0.00,16.83,R,Access Locksmiths (Leeds) Limited,No,,
Http://opendatacommunities.org/id/metropolitan-district-council/leeds,Leeds City Council,30/11/2017,Resources and Housing,Leeds Building Services,Supplies and Services,Operational Materials,205,16/11/2017,1711- 00277,0.00,175.90,R,Access Locksmiths (Leeds) Limited,No,,
Http://opendatacommunities.org/id/metropolitan-district-council/leeds,Leeds City Council,30/11/2017,Resources and Housing,Leeds Building Services,Supplies and Services,Operational Materials,205,16/11/2017,1711- 00278,0.00,20.00,R,Access Locksmiths (Leeds) Limited,No,,
Http://opendatacommunities.org/id/metropolitan-district-council/leeds,Leeds City Council,30/11/2017,Resources and Housing,Leeds Building Services,Supplies and Services,Operational Materials,205,16/11/2017,1711- 00279,0.00,66.05,R,Access Locksmiths (Leeds) Limited,No,,
Http://opendatacommunities.org/id/metropolitan-district-council/leeds,Leeds City Council,30/11/2017,Resources and Housing,Leeds Building Services,Supplies and Services,Operational Materials,205,16/11/2017,1711- 00280,0.00,17.20,R,Access Locksmiths (Leeds) Limited,No,,
Http://opendatacommunities.org/id/metropolitan-district-council/leeds,Leeds City Council,30/11/2017,Strategic Landlord,Housing Management,Supplies and Services,Resaleable Materials,204,17/11/2017,1711- 00281,0.00,12.50,R,Access Locksmiths (Leeds) Limited,No,,
Http://opendatacommunities.org/id/metropolitan-district-council/leeds,Leeds City Council,30/11/2017,Strategic Landlord,Property and Contracts,Premises,General Maintenance,104,17/11/2017,1711- 00282,0.00,249.38,R,Access Locksmiths (Leeds) Limited,No,,
Http://opendatacommunities.org/id/metropolitan-district-council/leeds,Leeds City Council,30/11/2017,Strategic Landlord,Property and Contracts,Premises,General Maintenance,104,17/11/2017,1711- 00283,0.00,540.20,R,Access Locksmiths (Leeds) Limited,No,,
Http://opendatacommunities.org/id/metropolitan-district-council/leeds,Leeds City Council,30/11/2017,Resources and Housing,HRA Housing Leeds,Capital,Construction,3,23/11/2017,1711- 00284,0.00,66.45,C,Access Locksmiths (Leeds) Limited,No,,
Http://opendatacommunities.org/id/metropolitan-district-council/leeds,Leeds City Council,30/11/2017,Communities and Environment,Parks and Countryside,Supplies and Services,Operational Materials,205,23/11/2017,1711- 00285,0.00,89.40,R,Access Locksmiths (Leeds) Limited,No,,
Http://opendatacommunities.org/id/metropolitan-district-council/leeds,Leeds City Council,30/11/2017,Strategic Landlord,Property and Contracts,Premises,General Maintenance,104,23/11/2017,1711- 00286,0.00,114.00,R,Access Locksmiths (Leeds) Limited,No,,
Http://opendatacommunities.org/id/metropolitan-district-council/leeds,Leeds City Council,30/11/2017,Strategic Landlord,Property and Contracts,Premises,General Maintenance,104,23/11/2017,1711- 00287,0.00,228.00,R,Access Locksmiths (Leeds) Limited,No,,
Http://opendatacommunities.org/id/metropolitan-district-council/leeds,Leeds City Council,30/11/2017,Resources and Housing,HRA Housing Leeds,Capital,Other Costs,7,23/11/2017,1711- 00288,0.00,252.45,C,Access Locksmiths (Leeds) Limited,No,,
Http://opendatacommunities.org/id/metropolitan-district-council/leeds,Leeds City Council,30/11/2017,Resources and Housing,HRA Housing Leeds,Capital,Construction,3,23/11/2017,1711- 00289,0.00,207.50,C,Access Locksmiths (Leeds) Limited,No,,
Http://opendatacommunities.org/id/metropolitan-district-council/leeds,Leeds City Council,30/11/2017,Strategic Landlord,Property and Contracts,Premises,General Maintenance,104,23/11/2017,1711- 00290,0.00,34.20,R,Access Locksmiths (Leeds) Limited,No,,
Http://opendatacommunities.org/id/metropolitan-district-council/leeds,Leeds City Council,30/11/2017,Strategic Landlord,Property and Contracts,Premises,General Maintenance,104,23/11/2017,1711- 00291,0.00,136.80,R,Access Locksmiths (Leeds) Limited,No,,
Http://opendatacommunities.org/id/metropolitan-district-council/leeds,Leeds City Council,30/11/2017,Strategic Landlord,Property and Contracts,Premises,General Maintenance,104,24/11/2017,1711- 00292,0.00,232.10,R,Access Locksmiths (Leeds) Limited,No,,
Http://opendatacommunities.org/id/metropolitan-district-council/leeds,Leeds City Council,30/11/2017,Strategic Landlord,Property and Contracts,Premises,General Maintenance,104,24/11/2017,1711- 00293,0.00,811.40,R,Access Locksmiths (Leeds) Limited,No,,
Http://opendatacommunities.org/id/metropolitan-district-council/leeds,Leeds City Council,30/11/2017,Resources and Housing,Leeds Building Services,Supplies and Services,Operational Materials,205,24/11/2017,1711- 00294,0.00,126.34,R,Access Locksmiths (Leeds) Limited,No,,
Http://opendatacommunities.org/id/metropolitan-district-council/leeds,Leeds City Council,30/11/2017,Resources and Housing,Leeds Building Services,Supplies and Services,Operational Materials,205,24/11/2017,1711- 00295,0.00,9.00,R,Access Locksmiths (Leeds) Limited,No,,
Http://opendatacommunities.org/id/metropolitan-district-council/leeds,Leeds City Council,30/11/2017,Resources and Housing,Leeds Building Services,Supplies and Services,Operational Materials,205,24/11/2017,1711- 00296,0.00,64.28,R,Access Locksmiths (Leeds) Limited,No,,
Http://opendatacommunities.org/id/metropolitan-district-council/leeds,Leeds City Council,30/11/2017,Resources and Housing,Leeds Building Services,Supplies and Services,Operational Materials,205,24/11/2017,1711- 00297,0.00,18.35,R,Access Locksmiths (Leeds) Limited,No,,
Http://opendatacommunities.org/id/metropolitan-district-council/leeds,Leeds City Council,30/11/2017,Resources and Housing,Leeds Building Services,Supplies and Services,Operational Materials,205,24/11/2017,1711- 00298,0.00,205.38,R,Access Locksmiths (Leeds) Limited,No,,
Http://opendatacommunities.org/id/metropolitan-district-council/leeds,Leeds City Council,30/11/2017,Resources and Housing,Leeds Building Services,Supplies and Services,Operational Materials,205,24/11/2017,1711- 00299,0.00,7.20,R,Access Locksmiths (Leeds) Limited,No,,
Http://opendatacommunities.org/id/metropolitan-district-council/leeds,Leeds City Council,30/11/2017,Resources and Housing,Leeds Building Services,Supplies and Services,Operational Materials,205,24/11/2017,1711- 00300,0.00,46.76,R,Access Locksmiths (Leeds) Limited,No,,
Http://opendatacommunities.org/id/metropolitan-district-council/leeds,Leeds City Council,30/11/2017,Communities and Environment,Cleaner Neighbourhood Teams,Premises,Maintenance Of Buildings,101,29/11/2017,1711- 00301,0.00,60.54,R,Access Locksmiths (Leeds) Limited,No,,
Http://opendatacommunities.org/id/metropolitan-district-council/leeds,Leeds City Council,30/11/2017,Resources and Housing,Leeds Building Services,Supplies and Services,Operational Materials,205,30/11/2017,1711- 00302,0.00,92.37,R,Access Locksmiths (Leeds) Limited,No,,
Http://opendatacommunities.org/id/metropolitan-district-council/leeds,Leeds City Council,30/11/2017,Strategic Landlord,Housing Management,Premises,General Maintenance,104,30/11/2017,1711- 00303,0.00,104.34,R,Access Locksmiths (Leeds) Limited,No,,
Http://opendatacommunities.org/id/metropolitan-district-council/leeds,Leeds City Council,30/11/2017,Strategic Landlord,Housing Management,Supplies and Services,Resaleable Materials,204,30/11/2017,1711- 00304,0.00,1596.00,R,Access Locksmiths (Leeds) Limited,No,,
Http://opendatacommunities.org/id/metropolitan-district-council/leeds,Leeds City Council,30/11/2017,Resources and Housing,HRA Housing Leeds,Capital,Other Costs,7,30/11/2017,1711- 00305,0.00,626.33,C,Access Locksmiths (Leeds) Limited,No,,
Http://opendatacommunities.org/id/metropolitan-district-council/leeds,Leeds City Council,30/11/2017,Insurance,Insurance,Supplies and Services,Insurance Claims,248,09/11/2017,1711- 00306,0.00,2800.00,R,Accountant General Of The Senior Courts,No,,
Http://opendatacommunities.org/id/metropolitan-district-council/leeds,Leeds City Council,30/11/2017,Insurance,Insurance,Supplies and Services,Insurance Claims,248,16/11/2017,1711- 00307,0.00,5759.50,R,Accountant General Of The Senior Courts,No,,
Http://opendatacommunities.org/id/metropolitan-district-council/leeds,Leeds City Council,30/11/2017,City Development,Recreation,Transport,External Hire -Occasional,304,01/11/2017,1711- 00308,0.00,128.65,R,Ace Container Services Limited,No,,
Http://opendatacommunities.org/id/metropolitan-district-council/leeds,Leeds City Council,30/11/2017,City Development,Libraries  Arts & Heritage,Transport,Hire Of Movable Plant & Machinery,315,15/11/2017,1711- 00309,0.00,46.50,R,Ace Container Services Limited,No,,
Http://opendatacommunities.org/id/metropolitan-district-council/leeds,Leeds City Council,30/11/2017,City Development,Recreation,Supplies and Services,Other Hired And Contracted Services,265,17/11/2017,1711- 00310,0.00,93.00,R,Ace Container Services Limited,No,,
Http://opendatacommunities.org/id/metropolitan-district-council/leeds,Leeds City Council,30/11/2017,City Development,Recreation,Transport,External Hire -Occasional,304,30/11/2017,1711- 00311,0.00,124.50,R,Ace Container Services Limited,No,,
Http://opendatacommunities.org/id/metropolitan-district-council/leeds,Leeds City Council,30/11/2017,Children and Families,Learning Skills & Universal,Supplies and Services,Advertising,211,03/11/2017,1711- 00312,0.00,140.00,R,Ace Leaflet Distribution & Print Ltd,No,,
Http://opendatacommunities.org/id/metropolitan-district-council/leeds,Leeds City Council,30/11/2017,City Development,Highways,Supplies and Services,Printing,215,13/11/2017,1711- 00313,0.00,200.00,R,Ace Leaflet Distribution & Print Ltd,No,,
Http://opendatacommunities.org/id/metropolitan-district-council/leeds,Leeds City Council,30/11/2017,Children and Families,Learning Places,Capital,Construction,3,03/11/2017,1711- 00314,0.00,327.34,C,Aceda Limited,No,,
Http://opendatacommunities.org/id/metropolitan-district-council/leeds,Leeds City Council,30/11/2017,Children and Families,Safeguarding Targeted & Specialist,Premises,Maintenance Of Buildings,101,13/11/2017,1711- 00315,0.00,165.00,R,Acl Refrigeration & Air Conditioning Ltd,No,,
Http://opendatacommunities.org/id/metropolitan-district-council/leeds,Leeds City Council,30/11/2017,Resources and Housing,Commercial Services,Supplies and Services,Operational Furniture And Equipment,203,01/11/2017,1711- 00316,0.00,1551.00,R,Acme Facilities Group Ltd,No,,
Http://opendatacommunities.org/id/metropolitan-district-council/leeds,Leeds City Council,30/11/2017,Resources and Housing,Commercial Services,Supplies and Services,Operational Furniture And Equipment,203,17/11/2017,1711- 00317,0.00,1885.00,R,Acme Facilities Group Ltd,No,,
Http://opendatacommunities.org/id/metropolitan-district-council/leeds,Leeds City Council,30/11/2017,Resources and Housing,Commercial Services,Supplies and Services,Operational Furniture And Equipment,203,23/11/2017,1711- 00318,0.00,1340.00,R,Acme Facilities Group Ltd,No,,
Http://opendatacommunities.org/id/metropolitan-district-council/leeds,Leeds City Council,30/11/2017,Children and Families,Partnerships,Third Party Payments,SEN Placements,566,08/11/2017,1711- 00319,0.00,-18138.66,R,Acorn Care And Education Ltd,No,,
Http://opendatacommunities.org/id/metropolitan-district-council/leeds,Leeds City Council,30/11/2017,Children and Families,Partnerships,Third Party Payments,SEN Placements,566,08/11/2017,1711- 00320,0.00,17543.96,R,Acorn Care And Education Ltd,No,,
Http://opendatacommunities.org/id/metropolitan-district-council/leeds,Leeds City Council,30/11/2017,Children and Families,Partnerships,Third Party Payments,SEN Placements,566,08/11/2017,1711- 00321,0.00,14570.40,R,Acorn Care And Education Ltd,No,,
Http://opendatacommunities.org/id/metropolitan-district-council/leeds,Leeds City Council,30/11/2017,Children and Families,Partnerships,Third Party Payments,SEN Placements,566,08/11/2017,1711- 00322,0.00,18138.66,R,Acorn Care And Education Ltd,No,,
Http://opendatacommunities.org/id/metropolitan-district-council/leeds,Leeds City Council,30/11/2017,Resources and Housing,Strategic Housing Partnership & Support,Supplies and Services,Other Hired And Contracted Services,265,29/11/2017,1711- 00323,0.00,1180.00,R,Acorn Lettings Client Account,No,,
Http://opendatacommunities.org/id/metropolitan-district-council/leeds,Leeds City Council,30/11/2017,Adults and Health,Services For Older People - 65 And Over,Third Party Payments,Nursing Care Dementia,574,15/11/2017,1711- 00324,0.00,1546.28,R,Acorn Nursing Home,No,,
Http://opendatacommunities.org/id/metropolitan-district-council/leeds,Leeds City Council,30/11/2017,Communities and Environment,Parks and Countryside,Supplies and Services,Other Hired And Contracted Services,265,17/11/2017,1711- 00325,0.00,4850.00,R,Acorn Scaffolding (Yorkshire) Ltd,No,,
Http://opendatacommunities.org/id/metropolitan-district-council/leeds,Leeds City Council,30/11/2017,City Development,Libraries  Arts & Heritage,Supplies and Services,Other Hired And Contracted Services,265,22/11/2017,1711- 00326,0.00,3340.00,R,Acorn Scaffolding (Yorkshire) Ltd,No,,
Http://opendatacommunities.org/id/metropolitan-district-council/leeds,Leeds City Council,30/11/2017,City Development,Libraries  Arts & Heritage,Supplies and Services,Other Hired And Contracted Services,265,28/11/2017,1711- 00327,0.00,6891.00,R,Acorn Scaffolding (Yorkshire) Ltd,No,,
Http://opendatacommunities.org/id/metropolitan-district-council/leeds,Leeds City Council,30/11/2017,City Development,Libraries  Arts & Heritage,Supplies and Services,Other Hired And Contracted Services,265,29/11/2017,1711- 00328,0.00,1078.77,R,Acorn Scaffolding (Yorkshire) Ltd,No,,
Http://opendatacommunities.org/id/metropolitan-district-council/leeds,Leeds City Council,30/11/2017,City Development,Libraries  Arts & Heritage,Supplies and Services,Operational Furniture And Equipment,203,29/11/2017,1711- 00329,0.00,5928.00,R,Acorn Scaffolding (Yorkshire) Ltd,No,,
Http://opendatacommunities.org/id/metropolitan-district-council/leeds,Leeds City Council,30/11/2017,Adults and Health,Other Adult Services,Third Party Payments,Residential - Drugs & Alcohol,583,10/11/2017,1711- 00330,0.00,834.51,R,Acorn Treatment & Housing,No,,
Http://opendatacommunities.org/id/metropolitan-district-council/leeds,Leeds City Council,30/11/2017,Adults and Health,Services For Older People Under 65 P/Dis,Third Party Payments,Nursing Home,570,15/11/2017,1711- 00331,0.00,5922.64,R,Acre Green,No,,
Http://opendatacommunities.org/id/metropolitan-district-council/leeds,Leeds City Council,30/11/2017,Adults and Health,Services For Older People - 65 And Over,Third Party Payments,Nursing Home,570,15/11/2017,1711- 00332,0.00,55903.37,R,Acre Green,No,,
Http://opendatacommunities.org/id/metropolitan-district-council/leeds,Leeds City Council,30/11/2017,Adults and Health,Services For Older People - 65 And Over,Third Party Payments,Nursing Care Dementia,574,15/11/2017,1711- 00333,0.00,5052.59,R,Acre Green,No,,
Http://opendatacommunities.org/id/metropolitan-district-council/leeds,Leeds City Council,30/11/2017,Adults and Health,Services For Older People Under 65 P/Dis,Third Party Payments,Residential,580,15/11/2017,1711- 00334,0.00,3297.20,R,Acre Green,No,,
Http://opendatacommunities.org/id/metropolitan-district-council/leeds,Leeds City Council,30/11/2017,Adults and Health,Services For Older People - 65 And Over,Third Party Payments,Residential,580,15/11/2017,1711- 00335,0.00,3056.01,R,Acre Green,No,,
Http://opendatacommunities.org/id/metropolitan-district-council/leeds,Leeds City Council,30/11/2017,Insurance,Insurance,Supplies and Services,Insurance Claims,248,02/11/2017,1711- 00336,0.00,1447.09,R,Acromas Insurance Company Ltd,No,,
Http://opendatacommunities.org/id/metropolitan-district-council/leeds,Leeds City Council,30/11/2017,Resources and Housing,Leeds Building Services,Supplies and Services,Other Hired And Contracted Services,265,06/11/2017,1711- 00337,0.00,4982.00,R,Acs (Uk) Ltd,No,,
Http://opendatacommunities.org/id/metropolitan-district-council/leeds,Leeds City Council,30/11/2017,Resources and Housing,Leeds Building Services,Supplies and Services,Other Hired And Contracted Services,265,16/11/2017,1711- 00338,0.00,5111.95,R,Acs (Uk) Ltd,No,,
Http://opendatacommunities.org/id/metropolitan-district-council/leeds,Leeds City Council,30/11/2017,Resources and Housing,Leeds Building Services,Supplies and Services,Other Hired And Contracted Services,265,16/11/2017,1711- 00339,0.00,6190.50,R,Acs (Uk) Ltd,No,,
Http://opendatacommunities.org/id/metropolitan-district-council/leeds,Leeds City Council,30/11/2017,Communities and Environment,Parks And Countryside  ,Supplies and Services,Operational Materials,205,30/10/2017,1711- 00340,0.00,100.00,R,Act*hull East Yorksh,Yes,,
Http://opendatacommunities.org/id/metropolitan-district-council/leeds,Leeds City Council,30/11/2017,City Development,Highways,Supplies and Services,Operational Materials,205,03/11/2017,1711- 00341,0.00,251.00,R,Actavo Uk Limited,No,,
Http://opendatacommunities.org/id/metropolitan-district-council/leeds,Leeds City Council,30/11/2017,City Development,Highways,Supplies and Services,Operational Materials,205,17/11/2017,1711- 00342,0.00,130.00,R,Actavo Uk Limited,No,,
Http://opendatacommunities.org/id/metropolitan-district-council/leeds,Leeds City Council,30/11/2017,Adults and Health,Services For Adults Under 65 Mental/Dis,Third Party Payments,Fees - Level 4,520,02/11/2017,1711- 00343,0.00,250.00,R,Action First Recruitment Ltd,No,,
Http://opendatacommunities.org/id/metropolitan-district-council/leeds,Leeds City Council,30/11/2017,Children and Families,Safeguarding Targeted & Specialist,Third Party Payments,Independent Fostering Agencies,509,02/11/2017,1711- 00344,0.00,4997.10,R,Action For Children,No,,
Http://opendatacommunities.org/id/metropolitan-district-council/leeds,Leeds City Council,30/11/2017,Children and Families,Safeguarding Targeted & Specialist,Third Party Payments,Independent Fostering Agencies,509,02/11/2017,1711- 00345,0.00,4622.40,R,Action For Children,No,,
Http://opendatacommunities.org/id/metropolitan-district-council/leeds,Leeds City Council,30/11/2017,Children and Families,Safeguarding Targeted & Specialist,Third Party Payments,Independent Fostering Agencies,509,02/11/2017,1711- 00346,0.00,4622.40,R,Action For Children,No,,
Http://opendatacommunities.org/id/metropolitan-district-council/leeds,Leeds City Council,30/11/2017,Children and Families,Safeguarding Targeted & Specialist,Third Party Payments,Independent Fostering Agencies,509,02/11/2017,1711- 00347,0.00,4622.40,R,Action For Children,No,,
Http://opendatacommunities.org/id/metropolitan-district-council/leeds,Leeds City Council,30/11/2017,Children and Families,Safeguarding Targeted & Specialist,Third Party Payments,Independent Fostering Agencies,509,02/11/2017,1711- 00348,0.00,4622.40,R,Action For Children,No,,
Http://opendatacommunities.org/id/metropolitan-district-council/leeds,Leeds City Council,30/11/2017,Children and Families,Safeguarding Targeted & Specialist,Third Party Payments,Independent Fostering Agencies,509,10/11/2017,1711- 00349,0.00,4776.48,R,Action For Children,No,,
Http://opendatacommunities.org/id/metropolitan-district-council/leeds,Leeds City Council,30/11/2017,Children and Families,Safeguarding Targeted & Specialist,Third Party Payments,Independent Fostering Agencies,509,17/11/2017,1711- 00350,0.00,5163.67,R,Action For Children,No,,
Http://opendatacommunities.org/id/metropolitan-district-council/leeds,Leeds City Council,30/11/2017,Children and Families,Safeguarding Targeted & Specialist,Third Party Payments,Independent Fostering Agencies,509,17/11/2017,1711- 00351,0.00,4776.48,R,Action For Children,No,,
Http://opendatacommunities.org/id/metropolitan-district-council/leeds,Leeds City Council,30/11/2017,Children and Families,Safeguarding Targeted & Specialist,Third Party Payments,Independent Fostering Agencies,509,17/11/2017,1711- 00352,0.00,4776.48,R,Action For Children,No,,
Http://opendatacommunities.org/id/metropolitan-district-council/leeds,Leeds City Council,30/11/2017,Children and Families,Safeguarding Targeted & Specialist,Third Party Payments,Independent Fostering Agencies,509,17/11/2017,1711- 00353,0.00,4776.48,R,Action For Children,No,,
Http://opendatacommunities.org/id/metropolitan-district-council/leeds,Leeds City Council,30/11/2017,Children and Families,Safeguarding Targeted & Specialist,Third Party Payments,Independent Fostering Agencies,509,17/11/2017,1711- 00354,0.00,4776.48,R,Action For Children,No,,
Http://opendatacommunities.org/id/metropolitan-district-council/leeds,Leeds City Council,30/11/2017,Children and Families,Safeguarding Targeted & Specialist,Third Party Payments,Independent Fostering Agencies,509,17/11/2017,1711- 00355,0.00,4776.48,R,Action For Children,No,,
Http://opendatacommunities.org/id/metropolitan-district-council/leeds,Leeds City Council,30/11/2017,Children and Families,Safeguarding Targeted & Specialist,Third Party Payments,Independent Fostering Agencies,509,17/11/2017,1711- 00356,0.00,253.71,R,Action For Children,No,,
Http://opendatacommunities.org/id/metropolitan-district-council/leeds,Leeds City Council,30/11/2017,Children and Families,Safeguarding Targeted & Specialist,Third Party Payments,Independent Fostering Agencies,509,23/11/2017,1711- 00357,0.00,4776.48,R,Action For Children,No,,
Http://opendatacommunities.org/id/metropolitan-district-council/leeds,Leeds City Council as Accountable Body,30/11/2017,Social Services Pooled Budgets,Leeds Community Equip Store Pooled Budgt,Supplies and Services,Other Equipment,203,08/11/2017,1711- 00358,0.00,60.64,R,Active Mobility Centre Ltd,No,,
Http://opendatacommunities.org/id/metropolitan-district-council/leeds,Leeds City Council,30/11/2017,Communities and Environment,Cleaner Neighbourhood Teams,Supplies and Services,Bought In Professional Services,277,01/11/2017,1711- 00359,0.00,110.00,R,Acumen Waste Services Ltd,No,,
Http://opendatacommunities.org/id/metropolitan-district-council/leeds,Leeds City Council,30/11/2017,Communities and Environment,Waste Management,Supplies and Services,Recycling & Reuse Charges,234,01/11/2017,1711- 00360,0.00,4794.52,R,Acumen Waste Services Ltd,No,,
Http://opendatacommunities.org/id/metropolitan-district-council/leeds,Leeds City Council,30/11/2017,Communities and Environment,Waste Management,Supplies and Services,Recycling & Reuse Charges,234,02/11/2017,1711- 00361,0.00,1911.51,R,Acumen Waste Services Ltd,No,,
Http://opendatacommunities.org/id/metropolitan-district-council/leeds,Leeds City Council,30/11/2017,Communities and Environment,Waste Management,Supplies and Services,Recycling & Reuse Charges,234,02/11/2017,1711- 00362,0.00,3782.15,R,Acumen Waste Services Ltd,No,,
Http://opendatacommunities.org/id/metropolitan-district-council/leeds,Leeds City Council,30/11/2017,Communities and Environment,Cleaner Neighbourhood Teams,Premises,Removal Of Workplace Waste,126,02/11/2017,1711- 00363,0.00,220.00,R,Acumen Waste Services Ltd,No,,
Http://opendatacommunities.org/id/metropolitan-district-council/leeds,Leeds City Council,30/11/2017,Communities and Environment,Cleaner Neighbourhood Teams,Premises,Removal Of Workplace Waste,126,02/11/2017,1711- 00364,0.00,220.00,R,Acumen Waste Services Ltd,No,,
Http://opendatacommunities.org/id/metropolitan-district-council/leeds,Leeds City Council,30/11/2017,Communities and Environment,Waste Management,Supplies and Services,Recycling & Reuse Charges,234,03/11/2017,1711- 00365,0.00,5702.37,R,Acumen Waste Services Ltd,No,,
Http://opendatacommunities.org/id/metropolitan-district-council/leeds,Leeds City Council,30/11/2017,Communities and Environment,Waste Management,Supplies and Services,Recycling & Reuse Charges,234,03/11/2017,1711- 00366,0.00,3800.91,R,Acumen Waste Services Ltd,No,,
Http://opendatacommunities.org/id/metropolitan-district-council/leeds,Leeds City Council,30/11/2017,Communities and Environment,Cleaner Neighbourhood Teams,Premises,Removal Of Workplace Waste,126,08/11/2017,1711- 00367,0.00,110.00,R,Acumen Waste Services Ltd,No,,
Http://opendatacommunities.org/id/metropolitan-district-council/leeds,Leeds City Council,30/11/2017,Communities and Environment,Cleaner Neighbourhood Teams,Premises,Removal Of Workplace Waste,126,08/11/2017,1711- 00368,0.00,110.00,R,Acumen Waste Services Ltd,No,,
Http://opendatacommunities.org/id/metropolitan-district-council/leeds,Leeds City Council,30/11/2017,Communities and Environment,Cleaner Neighbourhood Teams,Premises,Removal Of Workplace Waste,126,08/11/2017,1711- 00369,0.00,110.00,R,Acumen Waste Services Ltd,No,,
Http://opendatacommunities.org/id/metropolitan-district-council/leeds,Leeds City Council,30/11/2017,Communities and Environment,Cleaner Neighbourhood Teams,Premises,Removal Of Workplace Waste,126,10/11/2017,1711- 00370,0.00,110.00,R,Acumen Waste Services Ltd,No,,
Http://opendatacommunities.org/id/metropolitan-district-council/leeds,Leeds City Council,30/11/2017,Communities and Environment,Cleaner Neighbourhood Teams,Premises,Removal Of Workplace Waste,126,10/11/2017,1711- 00371,0.00,110.00,R,Acumen Waste Services Ltd,No,,
Http://opendatacommunities.org/id/metropolitan-district-council/leeds,Leeds City Council,30/11/2017,Communities and Environment,Cleaner Neighbourhood Teams,Premises,Removal Of Workplace Waste,126,15/11/2017,1711- 00372,0.00,110.00,R,Acumen Waste Services Ltd,No,,
Http://opendatacommunities.org/id/metropolitan-district-council/leeds,Leeds City Council,30/11/2017,Communities and Environment,Cleaner Neighbourhood Teams,Premises,Removal Of Workplace Waste,126,17/11/2017,1711- 00373,0.00,220.00,R,Acumen Waste Services Ltd,No,,
Http://opendatacommunities.org/id/metropolitan-district-council/leeds,Leeds City Council,30/11/2017,Communities and Environment,Cleaner Neighbourhood Teams,Premises,Removal Of Workplace Waste,126,17/11/2017,1711- 00374,0.00,220.00,R,Acumen Waste Services Ltd,No,,
Http://opendatacommunities.org/id/metropolitan-district-council/leeds,Leeds City Council,30/11/2017,Communities and Environment,Cleaner Neighbourhood Teams,Premises,Removal Of Workplace Waste,126,17/11/2017,1711- 00375,0.00,220.00,R,Acumen Waste Services Ltd,No,,
Http://opendatacommunities.org/id/metropolitan-district-council/leeds,Leeds City Council,30/11/2017,Communities and Environment,Cleaner Neighbourhood Teams,Premises,Removal Of Workplace Waste,126,17/11/2017,1711- 00376,0.00,110.00,R,Acumen Waste Services Ltd,No,,
Http://opendatacommunities.org/id/metropolitan-district-council/leeds,Leeds City Council,30/11/2017,Communities and Environment,Cleaner Neighbourhood Teams,Premises,Removal Of Workplace Waste,126,17/11/2017,1711- 00377,0.00,110.00,R,Acumen Waste Services Ltd,No,,
Http://opendatacommunities.org/id/metropolitan-district-council/leeds,Leeds City Council,30/11/2017,Communities and Environment,Cleaner Neighbourhood Teams,Premises,Removal Of Workplace Waste,126,17/11/2017,1711- 00378,0.00,110.00,R,Acumen Waste Services Ltd,No,,
Http://opendatacommunities.org/id/metropolitan-district-council/leeds,Leeds City Council,30/11/2017,Communities and Environment,Cleaner Neighbourhood Teams,Premises,Removal Of Workplace Waste,126,21/11/2017,1711- 00379,0.00,110.00,R,Acumen Waste Services Ltd,No,,
Http://opendatacommunities.org/id/metropolitan-district-council/leeds,Leeds City Council,30/11/2017,Communities and Environment,Cleaner Neighbourhood Teams,Premises,Removal Of Workplace Waste,126,21/11/2017,1711- 00380,0.00,110.00,R,Acumen Waste Services Ltd,No,,
Http://opendatacommunities.org/id/metropolitan-district-council/leeds,Leeds City Council,30/11/2017,Communities and Environment,Cleaner Neighbourhood Teams,Premises,Removal Of Workplace Waste,126,21/11/2017,1711- 00381,0.00,110.00,R,Acumen Waste Services Ltd,No,,
Http://opendatacommunities.org/id/metropolitan-district-council/leeds,Leeds City Council,30/11/2017,Communities and Environment,Cleaner Neighbourhood Teams,Premises,Removal Of Workplace Waste,126,21/11/2017,1711- 00382,0.00,110.00,R,Acumen Waste Services Ltd,No,,
Http://opendatacommunities.org/id/metropolitan-district-council/leeds,Leeds City Council,30/11/2017,Communities and Environment,Cleaner Neighbourhood Teams,Premises,Removal Of Workplace Waste,126,21/11/2017,1711- 00383,0.00,110.00,R,Acumen Waste Services Ltd,No,,
Http://opendatacommunities.org/id/metropolitan-district-council/leeds,Leeds City Council,30/11/2017,Communities and Environment,Cleaner Neighbourhood Teams,Premises,Removal Of Workplace Waste,126,21/11/2017,1711- 00384,0.00,110.00,R,Acumen Waste Services Ltd,No,,
Http://opendatacommunities.org/id/metropolitan-district-council/leeds,Leeds City Council,30/11/2017,Communities and Environment,Cleaner Neighbourhood Teams,Premises,Removal Of Workplace Waste,126,21/11/2017,1711- 00385,0.00,110.00,R,Acumen Waste Services Ltd,No,,
Http://opendatacommunities.org/id/metropolitan-district-council/leeds,Leeds City Council,30/11/2017,Communities and Environment,Waste Management,Supplies and Services,Recycling & Reuse Charges,234,21/11/2017,1711- 00386,0.00,6905.69,R,Acumen Waste Services Ltd,No,,
Http://opendatacommunities.org/id/metropolitan-district-council/leeds,Leeds City Council,30/11/2017,Communities and Environment,Waste Management,Supplies and Services,Recycling & Reuse Charges,234,23/11/2017,1711- 00387,0.00,5795.50,R,Acumen Waste Services Ltd,No,,
Http://opendatacommunities.org/id/metropolitan-district-council/leeds,Leeds City Council,30/11/2017,Communities and Environment,Parks and Countryside,Supplies and Services,Resaleable Materials,204,03/11/2017,1711- 00388,0.00,86.50,R,Acushnet Europe Limited,No,,
Http://opendatacommunities.org/id/metropolitan-district-council/leeds,Leeds City Council,30/11/2017,Resources and Housing,Shared Services,Supplies and Services,Other Hired And Contracted Services,265,07/11/2017,1711- 00389,0.00,277.20,R,Ad3 Envelope Printers Limited,No,,
Http://opendatacommunities.org/id/metropolitan-district-council/leeds,Leeds City Council,30/11/2017,Resources and Housing,Shared Services,Supplies and Services,Operational Materials,205,10/11/2017,1711- 00390,0.00,645.00,R,Ad3 Envelope Printers Limited,No,,
Http://opendatacommunities.org/id/metropolitan-district-council/leeds,Leeds City Council,30/11/2017,Adults and Health,Services For Adults Under 65 Learn/Dis,Support Services,Legal Disbursements,411,15/11/2017,1711- 00391,0.00,3100.00,R,Adam Fullwood,No,,
Http://opendatacommunities.org/id/metropolitan-district-council/leeds,Leeds City Council,30/11/2017,Children and Families,Safeguarding Targeted & Specialist,Third Party Payments, Direct Work,549,10/11/2017,1711- 00392,0.00,938.70,R,Adapt (North East),No,,
Http://opendatacommunities.org/id/metropolitan-district-council/leeds,Leeds City Council,30/11/2017,Adults and Health,Services For Older People - 65 And Over,Third Party Payments,Nursing Home,570,15/11/2017,1711- 00393,0.00,3786.24,R,Adbolton Hall,No,,
Http://opendatacommunities.org/id/metropolitan-district-council/leeds,Leeds City Council,30/11/2017,Adults and Health,Public Health,Third Party Payments,Public Health Commissioned Services,526,01/11/2017,1711- 00394,0.00,5325.92,R,Addlestone & Partners,No,,
Http://opendatacommunities.org/id/metropolitan-district-council/leeds,Leeds City Council,30/11/2017,Communities and Environment,Parks and Countryside,Supplies and Services,Other Hired And Contracted Services,265,22/11/2017,1711- 00395,0.00,6342.00,R,Addlestone & Partners,No,,
Http://opendatacommunities.org/id/metropolitan-district-council/leeds,Leeds City Council,30/11/2017,Resources and Housing,Technology  ,Employees,Agency Staff,8,23/10/2017,1711- 00396,0.00,41372.25,R,Adecco Alfred Marks,Yes,,
Http://opendatacommunities.org/id/metropolitan-district-council/leeds,Leeds City Council,30/11/2017,Adults and Health,Services For Older People - 65 And Over,Third Party Payments,Nursing Home,570,15/11/2017,1711- 00397,0.00,1157.68,R,Aden House,No,,
Http://opendatacommunities.org/id/metropolitan-district-council/leeds,Leeds City Council,30/11/2017,Resources and Housing,Leeds Building Services,Supplies and Services,Operational Materials,205,09/11/2017,1711- 00398,0.00,5303.48,R,Adi Global,No,,
Http://opendatacommunities.org/id/metropolitan-district-council/leeds,Leeds City Council,30/11/2017,Resources and Housing,Leeds Building Services,Supplies and Services,Operational Materials,205,16/11/2017,1711- 00399,0.00,599.97,R,Adi Global,No,,
Http://opendatacommunities.org/id/metropolitan-district-council/leeds,Leeds City Council,30/11/2017,Resources and Housing,Leeds Building Services,Supplies and Services,Operational Materials,205,20/11/2017,1711- 00400,0.00,42.46,R,Adi Global,No,,
Http://opendatacommunities.org/id/metropolitan-district-council/leeds,Leeds City Council,30/11/2017,Resources and Housing,Leeds Building Services,Supplies and Services,Operational Materials,205,24/11/2017,1711- 00401,0.00,358.95,R,Adi Global,No,,
Http://opendatacommunities.org/id/metropolitan-district-council/leeds,Leeds City Council,30/11/2017,Resources and Housing,Leeds Building Services,Supplies and Services,Operational Materials,205,24/11/2017,1711- 00402,0.00,365.40,R,Adi Global,No,,
Http://opendatacommunities.org/id/metropolitan-district-council/leeds,Leeds City Council,30/11/2017,Resources and Housing,Leeds Building Services,Supplies and Services,Operational Materials,205,24/11/2017,1711- 00403,0.00,299.70,R,Adi Global,No,,
Http://opendatacommunities.org/id/metropolitan-district-council/leeds,Leeds City Council,30/11/2017,Resources and Housing,Leeds Building Services,Supplies and Services,Operational Materials,205,24/11/2017,1711- 00404,0.00,162.02,R,Adi Global,No,,
Http://opendatacommunities.org/id/metropolitan-district-council/leeds,Leeds City Council,30/11/2017,Communities and Environment,Community Safety,Supplies and Services,Other Hired And Contracted Services,265,29/11/2017,1711- 00405,0.00,15648.00,R,Adi Global,No,,
Http://opendatacommunities.org/id/metropolitan-district-council/leeds,Leeds City Council,30/11/2017,Resources and Housing,Leeds Building Services,Supplies and Services,Operational Materials,205,30/11/2017,1711- 00406,0.00,26.66,R,Adi Global,No,,
Http://opendatacommunities.org/id/metropolitan-district-council/leeds,Leeds City Council,30/11/2017,Resources and Housing,Leeds Building Services,Supplies and Services,Operational Materials,205,30/11/2017,1711- 00407,0.00,55.04,R,Adi Global,No,,
Http://opendatacommunities.org/id/metropolitan-district-council/leeds,Leeds City Council,30/11/2017,Communities and Environment,Community Safety,Supplies and Services,Other Hired And Contracted Services,265,30/11/2017,1711- 00408,0.00,2705.22,R,Adi Global,No,,
Http://opendatacommunities.org/id/metropolitan-district-council/leeds,Leeds City Council,30/11/2017,Communities and Environment,Community Safety,Supplies and Services,Other Hired And Contracted Services,265,30/11/2017,1711- 00409,0.00,5277.30,R,Adi Global,No,,
Http://opendatacommunities.org/id/metropolitan-district-council/leeds,Leeds City Council,30/11/2017,Communities and Environment,Community Safety,Supplies and Services,Other Hired And Contracted Services,265,30/11/2017,1711- 00410,0.00,21109.20,R,Adi Global,No,,
Http://opendatacommunities.org/id/metropolitan-district-council/leeds,Leeds City Council,30/11/2017,Communities and Environment,Community Safety,Supplies and Services,Other Hired And Contracted Services,265,30/11/2017,1711- 00411,0.00,5277.30,R,Adi Global,No,,
Http://opendatacommunities.org/id/metropolitan-district-council/leeds,Leeds City Council,30/11/2017,Resources and Housing,Leeds Building Services,Supplies and Services,Operational Materials,205,30/11/2017,1711- 00412,0.00,21.99,R,Adi Global,No,,
Http://opendatacommunities.org/id/metropolitan-district-council/leeds,Leeds City Council,30/11/2017,Resources and Housing,Leeds Building Services,Supplies and Services,Operational Materials,205,30/11/2017,1711- 00413,0.00,37.17,R,Adi Global,No,,
Http://opendatacommunities.org/id/metropolitan-district-council/leeds,Leeds City Council,30/11/2017,Communities and Environment,Community Safety  ,Supplies and Services,Other Hired And Contracted Services,265,24/10/2017,1711- 00414,0.00,596.26,R,Adi-Gardiner Ltd,Yes,,
Http://opendatacommunities.org/id/metropolitan-district-council/leeds,Leeds City Council,30/11/2017,Children and Families,Safeguarding Targeted & Specialist,Third Party Payments,Independent Fostering Agencies,509,24/11/2017,1711- 00415,0.00,2945.00,R,Adolescent And Childrens Trust,No,,
Http://opendatacommunities.org/id/metropolitan-district-council/leeds,Leeds City Council,30/11/2017,Children and Families,Safeguarding Targeted & Specialist,Third Party Payments,Independent Fostering Agencies,509,24/11/2017,1711- 00416,0.00,2945.00,R,Adolescent And Childrens Trust,No,,
Http://opendatacommunities.org/id/metropolitan-district-council/leeds,Leeds City Council,30/11/2017,Children and Families,Safeguarding Targeted & Specialist,Third Party Payments,Independent Fostering Agencies,509,27/11/2017,1711- 00417,0.00,2945.00,R,Adolescent And Childrens Trust,No,,
Http://opendatacommunities.org/id/metropolitan-district-council/leeds,Leeds City Council,30/11/2017,Children and Families,Safeguarding Targeted & Specialist,Third Party Payments,Independent Fostering Agencies,509,27/11/2017,1711- 00418,0.00,3100.00,R,Adolescent And Childrens Trust,No,,
Http://opendatacommunities.org/id/metropolitan-district-council/leeds,Leeds City Council,30/11/2017,Children and Families,Safeguarding Targeted & Specialist,Third Party Payments,Independent Fostering Agencies,509,27/11/2017,1711- 00419,0.00,2945.00,R,Adolescent And Childrens Trust,No,,
Http://opendatacommunities.org/id/metropolitan-district-council/leeds,Leeds City Council,30/11/2017,Children and Families,Safeguarding Targeted & Specialist,Third Party Payments,Independent Fostering Agencies,509,27/11/2017,1711- 00420,0.00,2945.00,R,Adolescent And Childrens Trust,No,,
Http://opendatacommunities.org/id/metropolitan-district-council/leeds,Leeds City Council,30/11/2017,Children and Families,Safeguarding Targeted & Specialist,Third Party Payments,Independent Fostering Agencies,509,27/11/2017,1711- 00421,0.00,2945.00,R,Adolescent And Childrens Trust,No,,
Http://opendatacommunities.org/id/metropolitan-district-council/leeds,Leeds City Council,30/11/2017,Children and Families,Safeguarding Targeted & Specialist,Third Party Payments,Independent Fostering Agencies,509,27/11/2017,1711- 00422,0.00,3100.00,R,Adolescent And Childrens Trust,No,,
Http://opendatacommunities.org/id/metropolitan-district-council/leeds,Leeds City Council,30/11/2017,Children and Families,Safeguarding Targeted & Specialist,Third Party Payments,Independent Fostering Agencies,509,27/11/2017,1711- 00423,0.00,2850.00,R,Adolescent And Childrens Trust,No,,
Http://opendatacommunities.org/id/metropolitan-district-council/leeds,Leeds City Council,30/11/2017,Children and Families,Safeguarding Targeted & Specialist,Third Party Payments,Independent Fostering Agencies,509,27/11/2017,1711- 00424,0.00,2850.00,R,Adolescent And Childrens Trust,No,,
Http://opendatacommunities.org/id/metropolitan-district-council/leeds,Leeds City Council,30/11/2017,Children and Families,Safeguarding Targeted & Specialist,Third Party Payments,Independent Fostering Agencies,509,27/11/2017,1711- 00425,0.00,2850.00,R,Adolescent And Childrens Trust,No,,
Http://opendatacommunities.org/id/metropolitan-district-council/leeds,Leeds City Council,30/11/2017,Children and Families,Safeguarding Targeted & Specialist,Third Party Payments,Independent Fostering Agencies,509,27/11/2017,1711- 00426,0.00,3000.00,R,Adolescent And Childrens Trust,No,,
Http://opendatacommunities.org/id/metropolitan-district-council/leeds,Leeds City Council,30/11/2017,City Development,Libraries  Arts & Heritage,Supplies and Services,Other Hired And Contracted Services,265,23/11/2017,1711- 00427,0.00,500.00,R,Adrian Palka,No,,
Http://opendatacommunities.org/id/metropolitan-district-council/leeds,Leeds City Council,30/11/2017,Strategic Landlord,Housing Management,Premises,Premises Security Services,162,01/11/2017,1711- 00428,0.00,504.83,R,Adt Fire And Security Plc,No,,
Http://opendatacommunities.org/id/metropolitan-district-council/leeds,Leeds City Council,30/11/2017,Resources and Housing,Corporate Property Management,Premises,Maintenance Of Buildings,101,07/11/2017,1711- 00429,0.00,297.12,R,Adt Fire And Security Plc,No,,
Http://opendatacommunities.org/id/metropolitan-district-council/leeds,Leeds City Council,30/11/2017,Resources and Housing,Corporate Property Management,Premises,Maintenance Of Buildings,101,10/11/2017,1711- 00430,0.00,153.63,R,Adt Fire And Security Plc,No,,
Http://opendatacommunities.org/id/metropolitan-district-council/leeds,Leeds City Council,30/11/2017,Children and Families,Safeguarding Targeted & Specialist,Premises,Premises Security Services,162,13/11/2017,1711- 00431,0.00,-678.03,R,Adt Fire And Security Plc,No,,
Http://opendatacommunities.org/id/metropolitan-district-council/leeds,Leeds City Council,30/11/2017,Strategic Landlord,Housing Management,Premises,Premises Security Services,162,17/11/2017,1711- 00432,0.00,142.20,R,Adt Fire And Security Plc,No,,
Http://opendatacommunities.org/id/metropolitan-district-council/leeds,Leeds City Council as Accountable Body,30/11/2017,Social Services Pooled Budgets,Jcs For People With Learning Disabilitie,Third Party Payments,Sheltered Accommodation,569,01/11/2017,1711- 00433,0.00,1332.20,R,Adult Placement Services,No,,
Http://opendatacommunities.org/id/metropolitan-district-council/leeds,Leeds City Council as Accountable Body,30/11/2017,Social Services Pooled Budgets,Jcs For People With Learning Disabilitie,Third Party Payments,Sheltered Accommodation,569,02/11/2017,1711- 00434,0.00,1332.20,R,Adult Placement Services,No,,
Http://opendatacommunities.org/id/metropolitan-district-council/leeds,Leeds City Council as Accountable Body,30/11/2017,Social Services Pooled Budgets,Jcs For People With Learning Disabilitie,Third Party Payments,Sheltered Accommodation,569,09/11/2017,1711- 00435,0.00,823.81,R,Adult Placement Services,No,,
Http://opendatacommunities.org/id/metropolitan-district-council/leeds,Leeds City Council as Accountable Body,30/11/2017,Social Services Pooled Budgets,Jcs For People With Learning Disabilitie,Third Party Payments,Sheltered Accommodation,569,29/11/2017,1711- 00436,0.00,1332.20,R,Adult Placement Services,No,,
Http://opendatacommunities.org/id/metropolitan-district-council/leeds,Leeds City Council,30/11/2017,City Development,Recreation,Supplies and Services,External Audit Fees,261,02/11/2017,1711- 00437,0.00,135.00,R,Advance Stocks Ltd,No,,
Http://opendatacommunities.org/id/metropolitan-district-council/leeds,Leeds City Council,30/11/2017,City Development,Recreation,Supplies and Services,External Audit Fees,261,02/11/2017,1711- 00438,0.00,85.00,R,Advance Stocks Ltd,No,,
Http://opendatacommunities.org/id/metropolitan-district-council/leeds,Leeds City Council,30/11/2017,City Development,Libraries  Arts & Heritage,Supplies and Services,External Audit Fees,261,03/11/2017,1711- 00439,0.00,85.00,R,Advance Stocks Ltd,No,,
Http://opendatacommunities.org/id/metropolitan-district-council/leeds,Leeds City Council,30/11/2017,City Development,Libraries  Arts & Heritage,Supplies and Services,Food & Drink,231,10/11/2017,1711- 00440,0.00,317.41,R,Advance Stocks Ltd,No,,
Http://opendatacommunities.org/id/metropolitan-district-council/leeds,Leeds City Council,30/11/2017,City Development,Libraries  Arts & Heritage,Supplies and Services,External Audit Fees,261,13/11/2017,1711- 00441,0.00,90.00,R,Advance Stocks Ltd,No,,
Http://opendatacommunities.org/id/metropolitan-district-council/leeds,Leeds City Council,30/11/2017,City Development,Libraries  Arts & Heritage,Supplies and Services,External Audit Fees,261,15/11/2017,1711- 00442,0.00,90.00,R,Advance Stocks Ltd,No,,
Http://opendatacommunities.org/id/metropolitan-district-council/leeds,Leeds City Council,30/11/2017,City Development,Libraries  Arts & Heritage,Supplies and Services,External Audit Fees,261,15/11/2017,1711- 00443,0.00,90.00,R,Advance Stocks Ltd,No,,
Http://opendatacommunities.org/id/metropolitan-district-council/leeds,Leeds City Council,30/11/2017,Children and Families,Safeguarding Targeted & Specialist,Support Services,Legal Disbursements,411,20/11/2017,1711- 00444,0.00,665.92,R,Advanced Child Care Assessments Ltd,No,,
Http://opendatacommunities.org/id/metropolitan-district-council/leeds,Leeds City Council,30/11/2017,Children and Families,Safeguarding Targeted & Specialist  ,Supplies and Services,Operational Materials,205,10/10/2017,1711- 00445,0.00,38.74,R,Adventure Climb Rescue,Yes,,
Http://opendatacommunities.org/id/metropolitan-district-council/leeds,Leeds City Council as Accountable Body,30/11/2017,Social Services Pooled Budgets,Jcs For People With Learning Disabilitie,Third Party Payments,Residential,580,15/11/2017,1711- 00446,0.00,17796.68,R,Advitam Ltd,No,,
Http://opendatacommunities.org/id/metropolitan-district-council/leeds,Leeds City Council as Accountable Body,30/11/2017,Social Services Pooled Budgets,Jcs For People With Learning Disabilitie,Third Party Payments,Other Agency Services,561,03/11/2017,1711- 00447,0.00,77.40,R,Advonet,No,,
Http://opendatacommunities.org/id/metropolitan-district-council/leeds,Leeds City Council as Accountable Body,30/11/2017,Social Services Pooled Budgets,Jcs For People With Learning Disabilitie,Third Party Payments,Other Agency Services,561,07/11/2017,1711- 00448,0.00,753.00,R,Advonet,No,,
Http://opendatacommunities.org/id/metropolitan-district-council/leeds,Leeds City Council as Accountable Body,30/11/2017,Social Services Pooled Budgets,Jcs For People With Learning Disabilitie,Third Party Payments,Other Agency Services,561,07/11/2017,1711- 00449,0.00,102.60,R,Advonet,No,,
Http://opendatacommunities.org/id/metropolitan-district-council/leeds,Leeds City Council as Accountable Body,30/11/2017,Social Services Pooled Budgets,Jcs For People With Learning Disabilitie,Third Party Payments,Other Agency Services,561,07/11/2017,1711- 00450,0.00,15.00,R,Advonet,No,,
Http://opendatacommunities.org/id/metropolitan-district-council/leeds,Leeds City Council as Accountable Body,30/11/2017,Social Services Pooled Budgets,Jcs For People With Learning Disabilitie,Third Party Payments,Other Agency Services,561,07/11/2017,1711- 00451,0.00,9.90,R,Advonet,No,,
Http://opendatacommunities.org/id/metropolitan-district-council/leeds,Leeds City Council,30/11/2017,Adults and Health,Services For Older People - 65 And Over,Third Party Payments,Payments To Voluntary Organisations,561,10/11/2017,1711- 00452,0.00,83435.70,R,Advonet,No,,
Http://opendatacommunities.org/id/metropolitan-district-council/leeds,Leeds City Council,30/11/2017,Adults and Health,Assessment And Care Management,Employees,Training & Development,70,10/11/2017,1711- 00453,0.00,435.00,R,Advonet,No,,
Http://opendatacommunities.org/id/metropolitan-district-council/leeds,Leeds City Council,30/11/2017,Adults and Health,Services For Adults Under 65 Mental/Dis,Third Party Payments,Fees - Level 4,520,21/11/2017,1711- 00454,0.00,423.60,R,Advonet,No,,
Http://opendatacommunities.org/id/metropolitan-district-council/leeds,Leeds City Council,30/11/2017,Adults and Health,Services For Adults Under 65 Mental/Dis,Third Party Payments,Payments To Voluntary Organisations,561,22/11/2017,1711- 00455,0.00,16008.96,R,Advonet,No,,
Http://opendatacommunities.org/id/metropolitan-district-council/leeds,Leeds City Council,30/11/2017,Adults and Health,Services For Adults Under 65 Mental/Dis,Third Party Payments,Payments To Voluntary Organisations,561,22/11/2017,1711- 00456,0.00,869.35,R,Advonet,No,,
Http://opendatacommunities.org/id/metropolitan-district-council/leeds,Leeds City Council,30/11/2017,Adults and Health,Services For Adults Under 65 Mental/Dis,Third Party Payments,Payments To Voluntary Organisations,561,22/11/2017,1711- 00457,0.00,12620.28,R,Advonet,No,,
Http://opendatacommunities.org/id/metropolitan-district-council/leeds,Leeds City Council,30/11/2017,Adults and Health,Services For Adults Under 65 Mental/Dis,Third Party Payments,Payments To Voluntary Organisations,561,22/11/2017,1711- 00458,0.00,11132.46,R,Advonet,No,,
Http://opendatacommunities.org/id/metropolitan-district-council/leeds,Leeds City Council,30/11/2017,Adults and Health,Services For Adults Under 65 Mental/Dis,Third Party Payments,Payments To Voluntary Organisations,561,22/11/2017,1711- 00459,0.00,16068.66,R,Advonet,No,,
Http://opendatacommunities.org/id/metropolitan-district-council/leeds,Leeds City Council,30/11/2017,Adults and Health,Services For Adults Under 65 Mental/Dis,Third Party Payments,Payments To Voluntary Organisations,561,22/11/2017,1711- 00460,0.00,1089.05,R,Advonet,No,,
Http://opendatacommunities.org/id/metropolitan-district-council/leeds,Leeds City Council,30/11/2017,City Development,Highways,Capital,Other Costs,7,10/11/2017,1711- 00461,0.00,42470.05,C,Aecom Limited,No,,
Http://opendatacommunities.org/id/metropolitan-district-council/leeds,Leeds City Council,30/11/2017,Adults and Health,Services For Older People - 65 And Over,Third Party Payments,Home Care,568,01/11/2017,1711- 00462,0.00,223.72,R,Affinity Trust,No,,
Http://opendatacommunities.org/id/metropolitan-district-council/leeds,Leeds City Council as Accountable Body,30/11/2017,Social Services Pooled Budgets,Jcs For People With Learning Disabilitie,Third Party Payments,Day Centre,564,02/11/2017,1711- 00463,0.00,648.95,R,Affinity Trust,No,,
Http://opendatacommunities.org/id/metropolitan-district-council/leeds,Leeds City Council as Accountable Body,30/11/2017,Social Services Pooled Budgets,Jcs For People With Learning Disabilitie,Third Party Payments,Day Centre,564,02/11/2017,1711- 00464,0.00,1170.00,R,Affinity Trust,No,,
Http://opendatacommunities.org/id/metropolitan-district-council/leeds,Leeds City Council as Accountable Body,30/11/2017,Social Services Pooled Budgets,Jcs For People With Learning Disabilitie,Third Party Payments,Day Centre,564,02/11/2017,1711- 00465,0.00,1021.32,R,Affinity Trust,No,,
Http://opendatacommunities.org/id/metropolitan-district-council/leeds,Leeds City Council as Accountable Body,30/11/2017,Social Services Pooled Budgets,Jcs For People With Learning Disabilitie,Third Party Payments,Home Care,568,02/11/2017,1711- 00466,0.00,787.50,R,Affinity Trust,No,,
Http://opendatacommunities.org/id/metropolitan-district-council/leeds,Leeds City Council as Accountable Body,30/11/2017,Social Services Pooled Budgets,Jcs For People With Learning Disabilitie,Third Party Payments,Home Care,568,02/11/2017,1711- 00467,0.00,407.97,R,Affinity Trust,No,,
Http://opendatacommunities.org/id/metropolitan-district-council/leeds,Leeds City Council as Accountable Body,30/11/2017,Social Services Pooled Budgets,Jcs For People With Learning Disabilitie,Third Party Payments,Home Care,568,02/11/2017,1711- 00468,0.00,1365.00,R,Affinity Trust,No,,
Http://opendatacommunities.org/id/metropolitan-district-council/leeds,Leeds City Council as Accountable Body,30/11/2017,Social Services Pooled Budgets,Jcs For People With Learning Disabilitie,Third Party Payments,Home Care,568,02/11/2017,1711- 00469,0.00,2254.00,R,Affinity Trust,No,,
Http://opendatacommunities.org/id/metropolitan-district-council/leeds,Leeds City Council as Accountable Body,30/11/2017,Social Services Pooled Budgets,Jcs For People With Learning Disabilitie,Third Party Payments,Home Care,568,02/11/2017,1711- 00470,0.00,1349.61,R,Affinity Trust,No,,
Http://opendatacommunities.org/id/metropolitan-district-council/leeds,Leeds City Council as Accountable Body,30/11/2017,Social Services Pooled Budgets,Jcs For People With Learning Disabilitie,Third Party Payments,Home Care,568,02/11/2017,1711- 00471,0.00,931.32,R,Affinity Trust,No,,
Http://opendatacommunities.org/id/metropolitan-district-council/leeds,Leeds City Council as Accountable Body,30/11/2017,Social Services Pooled Budgets,Jcs For People With Learning Disabilitie,Third Party Payments,Home Care,568,02/11/2017,1711- 00472,0.00,2879.50,R,Affinity Trust,No,,
Http://opendatacommunities.org/id/metropolitan-district-council/leeds,Leeds City Council as Accountable Body,30/11/2017,Social Services Pooled Budgets,Jcs For People With Learning Disabilitie,Third Party Payments,Day Centre,564,02/11/2017,1711- 00473,0.00,519.56,R,Affinity Trust,No,,
Http://opendatacommunities.org/id/metropolitan-district-council/leeds,Leeds City Council as Accountable Body,30/11/2017,Social Services Pooled Budgets,Jcs For People With Learning Disabilitie,Third Party Payments,Home Care,568,02/11/2017,1711- 00474,0.00,454.95,R,Affinity Trust,No,,
Http://opendatacommunities.org/id/metropolitan-district-council/leeds,Leeds City Council as Accountable Body,30/11/2017,Social Services Pooled Budgets,Jcs For People With Learning Disabilitie,Third Party Payments,Day Centre,564,02/11/2017,1711- 00475,0.00,2937.36,R,Affinity Trust,No,,
Http://opendatacommunities.org/id/metropolitan-district-council/leeds,Leeds City Council as Accountable Body,30/11/2017,Social Services Pooled Budgets,Jcs For People With Learning Disabilitie,Third Party Payments,Home Care,568,02/11/2017,1711- 00476,0.00,603.36,R,Affinity Trust,No,,
Http://opendatacommunities.org/id/metropolitan-district-council/leeds,Leeds City Council as Accountable Body,30/11/2017,Social Services Pooled Budgets,Jcs For People With Learning Disabilitie,Third Party Payments,Home Care,568,02/11/2017,1711- 00477,0.00,1223.53,R,Affinity Trust,No,,
Http://opendatacommunities.org/id/metropolitan-district-council/leeds,Leeds City Council as Accountable Body,30/11/2017,Social Services Pooled Budgets,Jcs For People With Learning Disabilitie,Third Party Payments,Home Care,568,02/11/2017,1711- 00478,0.00,1215.99,R,Affinity Trust,No,,
Http://opendatacommunities.org/id/metropolitan-district-council/leeds,Leeds City Council as Accountable Body,30/11/2017,Social Services Pooled Budgets,Jcs For People With Learning Disabilitie,Third Party Payments,Home Care,568,02/11/2017,1711- 00479,0.00,1005.60,R,Affinity Trust,No,,
Http://opendatacommunities.org/id/metropolitan-district-council/leeds,Leeds City Council as Accountable Body,30/11/2017,Social Services Pooled Budgets,Jcs For People With Learning Disabilitie,Third Party Payments,Home Care,568,02/11/2017,1711- 00480,0.00,270.00,R,Affinity Trust,No,,
Http://opendatacommunities.org/id/metropolitan-district-council/leeds,Leeds City Council as Accountable Body,30/11/2017,Social Services Pooled Budgets,Jcs For People With Learning Disabilitie,Third Party Payments,Home Care,568,02/11/2017,1711- 00481,0.00,201.12,R,Affinity Trust,No,,
Http://opendatacommunities.org/id/metropolitan-district-council/leeds,Leeds City Council as Accountable Body,30/11/2017,Social Services Pooled Budgets,Jcs For People With Learning Disabilitie,Third Party Payments,Day Centre,564,02/11/2017,1711- 00482,0.00,2229.08,R,Affinity Trust,No,,
Http://opendatacommunities.org/id/metropolitan-district-council/leeds,Leeds City Council as Accountable Body,30/11/2017,Social Services Pooled Budgets,Jcs For People With Learning Disabilitie,Third Party Payments,Day Centre,564,02/11/2017,1711- 00483,0.00,1113.30,R,Affinity Trust,No,,
Http://opendatacommunities.org/id/metropolitan-district-council/leeds,Leeds City Council,30/11/2017,Adults and Health,Services For Older People - 65 And Over,Third Party Payments,Home Care,568,03/11/2017,1711- 00484,0.00,3026.04,R,Affinity Trust,No,,
Http://opendatacommunities.org/id/metropolitan-district-council/leeds,Leeds City Council as Accountable Body,30/11/2017,Social Services Pooled Budgets,Jcs For People With Learning Disabilitie,Third Party Payments,Day Centre,564,03/11/2017,1711- 00485,0.00,648.95,R,Affinity Trust,No,,
Http://opendatacommunities.org/id/metropolitan-district-council/leeds,Leeds City Council,30/11/2017,Adults and Health,Services For Older People Under 65 P/Dis,Third Party Payments,Home Care,568,09/11/2017,1711- 00486,0.00,526.68,R,Affinity Trust,No,,
Http://opendatacommunities.org/id/metropolitan-district-council/leeds,Leeds City Council,30/11/2017,Adults and Health,Services For Older People Under 65 P/Dis,Third Party Payments,Home Care,568,09/11/2017,1711- 00487,0.00,403.68,R,Affinity Trust,No,,
Http://opendatacommunities.org/id/metropolitan-district-council/leeds,Leeds City Council as Accountable Body,30/11/2017,Social Services Pooled Budgets,Jcs For People With Learning Disabilitie,Third Party Payments,Home Care,568,09/11/2017,1711- 00488,0.00,646.00,R,Affinity Trust,No,,
Http://opendatacommunities.org/id/metropolitan-district-council/leeds,Leeds City Council as Accountable Body,30/11/2017,Social Services Pooled Budgets,Jcs For People With Learning Disabilitie,Third Party Payments,Day Centre,564,09/11/2017,1711- 00489,0.00,416.64,R,Affinity Trust,No,,
Http://opendatacommunities.org/id/metropolitan-district-council/leeds,Leeds City Council as Accountable Body,30/11/2017,Social Services Pooled Budgets,Jcs For People With Learning Disabilitie,Third Party Payments,Home Care,568,09/11/2017,1711- 00490,0.00,559.30,R,Affinity Trust,No,,
Http://opendatacommunities.org/id/metropolitan-district-council/leeds,Leeds City Council as Accountable Body,30/11/2017,Social Services Pooled Budgets,Jcs For People With Learning Disabilitie,Third Party Payments,Home Care,568,09/11/2017,1711- 00491,0.00,1518.00,R,Affinity Trust,No,,
Http://opendatacommunities.org/id/metropolitan-district-council/leeds,Leeds City Council as Accountable Body,30/11/2017,Social Services Pooled Budgets,Jcs For People With Learning Disabilitie,Third Party Payments,Home Care,568,09/11/2017,1711- 00492,0.00,1211.04,R,Affinity Trust,No,,
Http://opendatacommunities.org/id/metropolitan-district-council/leeds,Leeds City Council as Accountable Body,30/11/2017,Social Services Pooled Budgets,Jcs For People With Learning Disabilitie,Third Party Payments,Home Care,568,09/11/2017,1711- 00493,0.00,1877.65,R,Affinity Trust,No,,
Http://opendatacommunities.org/id/metropolitan-district-council/leeds,Leeds City Council as Accountable Body,30/11/2017,Social Services Pooled Budgets,Jcs For People With Learning Disabilitie,Third Party Payments,Home Care,568,09/11/2017,1711- 00494,0.00,143.82,R,Affinity Trust,No,,
Http://opendatacommunities.org/id/metropolitan-district-council/leeds,Leeds City Council as Accountable Body,30/11/2017,Social Services Pooled Budgets,Jcs For People With Learning Disabilitie,Third Party Payments,Home Care,568,09/11/2017,1711- 00495,0.00,639.20,R,Affinity Trust,No,,
Http://opendatacommunities.org/id/metropolitan-district-council/leeds,Leeds City Council as Accountable Body,30/11/2017,Social Services Pooled Budgets,Jcs For People With Learning Disabilitie,Third Party Payments,Home Care,568,09/11/2017,1711- 00496,0.00,408.00,R,Affinity Trust,No,,
Http://opendatacommunities.org/id/metropolitan-district-council/leeds,Leeds City Council as Accountable Body,30/11/2017,Social Services Pooled Budgets,Jcs For People With Learning Disabilitie,Third Party Payments,Home Care,568,09/11/2017,1711- 00497,0.00,1038.70,R,Affinity Trust,No,,
Http://opendatacommunities.org/id/metropolitan-district-council/leeds,Leeds City Council as Accountable Body,30/11/2017,Social Services Pooled Budgets,Jcs For People With Learning Disabilitie,Third Party Payments,Home Care,568,09/11/2017,1711- 00498,0.00,204.32,R,Affinity Trust,No,,
Http://opendatacommunities.org/id/metropolitan-district-council/leeds,Leeds City Council as Accountable Body,30/11/2017,Social Services Pooled Budgets,Jcs For People With Learning Disabilitie,Third Party Payments,Home Care,568,09/11/2017,1711- 00499,0.00,941.92,R,Affinity Trust,No,,
Http://opendatacommunities.org/id/metropolitan-district-council/leeds,Leeds City Council as Accountable Body,30/11/2017,Social Services Pooled Budgets,Jcs For People With Learning Disabilitie,Third Party Payments,Home Care,568,09/11/2017,1711- 00500,0.00,255.68,R,Affinity Trust,No,,
Http://opendatacommunities.org/id/metropolitan-district-council/leeds,Leeds City Council as Accountable Body,30/11/2017,Social Services Pooled Budgets,Jcs For People With Learning Disabilitie,Third Party Payments,Home Care,568,09/11/2017,1711- 00501,0.00,958.80,R,Affinity Trust,No,,
Http://opendatacommunities.org/id/metropolitan-district-council/leeds,Leeds City Council as Accountable Body,30/11/2017,Social Services Pooled Budgets,Jcs For People With Learning Disabilitie,Third Party Payments,Home Care,568,09/11/2017,1711- 00502,0.00,383.52,R,Affinity Trust,No,,
Http://opendatacommunities.org/id/metropolitan-district-council/leeds,Leeds City Council as Accountable Body,30/11/2017,Social Services Pooled Budgets,Jcs For People With Learning Disabilitie,Third Party Payments,Home Care,568,09/11/2017,1711- 00503,0.00,383.52,R,Affinity Trust,No,,
Http://opendatacommunities.org/id/metropolitan-district-council/leeds,Leeds City Council as Accountable Body,30/11/2017,Social Services Pooled Budgets,Jcs For People With Learning Disabilitie,Third Party Payments,Home Care,568,10/11/2017,1711- 00504,0.00,719.10,R,Affinity Trust,No,,
Http://opendatacommunities.org/id/metropolitan-district-council/leeds,Leeds City Council as Accountable Body,30/11/2017,Social Services Pooled Budgets,Jcs For People With Learning Disabilitie,Third Party Payments,Home Care,568,10/11/2017,1711- 00505,0.00,703.12,R,Affinity Trust,No,,
Http://opendatacommunities.org/id/metropolitan-district-council/leeds,Leeds City Council as Accountable Body,30/11/2017,Social Services Pooled Budgets,Jcs For People With Learning Disabilitie,Third Party Payments,Home Care,568,10/11/2017,1711- 00506,0.00,303.62,R,Affinity Trust,No,,
Http://opendatacommunities.org/id/metropolitan-district-council/leeds,Leeds City Council,30/11/2017,Adults and Health,Services For Older People Under 65 P/Dis,Third Party Payments,Home Care,568,15/11/2017,1711- 00507,0.00,526.68,R,Affinity Trust,No,,
Http://opendatacommunities.org/id/metropolitan-district-council/leeds,Leeds City Council,30/11/2017,Adults and Health,Services For Older People Under 65 P/Dis,Third Party Payments,Home Care,568,17/11/2017,1711- 00508,0.00,134.56,R,Affinity Trust,No,,
Http://opendatacommunities.org/id/metropolitan-district-council/leeds,Leeds City Council as Accountable Body,30/11/2017,Social Services Pooled Budgets,Jcs For People With Learning Disabilitie,Third Party Payments,Home Care,568,22/11/2017,1711- 00509,0.00,1342.32,R,Affinity Trust,No,,
Http://opendatacommunities.org/id/metropolitan-district-council/leeds,Leeds City Council as Accountable Body,30/11/2017,Social Services Pooled Budgets,Jcs For People With Learning Disabilitie,Third Party Payments,Home Care,568,22/11/2017,1711- 00510,0.00,2596.75,R,Affinity Trust,No,,
Http://opendatacommunities.org/id/metropolitan-district-council/leeds,Leeds City Council as Accountable Body,30/11/2017,Social Services Pooled Budgets,Jcs For People With Learning Disabilitie,Third Party Payments,Day Centre,564,23/11/2017,1711- 00511,0.00,14162.33,R,Affinity Trust,No,,
Http://opendatacommunities.org/id/metropolitan-district-council/leeds,Leeds City Council,30/11/2017,Adults and Health,Services For Older People - 65 And Over,Third Party Payments,Home Care,568,24/11/2017,1711- 00512,0.00,72.05,R,Affinity Trust,No,,
Http://opendatacommunities.org/id/metropolitan-district-council/leeds,Leeds City Council,30/11/2017,Adults and Health,Services For Older People Under 65 P/Dis,Third Party Payments,Home Care,568,28/11/2017,1711- 00513,0.00,1270.41,R,Affinity Trust,No,,
Http://opendatacommunities.org/id/metropolitan-district-council/leeds,Leeds City Council,30/11/2017,Adults and Health,Services For Older People - 65 And Over,Third Party Payments,Home Care,568,28/11/2017,1711- 00514,0.00,1715.68,R,Affinity Trust,No,,
Http://opendatacommunities.org/id/metropolitan-district-council/leeds,Leeds City Council,30/11/2017,Adults and Health,Assessment And Care Management,Third Party Payments,Home Care,568,30/11/2017,1711- 00515,0.00,367.54,R,Affinity Trust,No,,
Http://opendatacommunities.org/id/metropolitan-district-council/leeds,Leeds City Council,30/11/2017,Adults and Health,Assessment And Care Management,Third Party Payments,Home Care,568,30/11/2017,1711- 00516,0.00,511.36,R,Affinity Trust,No,,
Http://opendatacommunities.org/id/metropolitan-district-council/leeds,Leeds City Council,30/11/2017,Adults and Health,Services For Adults Under 65 Mental/Dis,Third Party Payments,Home Care,568,30/11/2017,1711- 00517,0.00,319.60,R,Affinity Trust,No,,
Http://opendatacommunities.org/id/metropolitan-district-council/leeds,Leeds City Council,30/11/2017,Adults and Health,Services For Older People Under 65 P/Dis,Third Party Payments,Home Care,568,30/11/2017,1711- 00518,0.00,134.56,R,Affinity Trust,No,,
Http://opendatacommunities.org/id/metropolitan-district-council/leeds,Leeds City Council,30/11/2017,Adults and Health,Services For Older People Under 65 P/Dis,Third Party Payments,Home Care,568,30/11/2017,1711- 00519,0.00,403.68,R,Affinity Trust,No,,
Http://opendatacommunities.org/id/metropolitan-district-council/leeds,Leeds City Council as Accountable Body,30/11/2017,Social Services Pooled Budgets,Jcs For People With Learning Disabilitie,Third Party Payments,Sheltered Accommodation,569,15/11/2017,1711- 00520,0.00,115300.83,R,Affinity Trust North Divisional Office,No,,
Http://opendatacommunities.org/id/metropolitan-district-council/leeds,Leeds City Council,30/11/2017,Adults and Health,Assessment And Care Management,Employees,Training & Development,70,10/11/2017,1711- 00521,0.00,4005.00,R,Affleck Care Ltd,No,,
Http://opendatacommunities.org/id/metropolitan-district-council/leeds,Leeds City Council,30/11/2017,Communities and Environment,Parks And Countryside  ,Transport,Hire Of Movable Plant & Machinery,315,05/10/2017,1711- 00522,0.00,950.00,R,Afi Uplift Ltd,Yes,,
Http://opendatacommunities.org/id/metropolitan-district-council/leeds,Leeds City Council,30/11/2017,Communities and Environment,Parks And Countryside  ,Transport,Hire Of Movable Plant & Machinery,315,11/10/2017,1711- 00523,0.00,950.00,R,Afi Uplift Ltd,Yes,,
Http://opendatacommunities.org/id/metropolitan-district-council/leeds,Leeds City Council,30/11/2017,Communities and Environment,Parks And Countryside  ,Transport,Hire Of Movable Plant & Machinery,315,18/10/2017,1711- 00524,0.00,950.00,R,Afi Uplift Ltd,Yes,,
Http://opendatacommunities.org/id/metropolitan-district-council/leeds,Leeds City Council,30/11/2017,City Development,Recreation,Supplies and Services,Other Hired And Contracted Services,265,10/11/2017,1711- 00525,0.00,3527.67,R,Age Uk Leeds,No,,
Http://opendatacommunities.org/id/metropolitan-district-council/leeds,Leeds City Council,30/11/2017,Adults and Health,Assessment And Care Management,Employees,Training & Development,70,10/11/2017,1711- 00526,0.00,150.00,R,Age Uk Leeds Enterprises,No,,
Http://opendatacommunities.org/id/metropolitan-district-council/leeds,Leeds City Council,30/11/2017,City Development,Libraries  Arts & Heritage,Supplies and Services,Bought In Professional Services,277,03/11/2017,1711- 00527,0.00,1000.00,R,Agere Learning,No,,
Http://opendatacommunities.org/id/metropolitan-district-council/leeds,Leeds City Council,30/11/2017,City Development,Libraries  Arts & Heritage,Supplies and Services,Bought In Professional Services,277,07/11/2017,1711- 00528,0.00,2400.00,R,Agere Learning,No,,
Http://opendatacommunities.org/id/metropolitan-district-council/leeds,Leeds City Council,30/11/2017,Insurance,Insurance,Supplies and Services,Insurance Claims,248,14/11/2017,1711- 00529,0.00,1200.00,R,REDACTED PERSONAL DATA,No,,
Http://opendatacommunities.org/id/metropolitan-district-council/leeds,Leeds City Council,30/11/2017,Resources and Housing,Human Resources,Employees,Occupational Health,85,15/11/2017,1711- 00530,0.00,100.00,R,Ahamad Hassan,No,,
Http://opendatacommunities.org/id/metropolitan-district-council/leeds,Leeds City Council,30/11/2017,City Development,Economic Development,Supplies and Services,Grants To Businesses,243,21/11/2017,1711- 00531,0.00,5000.00,R,Ahead Partnership Ltd,No,,
Http://opendatacommunities.org/id/metropolitan-district-council/leeds,Leeds City Council,30/11/2017,Children and Families,Learning Skills & Universal,Supplies and Services,Teaching Materials,202,17/11/2017,1711- 00532,0.00,35.96,R,Aid Training & Operations Ltd,No,,
Http://opendatacommunities.org/id/metropolitan-district-council/leeds,Leeds City Council,30/11/2017,Children and Families,Learning Skills & Universal,Supplies and Services,Teaching Materials,202,24/11/2017,1711- 00533,0.00,20.96,R,Aid Training & Operations Ltd,No,,
Http://opendatacommunities.org/id/metropolitan-district-council/leeds,Leeds City Council as Accountable Body,30/11/2017,Social Services Pooled Budgets,Leeds Community Equip Store Pooled Budgt,Supplies and Services,Other Equipment,203,02/11/2017,1711- 00534,0.00,117.70,R,Aidapt Bathrooms Ltd,No,,
Http://opendatacommunities.org/id/metropolitan-district-council/leeds,Leeds City Council as Accountable Body,30/11/2017,Social Services Pooled Budgets,Leeds Community Equip Store Pooled Budgt,Supplies and Services,Other Equipment,203,02/11/2017,1711- 00535,0.00,549.70,R,Aidapt Bathrooms Ltd,No,,
Http://opendatacommunities.org/id/metropolitan-district-council/leeds,Leeds City Council as Accountable Body,30/11/2017,Social Services Pooled Budgets,Leeds Community Equip Store Pooled Budgt,Supplies and Services,Other Equipment,203,03/11/2017,1711- 00536,0.00,1540.25,R,Aidapt Bathrooms Ltd,No,,
Http://opendatacommunities.org/id/metropolitan-district-council/leeds,Leeds City Council as Accountable Body,30/11/2017,Social Services Pooled Budgets,Leeds Community Equip Store Pooled Budgt,Supplies and Services,Other Equipment,203,09/11/2017,1711- 00537,0.00,515.80,R,Aidapt Bathrooms Ltd,No,,
Http://opendatacommunities.org/id/metropolitan-district-council/leeds,Leeds City Council as Accountable Body,30/11/2017,Social Services Pooled Budgets,Leeds Community Equip Store Pooled Budgt,Supplies and Services,Other Equipment,203,09/11/2017,1711- 00538,0.00,333.60,R,Aidapt Bathrooms Ltd,No,,
Http://opendatacommunities.org/id/metropolitan-district-council/leeds,Leeds City Council as Accountable Body,30/11/2017,Social Services Pooled Budgets,Leeds Community Equip Store Pooled Budgt,Supplies and Services,Other Equipment,203,15/11/2017,1711- 00539,0.00,84.70,R,Aidapt Bathrooms Ltd,No,,
Http://opendatacommunities.org/id/metropolitan-district-council/leeds,Leeds City Council as Accountable Body,30/11/2017,Social Services Pooled Budgets,Leeds Community Equip Store Pooled Budgt,Supplies and Services,Other Equipment,203,16/11/2017,1711- 00540,0.00,81.84,R,Aidapt Bathrooms Ltd,No,,
Http://opendatacommunities.org/id/metropolitan-district-council/leeds,Leeds City Council as Accountable Body,30/11/2017,Social Services Pooled Budgets,Leeds Community Equip Store Pooled Budgt,Supplies and Services,Other Equipment,203,16/11/2017,1711- 00541,0.00,245.52,R,Aidapt Bathrooms Ltd,No,,
Http://opendatacommunities.org/id/metropolitan-district-council/leeds,Leeds City Council as Accountable Body,30/11/2017,Social Services Pooled Budgets,Leeds Community Equip Store Pooled Budgt,Supplies and Services,Other Equipment,203,16/11/2017,1711- 00542,0.00,10.70,R,Aidapt Bathrooms Ltd,No,,
Http://opendatacommunities.org/id/metropolitan-district-council/leeds,Leeds City Council as Accountable Body,30/11/2017,Social Services Pooled Budgets,Leeds Community Equip Store Pooled Budgt,Supplies and Services,Other Equipment,203,16/11/2017,1711- 00543,0.00,219.35,R,Aidapt Bathrooms Ltd,No,,
Http://opendatacommunities.org/id/metropolitan-district-council/leeds,Leeds City Council as Accountable Body,30/11/2017,Social Services Pooled Budgets,Leeds Community Equip Store Pooled Budgt,Supplies and Services,Other Equipment,203,16/11/2017,1711- 00544,0.00,1699.15,R,Aidapt Bathrooms Ltd,No,,
Http://opendatacommunities.org/id/metropolitan-district-council/leeds,Leeds City Council as Accountable Body,30/11/2017,Social Services Pooled Budgets,Leeds Community Equip Store Pooled Budgt,Supplies and Services,Other Equipment,203,20/11/2017,1711- 00545,0.00,1415.10,R,Aidapt Bathrooms Ltd,No,,
Http://opendatacommunities.org/id/metropolitan-district-council/leeds,Leeds City Council as Accountable Body,30/11/2017,Social Services Pooled Budgets,Leeds Community Equip Store Pooled Budgt,Supplies and Services,Other Equipment,203,20/11/2017,1711- 00546,0.00,128.40,R,Aidapt Bathrooms Ltd,No,,
Http://opendatacommunities.org/id/metropolitan-district-council/leeds,Leeds City Council as Accountable Body,30/11/2017,Social Services Pooled Budgets,Leeds Community Equip Store Pooled Budgt,Supplies and Services,Other Equipment,203,22/11/2017,1711- 00547,0.00,1573.00,R,Aidapt Bathrooms Ltd,No,,
Http://opendatacommunities.org/id/metropolitan-district-council/leeds,Leeds City Council as Accountable Body,30/11/2017,Social Services Pooled Budgets,Leeds Community Equip Store Pooled Budgt,Supplies and Services,Other Equipment,203,22/11/2017,1711- 00548,0.00,1104.20,R,Aidapt Bathrooms Ltd,No,,
Http://opendatacommunities.org/id/metropolitan-district-council/leeds,Leeds City Council as Accountable Body,30/11/2017,Social Services Pooled Budgets,Leeds Community Equip Store Pooled Budgt,Supplies and Services,Other Equipment,203,24/11/2017,1711- 00549,0.00,549.70,R,Aidapt Bathrooms Ltd,No,,
Http://opendatacommunities.org/id/metropolitan-district-council/leeds,Leeds City Council as Accountable Body,30/11/2017,Social Services Pooled Budgets,Leeds Community Equip Store Pooled Budgt,Supplies and Services,Other Equipment,203,24/11/2017,1711- 00550,0.00,195.00,R,Aidapt Bathrooms Ltd,No,,
Http://opendatacommunities.org/id/metropolitan-district-council/leeds,Leeds City Council as Accountable Body,30/11/2017,Social Services Pooled Budgets,Leeds Community Equip Store Pooled Budgt,Supplies and Services,Other Equipment,203,24/11/2017,1711- 00551,0.00,978.90,R,Aidapt Bathrooms Ltd,No,,
Http://opendatacommunities.org/id/metropolitan-district-council/leeds,Leeds City Council as Accountable Body,30/11/2017,Social Services Pooled Budgets,Leeds Community Equip Store Pooled Budgt,Supplies and Services,Other Equipment,203,24/11/2017,1711- 00552,0.00,225.00,R,Aidapt Bathrooms Ltd,No,,
Http://opendatacommunities.org/id/metropolitan-district-council/leeds,Leeds City Council,30/11/2017,Children and Families,Safeguarding Targeted & Specialist,Supplies and Services,Books & Audio-Visual Materials,206,17/11/2017,1711- 00553,0.00,56.00,R,Aim Project,No,,
Http://opendatacommunities.org/id/metropolitan-district-council/leeds,Leeds City Council,30/11/2017,City Development,Libraries  Arts & Heritage,Supplies and Services,Printing,215,17/11/2017,1711- 00554,0.00,1098.24,R,Aimee Grundell,No,,
Http://opendatacommunities.org/id/metropolitan-district-council/leeds,Leeds City Council,30/11/2017,Strategic Accounts,Miscellaneous,Transfer Payments,Land Drainage Levies,665,01/11/2017,1711- 00555,0.00,3615.02,R,Ainsty (2008) Internal Drainage Board,No,,
Http://opendatacommunities.org/id/metropolitan-district-council/leeds,Leeds City Council,30/11/2017,Resources and Housing,Leeds Building Services,Supplies and Services,Operational Materials,205,14/11/2017,1711- 00556,0.00,151.41,R,Air Conditioning Accessories,No,,
Http://opendatacommunities.org/id/metropolitan-district-council/leeds,Leeds City Council,30/11/2017,Resources and Housing,Leeds Building Services,Supplies and Services,Operational Materials,205,14/11/2017,1711- 00557,0.00,86.49,R,Air Conditioning Accessories,No,,
Http://opendatacommunities.org/id/metropolitan-district-council/leeds,Leeds City Council,30/11/2017,Resources and Housing,Leeds Building Services,Supplies and Services,Operational Materials,205,14/11/2017,1711- 00558,0.00,369.84,R,Air Conditioning Accessories,No,,
Http://opendatacommunities.org/id/metropolitan-district-council/leeds,Leeds City Council,30/11/2017,Resources and Housing,Leeds Building Services,Supplies and Services,Operational Materials,205,17/11/2017,1711- 00559,0.00,19.51,R,Air Conditioning Accessories,No,,
Http://opendatacommunities.org/id/metropolitan-district-council/leeds,Leeds City Council,30/11/2017,Resources and Housing,Leeds Building Services,Supplies and Services,Operational Materials,205,20/11/2017,1711- 00560,0.00,199.25,R,Air Conditioning Accessories,No,,
Http://opendatacommunities.org/id/metropolitan-district-council/leeds,Leeds City Council,30/11/2017,Resources and Housing,Leeds Building Services,Supplies and Services,Operational Materials,205,20/11/2017,1711- 00561,0.00,160.00,R,Air Conditioning Accessories,No,,
Http://opendatacommunities.org/id/metropolitan-district-council/leeds,Leeds City Council,30/11/2017,Resources and Housing,Leeds Building Services,Supplies and Services,Operational Materials,205,09/11/2017,1711- 00562,0.00,31.70,R,Air Force Pneumatics & Hydraulics,No,,
Http://opendatacommunities.org/id/metropolitan-district-council/leeds,Leeds City Council,30/11/2017,Resources and Housing,Leeds Building Services,Supplies and Services,Operational Materials,205,20/11/2017,1711- 00563,0.00,11.20,R,Air Force Pneumatics & Hydraulics,No,,
Http://opendatacommunities.org/id/metropolitan-district-council/leeds,Leeds City Council,30/11/2017,Communities and Environment,Environmental Health,Supplies and Services,Operational Furniture And Equipment,203,06/11/2017,1711- 00564,0.00,9.39,R,Air Liquide Uk,No,,
Http://opendatacommunities.org/id/metropolitan-district-council/leeds,Leeds City Council,30/11/2017,Communities and Environment,Environmental Health,Supplies and Services,Operational Furniture And Equipment,203,06/11/2017,1711- 00565,0.00,14.31,R,Air Liquide Uk,No,,
Http://opendatacommunities.org/id/metropolitan-district-council/leeds,Leeds City Council,30/11/2017,Communities and Environment,Environmental Health,Supplies and Services,Operational Furniture And Equipment,203,06/11/2017,1711- 00566,0.00,75.12,R,Air Liquide Uk,No,,
Http://opendatacommunities.org/id/metropolitan-district-council/leeds,Leeds City Council,30/11/2017,Communities and Environment,Environmental Health,Supplies and Services,Other Hired And Contracted Services,265,27/11/2017,1711- 00567,0.00,476.80,R,Air Liquide Uk,No,,
Http://opendatacommunities.org/id/metropolitan-district-council/leeds,Leeds City Council,30/11/2017,Children and Families,Safeguarding Targeted & Specialist,Third Party Payments,Contact,548,23/11/2017,1711- 00568,0.00,15.00,R,Airdale & Wharfedale Children'S Centre,No,,
Http://opendatacommunities.org/id/metropolitan-district-council/leeds,Leeds City Council,30/11/2017,Adults and Health,Services For Adults Under 65 Mental/Dis,Third Party Payments,Residential,580,15/11/2017,1711- 00569,0.00,6028.00,R,Aire House,No,,
Http://opendatacommunities.org/id/metropolitan-district-council/leeds,Leeds City Council,30/11/2017,City Development,Libraries  Arts & Heritage,Supplies and Services,Operational Furniture And Equipment,203,01/11/2017,1711- 00570,0.00,323.80,R,Aire Valley Gas Ltd,No,,
Http://opendatacommunities.org/id/metropolitan-district-council/leeds,Leeds City Council,30/11/2017,City Development,Libraries  Arts & Heritage,Supplies and Services,Operational Furniture And Equipment,203,07/11/2017,1711- 00571,0.00,144.76,R,Aire Valley Gas Ltd,No,,
Http://opendatacommunities.org/id/metropolitan-district-council/leeds,Leeds City Council,30/11/2017,City Development,Libraries  Arts & Heritage,Supplies and Services,Operational Furniture And Equipment,203,24/11/2017,1711- 00572,0.00,144.76,R,Aire Valley Gas Ltd,No,,
Http://opendatacommunities.org/id/metropolitan-district-council/leeds,Leeds City Council,30/11/2017,Communities and Environment,Parks and Countryside,Supplies and Services,Other Hired And Contracted Services,265,07/11/2017,1711- 00573,0.00,275.00,R,Aire Valley Tree Services Ltd,No,,
Http://opendatacommunities.org/id/metropolitan-district-council/leeds,Leeds City Council,30/11/2017,Adults and Health,Services For Older People - 65 And Over,Third Party Payments,Residential Care Dementia,571,15/11/2017,1711- 00574,0.00,35217.30,R,Aire View Residential Home,No,,
Http://opendatacommunities.org/id/metropolitan-district-council/leeds,Leeds City Council,30/11/2017,Adults and Health,Services For Older People - 65 And Over,Third Party Payments,Residential,580,15/11/2017,1711- 00575,0.00,13593.00,R,Aire View Residential Home,No,,
Http://opendatacommunities.org/id/metropolitan-district-council/leeds,Leeds City Council,30/11/2017,Adults and Health,Public Health,Third Party Payments,Public Health Commissioned Services,526,01/11/2017,1711- 00576,0.00,1775.22,R,Aireborough Family Practice,No,,
Http://opendatacommunities.org/id/metropolitan-district-council/leeds,Leeds City Council,30/11/2017,Communities and Environment,Parks and Countryside,Capital,Construction,3,09/11/2017,1711- 00577,0.00,5000.00,C,Aireborough Rufc,No,,
Http://opendatacommunities.org/id/metropolitan-district-council/leeds,Leeds City Council,30/11/2017,Communities and Environment,Communities,Supplies and Services,'Well Being' Large Grants Projects,230,03/11/2017,1711- 00578,0.00,1814.00,R,Aireborough Supported Activities Scheme,No,,
Http://opendatacommunities.org/id/metropolitan-district-council/leeds,Leeds City Council,30/11/2017,Adults and Health,Services For Older People - 65 And Over,Third Party Payments,Residential Care Dementia,571,15/11/2017,1711- 00579,0.00,5006.44,R,Airedale (Goldsborough),No,,
Http://opendatacommunities.org/id/metropolitan-district-council/leeds,Leeds City Council,30/11/2017,Adults and Health,Services For Older People - 65 And Over,Third Party Payments,Residential,580,15/11/2017,1711- 00580,0.00,21810.17,R,Airedale (Goldsborough),No,,
Http://opendatacommunities.org/id/metropolitan-district-council/leeds,Leeds City Council,30/11/2017,Resources and Housing,Commercial Services,Supplies and Services,Operational Furniture And Equipment,203,27/11/2017,1711- 00581,0.00,1345.00,R,Airedale Catering Equipment Ltd,No,,
Http://opendatacommunities.org/id/metropolitan-district-council/leeds,Leeds City Council,30/11/2017,Resources and Housing,Commercial Services,Supplies and Services,Operational Furniture And Equipment,203,27/11/2017,1711- 00582,0.00,5922.00,R,Airedale Catering Equipment Ltd,No,,
Http://opendatacommunities.org/id/metropolitan-district-council/leeds,Leeds City Council,30/11/2017,Resources and Housing,Commercial Services,Supplies and Services,Operational Furniture And Equipment,203,28/11/2017,1711- 00583,0.00,1235.00,R,Airedale Catering Equipment Ltd,No,,
Http://opendatacommunities.org/id/metropolitan-district-council/leeds,Leeds City Council,30/11/2017,Resources and Housing,Commercial Services,Supplies and Services,Operational Furniture And Equipment,203,28/11/2017,1711- 00584,0.00,2005.00,R,Airedale Catering Equipment Ltd,No,,
Http://opendatacommunities.org/id/metropolitan-district-council/leeds,Leeds City Council,30/11/2017,Resources and Housing,Commercial Services,Supplies and Services,Operational Furniture And Equipment,203,28/11/2017,1711- 00585,0.00,1195.00,R,Airedale Catering Equipment Ltd,No,,
Http://opendatacommunities.org/id/metropolitan-district-council/leeds,Leeds City Council,30/11/2017,Adults and Health,Assessment And Care Management,Employees,Training Costs,71,01/11/2017,1711- 00586,0.00,120.00,R,Airedale Community Trading (Act) Ltd,No,,
Http://opendatacommunities.org/id/metropolitan-district-council/leeds,Leeds City Council as Accountable Body,30/11/2017,Social Services Pooled Budgets,Jcs For People With Learning Disabilitie,Third Party Payments,Home Care,568,03/11/2017,1711- 00587,0.00,101.53,R,Airedale Nhs Foundation Trust,No,,
Http://opendatacommunities.org/id/metropolitan-district-council/leeds,Leeds City Council,30/11/2017,Communities and Environment,Community Safety,Supplies and Services,Bought In Professional Services,277,13/11/2017,1711- 00588,0.00,802.84,R,Airwave Solutions Ltd,No,,
Http://opendatacommunities.org/id/metropolitan-district-council/leeds,Leeds City Council,30/11/2017,Resources and Housing,Commercial Services,Supplies and Services,Other Hired And Contracted Services,265,09/11/2017,1711- 00589,0.00,175.00,R,Air-Weigh Europe Limited,No,,
Http://opendatacommunities.org/id/metropolitan-district-council/leeds,Leeds City Council,30/11/2017,Adults and Health,Services For Adults Under 65 Mental/Dis,Third Party Payments,Fees - Level 4,520,01/11/2017,1711- 00590,0.00,175.00,R,Ait Mitra,No,,
Http://opendatacommunities.org/id/metropolitan-district-council/leeds,Leeds City Council,30/11/2017,Adults and Health,Services For Adults Under 65 Mental/Dis,Third Party Payments,Fees - Level 4,520,01/11/2017,1711- 00591,0.00,175.00,R,Ait Mitra,No,,
Http://opendatacommunities.org/id/metropolitan-district-council/leeds,Leeds City Council,30/11/2017,Adults and Health,Services For Adults Under 65 Mental/Dis,Third Party Payments,Fees - Level 4,520,02/11/2017,1711- 00592,0.00,175.00,R,Ait Mitra,No,,
Http://opendatacommunities.org/id/metropolitan-district-council/leeds,Leeds City Council,30/11/2017,Adults and Health,Services For Adults Under 65 Mental/Dis,Third Party Payments,Fees - Level 4,520,02/11/2017,1711- 00593,0.00,175.00,R,Ait Mitra,No,,
Http://opendatacommunities.org/id/metropolitan-district-council/leeds,Leeds City Council,30/11/2017,Adults and Health,Services For Adults Under 65 Mental/Dis,Third Party Payments,Fees - Level 4,520,02/11/2017,1711- 00594,0.00,175.00,R,Ait Mitra,No,,
Http://opendatacommunities.org/id/metropolitan-district-council/leeds,Leeds City Council,30/11/2017,Adults and Health,Services For Adults Under 65 Mental/Dis,Third Party Payments,Fees - Level 4,520,02/11/2017,1711- 00595,0.00,175.00,R,Ait Mitra,No,,
Http://opendatacommunities.org/id/metropolitan-district-council/leeds,Leeds City Council,30/11/2017,Adults and Health,Services For Adults Under 65 Mental/Dis,Third Party Payments,Fees - Level 4,520,02/11/2017,1711- 00596,0.00,175.00,R,Ait Mitra,No,,
Http://opendatacommunities.org/id/metropolitan-district-council/leeds,Leeds City Council,30/11/2017,Adults and Health,Services For Adults Under 65 Mental/Dis,Third Party Payments,Fees - Level 4,520,02/11/2017,1711- 00597,0.00,175.00,R,Ait Mitra,No,,
Http://opendatacommunities.org/id/metropolitan-district-council/leeds,Leeds City Council,30/11/2017,Adults and Health,Services For Adults Under 65 Mental/Dis,Third Party Payments,Fees - Level 4,520,02/11/2017,1711- 00598,0.00,175.00,R,Ait Mitra,No,,
Http://opendatacommunities.org/id/metropolitan-district-council/leeds,Leeds City Council,30/11/2017,Adults and Health,Services For Adults Under 65 Mental/Dis,Third Party Payments,Fees - Level 4,520,02/11/2017,1711- 00599,0.00,175.00,R,Ait Mitra,No,,
Http://opendatacommunities.org/id/metropolitan-district-council/leeds,Leeds City Council,30/11/2017,Adults and Health,Services For Adults Under 65 Mental/Dis,Third Party Payments,Fees - Level 4,520,10/11/2017,1711- 00600,0.00,239.50,R,Ait Mitra,No,,
Http://opendatacommunities.org/id/metropolitan-district-council/leeds,Leeds City Council,30/11/2017,Adults and Health,Services For Adults Under 65 Mental/Dis,Third Party Payments,Fees - Level 4,520,20/11/2017,1711- 00601,0.00,175.00,R,Ait Mitra,No,,
Http://opendatacommunities.org/id/metropolitan-district-council/leeds,Leeds City Council,30/11/2017,Adults and Health,Services For Adults Under 65 Mental/Dis,Third Party Payments,Fees - Level 4,520,20/11/2017,1711- 00602,0.00,175.00,R,Ait Mitra,No,,
Http://opendatacommunities.org/id/metropolitan-district-council/leeds,Leeds City Council,30/11/2017,Adults and Health,Services For Adults Under 65 Mental/Dis,Third Party Payments,Fees - Level 4,520,23/11/2017,1711- 00603,0.00,175.00,R,Ait Mitra,No,,
Http://opendatacommunities.org/id/metropolitan-district-council/leeds,Leeds City Council,30/11/2017,Adults and Health,Services For Adults Under 65 Mental/Dis,Third Party Payments,Fees - Level 4,520,23/11/2017,1711- 00604,0.00,175.00,R,Ait Mitra,No,,
Http://opendatacommunities.org/id/metropolitan-district-council/leeds,Leeds City Council,30/11/2017,Adults and Health,Services For Adults Under 65 Mental/Dis,Third Party Payments,Fees - Level 4,520,23/11/2017,1711- 00605,0.00,175.00,R,Ait Mitra,No,,
Http://opendatacommunities.org/id/metropolitan-district-council/leeds,Leeds City Council,30/11/2017,Adults and Health,Services For Adults Under 65 Mental/Dis,Third Party Payments,Fees - Level 4,520,23/11/2017,1711- 00606,0.00,175.00,R,Ait Mitra,No,,
Http://opendatacommunities.org/id/metropolitan-district-council/leeds,Leeds City Council as Accountable Body,30/11/2017,Social Services Pooled Budgets,Jcs For People With Learning Disabilitie,Third Party Payments,Residential,580,15/11/2017,1711- 00607,0.00,6173.24,R,Aitch Care Homes,No,,
Http://opendatacommunities.org/id/metropolitan-district-council/leeds,Leeds City Council,30/11/2017,City Development,Recreation,Supplies and Services,Operational Materials,205,15/11/2017,1711- 00608,0.00,236.40,R,Aitkens Sportsturf Ltd,No,,
Http://opendatacommunities.org/id/metropolitan-district-council/leeds,Leeds City Council,30/11/2017,Communities and Environment,Parks and Countryside,Supplies and Services,Operational Materials,205,16/11/2017,1711- 00609,0.00,3746.54,R,Aitkens Sportsturf Ltd,No,,
Http://opendatacommunities.org/id/metropolitan-district-council/leeds,Leeds City Council,30/11/2017,Resources and Housing,Commercial Services,Supplies and Services,Other Hired And Contracted Services,265,06/11/2017,1711- 00610,0.00,675.00,R,REDACTED PERSONAL DATA,No,,
Http://opendatacommunities.org/id/metropolitan-district-council/leeds,Leeds City Council,30/11/2017,Adults and Health,Services For Older People - 65 And Over,Third Party Payments,Home Care,568,08/11/2017,1711- 00611,0.00,598.02,R,Aj Community Care Ltd,No,,
Http://opendatacommunities.org/id/metropolitan-district-council/leeds,Leeds City Council,30/11/2017,Adults and Health,Services For Older People Under 65 P/Dis,Third Party Payments,Home Care,568,17/11/2017,1711- 00612,0.00,5230.83,R,Aj Community Care Ltd,No,,
Http://opendatacommunities.org/id/metropolitan-district-council/leeds,Leeds City Council,30/11/2017,Adults and Health,Services For Older People - 65 And Over,Third Party Payments,Home Care,568,17/11/2017,1711- 00613,0.00,18571.51,R,Aj Community Care Ltd,No,,
Http://opendatacommunities.org/id/metropolitan-district-council/leeds,Leeds City Council,30/11/2017,Resources and Housing,Leeds Building Services,Supplies and Services,Operational Furniture And Equipment,203,09/11/2017,1711- 00614,0.00,315.00,R,Ajm Fixings & Power Tools Ltd,No,,
Http://opendatacommunities.org/id/metropolitan-district-council/leeds,Leeds City Council,30/11/2017,Resources and Housing,Leeds Building Services,Supplies and Services,Stores - Central And Other Depots,005,09/11/2017,1711- 00615,0.00,489.30,R,Ajm Fixings & Power Tools Ltd,No,,
Http://opendatacommunities.org/id/metropolitan-district-council/leeds,Leeds City Council,30/11/2017,Resources and Housing,Leeds Building Services,Supplies and Services,Stores - Central And Other Depots,005,09/11/2017,1711- 00616,0.00,166.00,R,Ajm Fixings & Power Tools Ltd,No,,
Http://opendatacommunities.org/id/metropolitan-district-council/leeds,Leeds City Council,30/11/2017,Resources and Housing,Leeds Building Services,Supplies and Services,Operational Furniture And Equipment,203,09/11/2017,1711- 00617,0.00,2192.00,R,Ajm Fixings & Power Tools Ltd,No,,
Http://opendatacommunities.org/id/metropolitan-district-council/leeds,Leeds City Council,30/11/2017,Resources and Housing,Leeds Building Services,Supplies and Services,Operational Furniture And Equipment,203,10/11/2017,1711- 00618,0.00,265.00,R,Ajm Fixings & Power Tools Ltd,No,,
Http://opendatacommunities.org/id/metropolitan-district-council/leeds,Leeds City Council,30/11/2017,Resources and Housing,Leeds Building Services,Supplies and Services,Operational Furniture And Equipment,203,10/11/2017,1711- 00619,0.00,1987.00,R,Ajm Fixings & Power Tools Ltd,No,,
Http://opendatacommunities.org/id/metropolitan-district-council/leeds,Leeds City Council,30/11/2017,Resources and Housing,Leeds Building Services,Supplies and Services,Operational Furniture And Equipment,203,13/11/2017,1711- 00620,0.00,39.50,R,Ajm Fixings & Power Tools Ltd,No,,
Http://opendatacommunities.org/id/metropolitan-district-council/leeds,Leeds City Council,30/11/2017,Resources and Housing,Leeds Building Services,Supplies and Services,Operational Furniture And Equipment,203,16/11/2017,1711- 00621,0.00,1325.85,R,Ajm Fixings & Power Tools Ltd,No,,
Http://opendatacommunities.org/id/metropolitan-district-council/leeds,Leeds City Council,30/11/2017,Resources and Housing,Leeds Building Services,Supplies and Services,Operational Materials,205,17/11/2017,1711- 00622,0.00,51.88,R,Ajm Fixings & Power Tools Ltd,No,,
Http://opendatacommunities.org/id/metropolitan-district-council/leeds,Leeds City Council,30/11/2017,Resources and Housing,Leeds Building Services,Supplies and Services,Stores - Central And Other Depots,005,20/11/2017,1711- 00623,0.00,879.60,R,Ajm Fixings & Power Tools Ltd,No,,
Http://opendatacommunities.org/id/metropolitan-district-council/leeds,Leeds City Council,30/11/2017,Resources and Housing,Leeds Building Services,Supplies and Services,Operational Furniture And Equipment,203,23/11/2017,1711- 00624,0.00,25.00,R,Ajm Fixings & Power Tools Ltd,No,,
Http://opendatacommunities.org/id/metropolitan-district-council/leeds,Leeds City Council,30/11/2017,Resources and Housing,Leeds Building Services,Supplies and Services,Operational Furniture And Equipment,203,23/11/2017,1711- 00625,0.00,186.00,R,Ajm Fixings & Power Tools Ltd,No,,
Http://opendatacommunities.org/id/metropolitan-district-council/leeds,Leeds City Council,30/11/2017,Resources and Housing,Leeds Building Services,Supplies and Services,Operational Furniture And Equipment,203,23/11/2017,1711- 00626,0.00,125.00,R,Ajm Fixings & Power Tools Ltd,No,,
Http://opendatacommunities.org/id/metropolitan-district-council/leeds,Leeds City Council,30/11/2017,Resources and Housing,Leeds Building Services,Supplies and Services,Operational Furniture And Equipment,203,23/11/2017,1711- 00627,0.00,50.67,R,Ajm Fixings & Power Tools Ltd,No,,
Http://opendatacommunities.org/id/metropolitan-district-council/leeds,Leeds City Council,30/11/2017,Resources and Housing,Leeds Building Services,Supplies and Services,Operational Furniture And Equipment,203,24/11/2017,1711- 00628,0.00,249.00,R,Ajm Fixings & Power Tools Ltd,No,,
Http://opendatacommunities.org/id/metropolitan-district-council/leeds,Leeds City Council,30/11/2017,Resources and Housing,Leeds Building Services,Supplies and Services,Operational Furniture And Equipment,203,29/11/2017,1711- 00629,0.00,2263.00,R,Ajm Fixings & Power Tools Ltd,No,,
Http://opendatacommunities.org/id/metropolitan-district-council/leeds,Leeds City Council,30/11/2017,Resources and Housing,Leeds Building Services,Supplies and Services,Operational Furniture And Equipment,203,29/11/2017,1711- 00630,0.00,536.32,R,Ajm Fixings & Power Tools Ltd,No,,
Http://opendatacommunities.org/id/metropolitan-district-council/leeds,Leeds City Council,30/11/2017,Adults and Health,Services For Older People - 65 And Over,Third Party Payments,Nursing Home,570,15/11/2017,1711- 00631,0.00,1247.60,R,Akari Care Ltd,No,,
Http://opendatacommunities.org/id/metropolitan-district-council/leeds,Leeds City Council,30/11/2017,Resources and Housing,Commercial Services,Premises,Plant and Machinery,102,29/11/2017,1711- 00632,0.00,284.21,R,Akua Uk Ltd,No,,
Http://opendatacommunities.org/id/metropolitan-district-council/leeds,Leeds City Council,30/11/2017,Resources and Housing,Commercial Services,Premises,Plant and Machinery,102,29/11/2017,1711- 00633,0.00,176.40,R,Akua Uk Ltd,No,,
Http://opendatacommunities.org/id/metropolitan-district-council/leeds,Leeds City Council,30/11/2017,Resources and Housing,Leeds Building Services,Supplies and Services,Operational Materials,205,03/11/2017,1711- 00634,0.00,54.67,R,Akw Medicare Ltd,No,,
Http://opendatacommunities.org/id/metropolitan-district-council/leeds,Leeds City Council,30/11/2017,Resources and Housing,Leeds Building Services,Supplies and Services,Operational Materials,205,09/11/2017,1711- 00635,0.00,54.67,R,Akw Medicare Ltd,No,,
Http://opendatacommunities.org/id/metropolitan-district-council/leeds,Leeds City Council,30/11/2017,Resources and Housing,Leeds Building Services,Supplies and Services,Operational Materials,205,09/11/2017,1711- 00636,0.00,54.67,R,Akw Medicare Ltd,No,,
Http://opendatacommunities.org/id/metropolitan-district-council/leeds,Leeds City Council,30/11/2017,Resources and Housing,Leeds Building Services,Supplies and Services,Operational Materials,205,20/11/2017,1711- 00637,0.00,54.67,R,Akw Medicare Ltd,No,,
Http://opendatacommunities.org/id/metropolitan-district-council/leeds,Leeds City Council,30/11/2017,Resources and Housing,Leeds Building Services,Supplies and Services,Operational Materials,205,20/11/2017,1711- 00638,0.00,66.67,R,Akw Medicare Ltd,No,,
Http://opendatacommunities.org/id/metropolitan-district-council/leeds,Leeds City Council,30/11/2017,Resources and Housing,Leeds Building Services,Supplies and Services,Operational Materials,205,27/11/2017,1711- 00639,0.00,62.22,R,Akw Medicare Ltd,No,,
Http://opendatacommunities.org/id/metropolitan-district-council/leeds,Leeds City Council,30/11/2017,Resources and Housing,Democratic Services  ,Premises,Grounds Maintenance Work,111,24/10/2017,1711- 00640,0.00,20.00,R,Alan Brown Flowers,Yes,,
Http://opendatacommunities.org/id/metropolitan-district-council/leeds,Leeds City Council,30/11/2017,City Development,Libraries  Arts & Heritage,Supplies and Services,Other Hired And Contracted Services,265,23/11/2017,1711- 00641,0.00,400.00,R,Alan Horsey,No,,
Http://opendatacommunities.org/id/metropolitan-district-council/leeds,Leeds City Council,30/11/2017,Communities and Environment,Communities,Supplies and Services,Other Hired And Contracted Services,265,08/11/2017,1711- 00642,0.00,5100.00,R,Al-Bashir Academy Ltd,No,,
Http://opendatacommunities.org/id/metropolitan-district-council/leeds,Leeds City Council,30/11/2017,City Development,Economic Development,Supplies and Services,Clothing & Uniforms,241,24/11/2017,1711- 00643,0.00,101.00,R,Albert Haywood & Sons Ltd,No,,
Http://opendatacommunities.org/id/metropolitan-district-council/leeds,Leeds City Council,30/11/2017,Resources and Housing,Commercial Services,Transport,Vehicle Spares,345,22/11/2017,1711- 00644,0.00,66.45,R,Albert Jagger Limited,No,,
Http://opendatacommunities.org/id/metropolitan-district-council/leeds,Leeds City Council,30/11/2017,Communities and Environment,Communities,Supplies and Services,Computer Software & Equipment,214,30/11/2017,1711- 00645,0.00,1075.00,R,Alcium Software Ltd,No,,
Http://opendatacommunities.org/id/metropolitan-district-council/leeds,Leeds City Council,30/11/2017,Children and Families,Safeguarding Targeted & Specialist  ,Supplies and Services,Food & Drink,231,20/10/2017,1711- 00646,0.00,18.13,R,Aldi 49 779,Yes,,
Http://opendatacommunities.org/id/metropolitan-district-council/leeds,Leeds City Council,30/11/2017,Adults and Health,Services For Older People - 65 And Over  ,Premises,General Maintenance,104,25/10/2017,1711- 00647,0.00,19.95,R,Aldi 49 779,Yes,,
Http://opendatacommunities.org/id/metropolitan-district-council/leeds,Leeds City Council,30/11/2017,Communities and Environment,Parks And Countryside  ,Supplies and Services,Operational Materials,205,26/10/2017,1711- 00648,0.00,3.30,R,Aldi 49 779,Yes,,
Http://opendatacommunities.org/id/metropolitan-district-council/leeds,Leeds City Council,30/11/2017,Communities and Environment,Communities  ,Supplies and Services,'Well Being' Large Grants Projects,230,25/10/2017,1711- 00649,0.00,18.91,R,Aldi 71 779,Yes,,
Http://opendatacommunities.org/id/metropolitan-district-council/leeds,Leeds City Council,30/11/2017,Children and Families,Partnerships  ,Premises,Cleaning Maintenance & Toiletries,127,10/10/2017,1711- 00650,0.00,5.79,R,Aldi 85 779,Yes,,
Http://opendatacommunities.org/id/metropolitan-district-council/leeds,Leeds City Council,30/11/2017,Children and Families,Partnerships  ,Supplies and Services,Food & Drink,231,10/10/2017,1711- 00651,0.00,6.12,R,Aldi 88 779,Yes,,
Http://opendatacommunities.org/id/metropolitan-district-council/leeds,Leeds City Council,30/11/2017,City Development,Libraries  Arts & Heritage  ,Supplies and Services,Food & Drink,231,29/09/2017,1711- 00652,0.00,82.33,R,Aldi 89 779,Yes,,
Http://opendatacommunities.org/id/metropolitan-district-council/leeds,Leeds City Council,30/11/2017,City Development,Libraries  Arts & Heritage  ,Supplies and Services,Food & Drink,231,29/09/2017,1711- 00653,0.00,33.13,R,Aldi 89 779,Yes,,
Http://opendatacommunities.org/id/metropolitan-district-council/leeds,Leeds City Council,30/11/2017,City Development,Libraries  Arts & Heritage  ,Supplies and Services,Food & Drink,231,03/10/2017,1711- 00654,0.00,51.08,R,Aldi 89 779,Yes,,
Http://opendatacommunities.org/id/metropolitan-district-council/leeds,Leeds City Council,30/11/2017,City Development,Libraries  Arts & Heritage  ,Supplies and Services,Food & Drink,231,06/10/2017,1711- 00655,0.00,59.63,R,Aldi 89 779,Yes,,
Http://opendatacommunities.org/id/metropolitan-district-council/leeds,Leeds City Council,30/11/2017,Children and Families,Safeguarding Targeted & Specialist,Support Services,Legal Disbursements,411,02/11/2017,1711- 00656,0.00,99.35,R,Alere Toxicology Plc,No,,
Http://opendatacommunities.org/id/metropolitan-district-council/leeds,Leeds City Council,30/11/2017,Children and Families,Safeguarding Targeted & Specialist,Support Services,Legal Disbursements,411,09/11/2017,1711- 00657,0.00,66.00,R,Alere Toxicology Plc,No,,
Http://opendatacommunities.org/id/metropolitan-district-council/leeds,Leeds City Council,30/11/2017,Children and Families,Safeguarding Targeted & Specialist,Support Services,Legal Disbursements,411,22/11/2017,1711- 00658,0.00,31.68,R,Alere Toxicology Plc,No,,
Http://opendatacommunities.org/id/metropolitan-district-council/leeds,Leeds City Council,30/11/2017,Children and Families,Safeguarding Targeted & Specialist,Support Services,Legal Disbursements,411,22/11/2017,1711- 00659,0.00,112.75,R,Alere Toxicology Plc,No,,
Http://opendatacommunities.org/id/metropolitan-district-council/leeds,Leeds City Council,30/11/2017,Children and Families,Safeguarding Targeted & Specialist,Transfer Payments,Leaving Care Allowances,634,20/11/2017,1711- 00660,0.00,337.50,R,REDACTED PERSONAL DATA,No,,
Http://opendatacommunities.org/id/metropolitan-district-council/leeds,Leeds City Council,30/11/2017,Communities and Environment,Communities,Support Services,Legal Disbursements,411,01/11/2017,1711- 00661,0.00,324.00,R,Alex Taylor,No,,
Http://opendatacommunities.org/id/metropolitan-district-council/leeds,Leeds City Council,30/11/2017,Children and Families,Safeguarding Targeted & Specialist,Support Services,Legal Disbursements,411,24/11/2017,1711- 00662,0.00,625.00,R,Alex Taylor,No,,
Http://opendatacommunities.org/id/metropolitan-district-council/leeds,Leeds City Council,30/11/2017,Resources and Housing,Commercial Services,Supplies and Services,Other Hired And Contracted Services,265,02/11/2017,1711- 00663,0.00,120.00,R,Alex Wagg,No,,
Http://opendatacommunities.org/id/metropolitan-district-council/leeds,Leeds City Council,30/11/2017,Resources and Housing,Commercial Services,Supplies and Services,Other Hired And Contracted Services,265,02/11/2017,1711- 00664,0.00,445.00,R,Alex Wagg,No,,
Http://opendatacommunities.org/id/metropolitan-district-council/leeds,Leeds City Council,30/11/2017,Resources and Housing,Commercial Services,Supplies and Services,Other Hired And Contracted Services,265,02/11/2017,1711- 00665,0.00,-295.00,R,Alex Wagg,No,,
Http://opendatacommunities.org/id/metropolitan-district-council/leeds,Leeds City Council,30/11/2017,Adults and Health,Services For Older People - 65 And Over,Third Party Payments,Residential Care Dementia,571,15/11/2017,1711- 00666,0.00,10932.28,R,Alexander Residential Home,No,,
Http://opendatacommunities.org/id/metropolitan-district-council/leeds,Leeds City Council,30/11/2017,Adults and Health,Services For Older People - 65 And Over,Third Party Payments,Residential,580,15/11/2017,1711- 00667,0.00,10424.13,R,Alexander Residential Home,No,,
Http://opendatacommunities.org/id/metropolitan-district-council/leeds,Leeds City Council,30/11/2017,Communities and Environment,Customer Access,Supplies and Services,Other Hired And Contracted Services,265,03/11/2017,1711- 00668,0.00,809.50,R,Alexandra Costenco,No,,
Http://opendatacommunities.org/id/metropolitan-district-council/leeds,Leeds City Council,30/11/2017,Adults and Health,Services For Older People - 65 And Over,Third Party Payments,Residential Care Dementia,571,15/11/2017,1711- 00669,0.00,1577.96,R,Alexandra Court,No,,
Http://opendatacommunities.org/id/metropolitan-district-council/leeds,Leeds City Council,30/11/2017,Adults and Health,Services For Older People - 65 And Over,Third Party Payments,Residential,580,15/11/2017,1711- 00670,0.00,11156.44,R,Alexandra Court,No,,
Http://opendatacommunities.org/id/metropolitan-district-council/leeds,Leeds City Council,30/11/2017,Adults and Health,Home Care Services  ,Supplies and Services,Clothing & Uniforms,241,12/10/2017,1711- 00671,0.00,96.88,R,Alexandra Website,Yes,,
Http://opendatacommunities.org/id/metropolitan-district-council/leeds,Leeds City Council,30/11/2017,Resources and Housing,Leeds Building Services,Supplies and Services,Other Hired And Contracted Services,265,01/11/2017,1711- 00672,0.00,2698.00,R,Alfred Bagnall & Sons (Leeds) Ltd,No,,
Http://opendatacommunities.org/id/metropolitan-district-council/leeds,Leeds City Council,30/11/2017,City Development,Libraries  Arts & Heritage,Supplies and Services,Bought In Professional Services,277,01/11/2017,1711- 00673,0.00,5000.00,R,Alfred Bagnall & Sons (Leeds) Ltd,No,,
Http://opendatacommunities.org/id/metropolitan-district-council/leeds,Leeds City Council,30/11/2017,City Development,Libraries  Arts & Heritage,Supplies and Services,Bought In Professional Services,277,06/11/2017,1711- 00674,0.00,15430.00,R,Alfred Bagnall & Sons (Leeds) Ltd,No,,
Http://opendatacommunities.org/id/metropolitan-district-council/leeds,Leeds City Council,30/11/2017,City Development,Libraries  Arts & Heritage,Supplies and Services,Bought In Professional Services,277,06/11/2017,1711- 00675,0.00,70000.00,R,Alfred Bagnall & Sons (Leeds) Ltd,No,,
Http://opendatacommunities.org/id/metropolitan-district-council/leeds,Leeds City Council,30/11/2017,City Development,Libraries  Arts & Heritage,Supplies and Services,Bought In Professional Services,277,06/11/2017,1711- 00676,0.00,6121.45,R,Alfred Bagnall & Sons (Leeds) Ltd,No,,
Http://opendatacommunities.org/id/metropolitan-district-council/leeds,Leeds City Council,30/11/2017,City Development,Libraries  Arts & Heritage,Supplies and Services,Bought In Professional Services,277,06/11/2017,1711- 00677,0.00,6121.45,R,Alfred Bagnall & Sons (Leeds) Ltd,No,,
Http://opendatacommunities.org/id/metropolitan-district-council/leeds,Leeds City Council,30/11/2017,Resources and Housing,Leeds Building Services,Supplies and Services,Other Hired And Contracted Services,265,09/11/2017,1711- 00678,0.00,13879.24,R,Alfred Bagnall & Sons (Leeds) Ltd,No,,
Http://opendatacommunities.org/id/metropolitan-district-council/leeds,Leeds City Council,30/11/2017,Resources and Housing,Leeds Building Services,Supplies and Services,Other Hired And Contracted Services,265,10/11/2017,1711- 00679,0.00,600.00,R,Alfred Bagnall & Sons (Leeds) Ltd,No,,
Http://opendatacommunities.org/id/metropolitan-district-council/leeds,Leeds City Council,30/11/2017,Communities and Environment,Customer Access,Supplies and Services,Other Hired And Contracted Services,265,23/11/2017,1711- 00680,0.00,600.00,R,Alfred Bagnall & Sons (Leeds) Ltd,No,,
Http://opendatacommunities.org/id/metropolitan-district-council/leeds,Leeds City Council,30/11/2017,Resources and Housing,Leeds Building Services,Supplies and Services,Other Hired And Contracted Services,265,24/11/2017,1711- 00681,0.00,8625.00,R,Alfred Bagnall & Sons (Leeds) Ltd,No,,
Http://opendatacommunities.org/id/metropolitan-district-council/leeds,Leeds City Council,30/11/2017,Resources and Housing,Leeds Building Services,Supplies and Services,Other Hired And Contracted Services,265,24/11/2017,1711- 00682,0.00,160.00,R,Alfred Bagnall & Sons (Leeds) Ltd,No,,
Http://opendatacommunities.org/id/metropolitan-district-council/leeds,Leeds City Council,30/11/2017,Resources and Housing,Leeds Building Services,Supplies and Services,Other Hired And Contracted Services,265,24/11/2017,1711- 00683,0.00,9520.00,R,Alfred Bagnall & Sons (Leeds) Ltd,No,,
Http://opendatacommunities.org/id/metropolitan-district-council/leeds,Leeds City Council,30/11/2017,Communities and Environment,Customer Access,Supplies and Services,Other Hired And Contracted Services,265,03/11/2017,1711- 00684,0.00,129.50,R,Ali Pourakaberian,No,,
Http://opendatacommunities.org/id/metropolitan-district-council/leeds,Leeds City Council,30/11/2017,Children and Families,Learning Skills & Universal,Income,Training & Education Courses Income,937,23/11/2017,1711- 00685,0.00,41.67,R,Ali Sakkour,No,,
Http://opendatacommunities.org/id/metropolitan-district-council/leeds,Leeds City Council,30/11/2017,City Development,Libraries  Arts & Heritage,Supplies and Services,Bought In Professional Services,277,14/11/2017,1711- 00686,0.00,500.00,R,Alice Withers,No,,
Http://opendatacommunities.org/id/metropolitan-district-council/leeds,Leeds City Council,30/11/2017,City Development,Economic Development,Capital,Other Costs,7,14/11/2017,1711- 00687,0.00,500.00,C,Alice Withers,No,,
Http://opendatacommunities.org/id/metropolitan-district-council/leeds,Leeds City Council,30/11/2017,Resources and Housing,Human Resources,Employees,Occupational Health,85,09/11/2017,1711- 00688,0.00,10.00,R,REDACTED PERSONAL DATA,No,,
Http://opendatacommunities.org/id/metropolitan-district-council/leeds,Leeds City Council,30/11/2017,City Development,Libraries  Arts & Heritage,Supplies and Services,Contributions To Extended Facilities,271,03/11/2017,1711- 00689,0.00,1920.00,R,Alison Jacques Limited,No,,
Http://opendatacommunities.org/id/metropolitan-district-council/leeds,Leeds City Council,30/11/2017,City Development,Libraries  Arts & Heritage,Supplies and Services,Other Hired And Contracted Services,265,02/11/2017,1711- 00690,0.00,350.00,R,Alison Mcintyre,No,,
Http://opendatacommunities.org/id/metropolitan-district-council/leeds,Leeds City Council,30/11/2017,City Development,Libraries  Arts & Heritage,Supplies and Services,Other Hired And Contracted Services,265,03/11/2017,1711- 00691,0.00,1000.00,R,Alison Wilding,No,,
Http://opendatacommunities.org/id/metropolitan-district-council/leeds,Leeds City Council,30/11/2017,City Development,Libraries  Arts & Heritage,Supplies and Services,Other Hired And Contracted Services,265,03/11/2017,1711- 00692,0.00,874.60,R,Alison Wilding,No,,
Http://opendatacommunities.org/id/metropolitan-district-council/leeds,Leeds City Council,30/11/2017,Children and Families,Safeguarding Targeted & Specialist,Transfer Payments,Leaving Care Allowances,634,03/11/2017,1711- 00693,0.00,30.00,R,All Abode,No,,
Http://opendatacommunities.org/id/metropolitan-district-council/leeds,Leeds City Council,30/11/2017,Children and Families,Safeguarding Targeted & Specialist,Transfer Payments,Leaving Care Grants,635,14/11/2017,1711- 00694,0.00,200.00,R,All Abode,No,,
Http://opendatacommunities.org/id/metropolitan-district-council/leeds,Leeds City Council,30/11/2017,Children and Families,Safeguarding Targeted & Specialist,Transfer Payments,Leaving Care Allowances,634,28/11/2017,1711- 00695,0.00,75.00,R,All Abode,No,,
Http://opendatacommunities.org/id/metropolitan-district-council/leeds,Leeds City Council,30/11/2017,Resources and Housing,Leeds Building Services,Supplies and Services,Other Hired And Contracted Services,265,01/11/2017,1711- 00696,0.00,195.00,R,All Clear Solutions Ltd,No,,
Http://opendatacommunities.org/id/metropolitan-district-council/leeds,Leeds City Council,30/11/2017,Resources and Housing,Leeds Building Services,Supplies and Services,Other Hired And Contracted Services,265,20/11/2017,1711- 00697,0.00,195.00,R,All Clear Solutions Ltd,No,,
Http://opendatacommunities.org/id/metropolitan-district-council/leeds,Leeds City Council,30/11/2017,Resources and Housing,Leeds Building Services,Supplies and Services,Other Hired And Contracted Services,265,20/11/2017,1711- 00698,0.00,195.00,R,All Clear Solutions Ltd,No,,
Http://opendatacommunities.org/id/metropolitan-district-council/leeds,Leeds City Council,30/11/2017,Resources and Housing,Leeds Building Services,Supplies and Services,Other Hired And Contracted Services,265,24/11/2017,1711- 00699,0.00,195.00,R,All Clear Solutions Ltd,No,,
Http://opendatacommunities.org/id/metropolitan-district-council/leeds,Leeds City Council,30/11/2017,City Development,Recreation,Employees,Training & Development,70,08/11/2017,1711- 00700,0.00,395.00,R,All England Netball Association Limited,No,,
Http://opendatacommunities.org/id/metropolitan-district-council/leeds,Leeds City Council,30/11/2017,Children and Families,Safeguarding Targeted & Specialist,Supplies and Services,Conference Meetings,253,17/11/2017,1711- 00701,0.00,58.00,R,All Hallows,No,,
Http://opendatacommunities.org/id/metropolitan-district-council/leeds,Leeds City Council,30/11/2017,Communities and Environment,Elections  Licensing and Registration,Support Services,Legal Disbursements,411,23/11/2017,1711- 00702,0.00,2650.00,R,Allan Armbrister,No,,
Http://opendatacommunities.org/id/metropolitan-district-council/leeds,Leeds City Council,30/11/2017,Resources and Housing,Facilities Management,Supplies and Services,Operational Furniture And Equipment,203,03/11/2017,1711- 00703,0.00,115.00,R,Allansound Communications,No,,
Http://opendatacommunities.org/id/metropolitan-district-council/leeds,Leeds City Council as Accountable Body,30/11/2017,Social Services Pooled Budgets,Jcs For People With Learning Disabilitie,Third Party Payments,Sheltered Accommodation,569,15/11/2017,1711- 00704,0.00,12248.52,R,Allerton Avenue,No,,
Http://opendatacommunities.org/id/metropolitan-district-council/leeds,Leeds City Council,30/11/2017,Adults and Health,Public Health,Third Party Payments,Public Health Commissioned Services,526,01/11/2017,1711- 00705,0.00,2768.73,R,Allerton Medical Centre,No,,
Http://opendatacommunities.org/id/metropolitan-district-council/leeds,Leeds City Council,30/11/2017,Communities and Environment,Parks and Countryside,Supplies and Services,Operational Materials,205,10/11/2017,1711- 00706,0.00,35.94,R,Allflex Uk Group Ltd,No,,
Http://opendatacommunities.org/id/metropolitan-district-council/leeds,Leeds City Council,30/11/2017,Resources and Housing,Finance,Supplies and Services,Bank Charges,263,01/11/2017,1711- 00707,0.00,63.24,R,Alliance & Leicester Commercial Bank,No,,
Http://opendatacommunities.org/id/metropolitan-district-council/leeds,Leeds City Council,30/11/2017,Resources and Housing,Finance,Supplies and Services,Bank Charges,263,01/11/2017,1711- 00708,0.00,-63.24,R,Alliance & Leicester Commercial Bank,No,,
Http://opendatacommunities.org/id/metropolitan-district-council/leeds,Leeds City Council,30/11/2017,Resources and Housing,Finance,Supplies and Services,Bank Charges,263,01/11/2017,1711- 00709,0.00,-63.24,R,Alliance & Leicester Commercial Bank,No,,
Http://opendatacommunities.org/id/metropolitan-district-council/leeds,Leeds City Council,30/11/2017,Resources and Housing,Finance,Supplies and Services,Bank Charges,263,06/11/2017,1711- 00710,0.00,801.64,R,Alliance & Leicester Commercial Bank,No,,
Http://opendatacommunities.org/id/metropolitan-district-council/leeds,Leeds City Council,30/11/2017,Resources and Housing,Finance,Supplies and Services,Bank Charges,263,06/11/2017,1711- 00711,0.00,100.14,R,Alliance & Leicester Commercial Bank,No,,
Http://opendatacommunities.org/id/metropolitan-district-council/leeds,Leeds City Council,30/11/2017,Resources and Housing,Finance,Supplies and Services,Bank Charges,263,06/11/2017,1711- 00712,0.00,1.01,R,Alliance & Leicester Commercial Bank,No,,
Http://opendatacommunities.org/id/metropolitan-district-council/leeds,Leeds City Council,30/11/2017,Insurance,Insurance,Supplies and Services,Insurance Claims,248,09/11/2017,1711- 00713,0.00,2042.00,R,Alliance Law Solicitors,No,,
Http://opendatacommunities.org/id/metropolitan-district-council/leeds,Leeds City Council,30/11/2017,City Development,Recreation,Supplies and Services,Printing,215,06/11/2017,1711- 00714,0.00,1605.20,R,Alliance Leisure Service Ltd,No,,
Http://opendatacommunities.org/id/metropolitan-district-council/leeds,Leeds City Council,30/11/2017,City Development,Recreation,Supplies and Services,Printing,215,06/11/2017,1711- 00715,0.00,937.40,R,Alliance Leisure Service Ltd,No,,
Http://opendatacommunities.org/id/metropolitan-district-council/leeds,Leeds City Council,30/11/2017,City Development,Recreation,Supplies and Services,Printing,215,06/11/2017,1711- 00716,0.00,99.00,R,Alliance Leisure Service Ltd,No,,
Http://opendatacommunities.org/id/metropolitan-district-council/leeds,Leeds City Council,30/11/2017,City Development,Recreation,Third Party Payments,Services Rendered By Other Organisations,511,24/11/2017,1711- 00717,0.00,4435.00,R,Alliance Leisure Service Ltd,No,,
Http://opendatacommunities.org/id/metropolitan-district-council/leeds,Leeds City Council,30/11/2017,City Development,Recreation,Third Party Payments,Services Rendered By Other Organisations,511,24/11/2017,1711- 00718,0.00,3150.00,R,Alliance Leisure Service Ltd,No,,
Http://opendatacommunities.org/id/metropolitan-district-council/leeds,Leeds City Council,30/11/2017,City Development,Highways,Supplies and Services,Other Hired And Contracted Services,265,02/11/2017,1711- 00719,0.00,247.50,R,Allied Exploration & Geotechnics Ltd,No,,
Http://opendatacommunities.org/id/metropolitan-district-council/leeds,Leeds City Council,30/11/2017,City Development,Highways,Supplies and Services,Other Hired And Contracted Services,265,08/11/2017,1711- 00720,0.00,228.80,R,Allied Exploration & Geotechnics Ltd,No,,
Http://opendatacommunities.org/id/metropolitan-district-council/leeds,Leeds City Council as Accountable Body,30/11/2017,Social Services Pooled Budgets,Jcs For People With Learning Disabilitie,Third Party Payments,Home Care,568,01/11/2017,1711- 00721,0.00,1050.56,R,Allied Healthcare,No,,
Http://opendatacommunities.org/id/metropolitan-district-council/leeds,Leeds City Council as Accountable Body,30/11/2017,Social Services Pooled Budgets,Jcs For People With Learning Disabilitie,Third Party Payments,Home Care,568,01/11/2017,1711- 00722,0.00,718.08,R,Allied Healthcare,No,,
Http://opendatacommunities.org/id/metropolitan-district-council/leeds,Leeds City Council,30/11/2017,Adults and Health,Other Generic Services,Third Party Payments,Home Care,568,06/11/2017,1711- 00723,0.00,95.55,R,Allied Healthcare,No,,
Http://opendatacommunities.org/id/metropolitan-district-council/leeds,Leeds City Council,30/11/2017,Adults and Health,Other Generic Services,Third Party Payments,Home Care,568,06/11/2017,1711- 00724,0.00,27.30,R,Allied Healthcare,No,,
Http://opendatacommunities.org/id/metropolitan-district-council/leeds,Leeds City Council as Accountable Body,30/11/2017,Social Services Pooled Budgets,Jcs For People With Learning Disabilitie,Third Party Payments,Home Care,568,10/11/2017,1711- 00725,0.00,15995.93,R,Allied Healthcare,No,,
Http://opendatacommunities.org/id/metropolitan-district-council/leeds,Leeds City Council,30/11/2017,Adults and Health,Services For Older People Under 65 P/Dis,Third Party Payments,Home Care,568,13/11/2017,1711- 00726,0.00,2893.82,R,Allied Healthcare,No,,
Http://opendatacommunities.org/id/metropolitan-district-council/leeds,Leeds City Council,30/11/2017,Adults and Health,Services For Older People - 65 And Over,Third Party Payments,Home Care,568,13/11/2017,1711- 00727,0.00,34807.13,R,Allied Healthcare,No,,
Http://opendatacommunities.org/id/metropolitan-district-council/leeds,Leeds City Council,30/11/2017,Adults and Health,Other Generic Services,Third Party Payments,Home Care,568,20/11/2017,1711- 00728,0.00,19223.04,R,Allied Healthcare,No,,
Http://opendatacommunities.org/id/metropolitan-district-council/leeds,Leeds City Council,30/11/2017,Adults and Health,Other Generic Services,Third Party Payments,Home Care,568,20/11/2017,1711- 00729,0.00,6852.13,R,Allied Healthcare,No,,
Http://opendatacommunities.org/id/metropolitan-district-council/leeds,Leeds City Council,30/11/2017,Children and Families,Partnerships,Third Party Payments,Services Rendered By Voluntary Sector,505,21/11/2017,1711- 00730,0.00,684.00,R,Allied Healthcare,No,,
Http://opendatacommunities.org/id/metropolitan-district-council/leeds,Leeds City Council,30/11/2017,Children and Families,Partnerships,Third Party Payments,Services Rendered By Voluntary Sector,505,21/11/2017,1711- 00731,0.00,684.00,R,Allied Healthcare,No,,
Http://opendatacommunities.org/id/metropolitan-district-council/leeds,Leeds City Council,30/11/2017,Children and Families,Partnerships,Third Party Payments,Services Rendered By Voluntary Sector,505,21/11/2017,1711- 00732,0.00,684.00,R,Allied Healthcare,No,,
Http://opendatacommunities.org/id/metropolitan-district-council/leeds,Leeds City Council,30/11/2017,Adults and Health,Services For Older People - 65 And Over,Third Party Payments,Home Care,568,22/11/2017,1711- 00733,0.00,48366.89,R,Allied Healthcare,No,,
Http://opendatacommunities.org/id/metropolitan-district-council/leeds,Leeds City Council as Accountable Body,30/11/2017,Social Services Pooled Budgets,Jcs For People With Learning Disabilitie,Third Party Payments,Home Care,568,23/11/2017,1711- 00734,0.00,15229.65,R,Allied Healthcare,No,,
Http://opendatacommunities.org/id/metropolitan-district-council/leeds,Leeds City Council as Accountable Body,30/11/2017,Social Services Pooled Budgets,Jcs For People With Learning Disabilitie,Third Party Payments,Home Care,568,23/11/2017,1711- 00735,0.00,14966.19,R,Allied Healthcare,No,,
Http://opendatacommunities.org/id/metropolitan-district-council/leeds,Leeds City Council,30/11/2017,Adults and Health,Services For Older People Under 65 P/Dis,Third Party Payments,Home Care,568,29/11/2017,1711- 00736,0.00,14763.47,R,Allied Healthcare,No,,
Http://opendatacommunities.org/id/metropolitan-district-council/leeds,Leeds City Council,30/11/2017,Adults and Health,Services For Older People - 65 And Over,Third Party Payments,Home Care,568,29/11/2017,1711- 00737,0.00,35162.97,R,Allied Healthcare,No,,
Http://opendatacommunities.org/id/metropolitan-district-council/leeds,Leeds City Council,30/11/2017,Strategic Landlord,Housing Management,Supplies and Services,Other Hired And Contracted Services,265,03/11/2017,1711- 00738,0.00,312.24,R,Allpay Limted,No,,
Http://opendatacommunities.org/id/metropolitan-district-council/leeds,Leeds City Council,30/11/2017,Resources and Housing,Finance,Supplies and Services,Bank Charges,263,06/11/2017,1711- 00739,0.00,2.26,R,Allpay Limted,No,,
Http://opendatacommunities.org/id/metropolitan-district-council/leeds,Leeds City Council,30/11/2017,Resources and Housing,Finance,Supplies and Services,Bank Charges,263,06/11/2017,1711- 00740,0.00,10954.26,R,Allpay Limted,No,,
Http://opendatacommunities.org/id/metropolitan-district-council/leeds,Leeds City Council,30/11/2017,Resources and Housing,Finance,Supplies and Services,Bank Charges,263,06/11/2017,1711- 00741,0.00,7788.22,R,Allpay Limted,No,,
Http://opendatacommunities.org/id/metropolitan-district-council/leeds,Leeds City Council,30/11/2017,Resources and Housing,Finance,Supplies and Services,Bank Charges,263,06/11/2017,1711- 00742,0.00,376.69,R,Allpay Limted,No,,
Http://opendatacommunities.org/id/metropolitan-district-council/leeds,Leeds City Council,30/11/2017,Resources and Housing,Finance,Supplies and Services,Bank Charges,263,06/11/2017,1711- 00743,0.00,37.19,R,Allpay Limted,No,,
Http://opendatacommunities.org/id/metropolitan-district-council/leeds,Leeds City Council,30/11/2017,Resources and Housing,Finance,Supplies and Services,Bank Charges,263,06/11/2017,1711- 00744,0.00,947.68,R,Allpay Limted,No,,
Http://opendatacommunities.org/id/metropolitan-district-council/leeds,Leeds City Council,30/11/2017,Strategic Landlord,Housing Management,Supplies and Services,Other Hired And Contracted Services,265,08/11/2017,1711- 00745,0.00,21.15,R,Allpay Limted,No,,
Http://opendatacommunities.org/id/metropolitan-district-council/leeds,Leeds City Council,30/11/2017,Resources and Housing,Strategic Housing Partnership & Support  ,Supplies and Services,Other Hired And Contracted Services,265,20/10/2017,1711- 00746,0.00,1000.00,R,Allpay Moto (Callpay/I,Yes,,
Http://opendatacommunities.org/id/metropolitan-district-council/leeds,Leeds City Council,30/11/2017,Children and Families,Safeguarding Targeted & Specialist  ,Supplies and Services,Other Hired And Contracted Services,265,24/10/2017,1711- 00747,0.00,1000.00,R,Allpay Moto (Callpay/I,Yes,,
Http://opendatacommunities.org/id/metropolitan-district-council/leeds,Leeds City Council,30/11/2017,Children and Families,Learning Skills & Universal,Transport,Fuel (Non LCC Supplies),321,07/11/2017,1711- 00748,0.00,1362.17,R,Allstar Business Solutions Ltd,No,,
Http://opendatacommunities.org/id/metropolitan-district-council/leeds,Leeds City Council,30/11/2017,Communities and Environment,Parks and Countryside,Transport,Fuel (Non LCC Supplies),321,07/11/2017,1711- 00749,0.00,34.76,R,Allstar Business Solutions Ltd,No,,
Http://opendatacommunities.org/id/metropolitan-district-council/leeds,Leeds City Council,30/11/2017,Resources and Housing,Democratic Services,Transport,Fuel (Non LCC Supplies),321,07/11/2017,1711- 00750,0.00,285.43,R,Allstar Business Solutions Ltd,No,,
Http://opendatacommunities.org/id/metropolitan-district-council/leeds,Leeds City Council,30/11/2017,City Development,Highways,Transport,Fuel (Non LCC Supplies),321,07/11/2017,1711- 00751,0.00,40.00,R,Allstar Business Solutions Ltd,No,,
Http://opendatacommunities.org/id/metropolitan-district-council/leeds,Leeds City Council,30/11/2017,Resources and Housing,Leeds Building Services,Transport,Fuel (Non LCC Supplies),321,13/11/2017,1711- 00752,0.00,20.58,R,Allstar Business Solutions Ltd,No,,
Http://opendatacommunities.org/id/metropolitan-district-council/leeds,Leeds City Council,30/11/2017,Resources and Housing,Leeds Building Services,Transport,Fuel (Non LCC Supplies),321,28/11/2017,1711- 00753,0.00,17.29,R,Allstar Business Solutions Ltd,No,,
Http://opendatacommunities.org/id/metropolitan-district-council/leeds,Leeds City Council,30/11/2017,Children and Families,Safeguarding Targeted & Specialist,Support Services,Legal Disbursements,411,01/11/2017,1711- 00754,0.00,26.25,R,Alphabiolabs,No,,
Http://opendatacommunities.org/id/metropolitan-district-council/leeds,Leeds City Council,30/11/2017,Children and Families,Safeguarding Targeted & Specialist,Support Services,Legal Disbursements,411,01/11/2017,1711- 00755,0.00,79.80,R,Alphabiolabs,No,,
Http://opendatacommunities.org/id/metropolitan-district-council/leeds,Leeds City Council,30/11/2017,Children and Families,Safeguarding Targeted & Specialist,Support Services,Legal Disbursements,411,01/11/2017,1711- 00756,0.00,130.00,R,Alphabiolabs,No,,
Http://opendatacommunities.org/id/metropolitan-district-council/leeds,Leeds City Council,30/11/2017,Resources and Housing,Legal Services,Support Services,Legal Disbursements,411,01/11/2017,1711- 00757,0.00,86.25,R,Alphabiolabs,No,,
